Workbook

Sheet Planned Maint v6.2 CSV File (hidden)
H1: Contractor ###
A2: Code | B2: Short | C2: Element | D2: Section | E2: SubSection | F2: UOM | G2: Rate | H2: % | I2: Rate | J2: Medium
A3: 0011AA | B3: KERB:RENEW 127X254MM PCC KERB | C3: GROUNDWORKS | D3: Kerbs, Channels and Edges | E3: Kerbs - Precast Conctete | F3: LM | G3: 19.51 | H3: =SUMIF('Contractor##'!C:C,'Planned Maint v6.2 CSV File'!C:C,'Contractor##'!F:F) -> -0.373 | I3: =(1+H3)*G3 -> 12.23277 | J3: Kerb:Renew precast concrete kerb, straight or curved by carefully taking up existing kerb and haunching, remove spoil, clean up concrete bed, supply and lay new 127x254mm precast concrete kerb and haunch to both sides including pointing, formwork and make good to existing finishes.
A4: 0011AB | B4: KERB:LAY NEW 127X254MM PCC KERB | C4: GROUNDWORKS | D4: Kerbs, Channels and Edges | E4: Kerbs - Precast Conctete | F4: LM | G4: 27.02 | H4: =SUMIF('Contractor##'!C:C,'Planned Maint v6.2 CSV File'!C:C,'Contractor##'!F:F) -> -0.373 | I4: =(1+H4)*G4 -> 16.94154 | J4: Kerb:Excavate, remove waste and debris, subsequently backfill as necessary, level and compact bottom of excavations, supply and lay 127x254mm precast concrete kerb, straight or curved, on and including 200x100mm concrete bed and haunch both sides and pointing, all necessary formwork and make good to existing finishes.
A5: 0011AC | B5: KERB:REBED ANY TYPE OF PCC KERB | C5: GROUNDWORKS | D5: Kerbs, Channels and Edges | E5: Kerbs - Precast Conctete | F5: LM | G5: 15.64 | H5: =SUMIF('Contractor##'!C:C,'Planned Maint v6.2 CSV File'!C:C,'Contractor##'!F:F) -> -0.373 | I5: 9.80628 | J5: Kerb:Rebed precast concrete kerb, straight or curved on plan, by carefully taking up existing kerb and haunching, remove waste and debris, clean up concrete bed and bed and haunch to existing 127x254mm precast concrete kerb to both sides including pointing, formwork and make good to existing finishes.
A6: 0013AA | B6: CHANNEL:RENEW NE 250X125MM | C6: GROUNDWORKS | D6: Kerbs, Channels and Edges | E6: Channels - Precast Conctete | F6: LM | G6: 19.39 | H6: =SUMIF('Contractor##'!C:C,'Planned Maint v6.2 CSV File'!C:C,'Contractor##'!F:F) -> -0.373 | I6: 12.15753 | J6: Channel:Renew PCC channel, take up existing including haunching, remove spoil, clean up existing bed, supply and lay new up to 250x125mm PCC channel including haunch both sides, pointing, formwork and make good to existing finishes.
A7: 0013AB | B7: CHANNEL:REBED NE 250X125MM | C7: GROUNDWORKS | D7: Kerbs, Channels and Edges | E7: Channels - Precast Conctete | F7: LM | G7: 15.64 | H7: =SUMIF('Contractor##'!C:C,'Planned Maint v6.2 CSV File'!C:C,'Contractor##'!F:F) -> -0.373 | I7: 9.80628 | J7: Channel:Rebed precast concrete channel, take up existing including haunching, remove waste and debris, clean up existing bed, and clean and relay ne 250x125mm precast concrete channel including haunch both sides, pointing, formwork and make good to existing finishes.
A8: 0015AA | B8: EDGING:RENEW 50X152MM PCC EDGING | C8: GROUNDWORKS | D8: Kerbs, Channels and Edges | E8: Edgings - Precast Conctete | F8: LM | G8: 14.2 | H8: =SUMIF('Contractor##'!C:C,'Planned Maint v6.2 CSV File'!C:C,'Contractor##'!F:F) -> -0.373 | I8: 8.9034 | J8: Edging:Renew precast concrete edging, straight or curved by carefully taking up existing edging and haunching, remove spoil, clean up concrete bed, supply and bed up to 50x152mm precast concrete edging, haunch both sides, point including all formwork and make good to finishes.
A9: 0015AB | B9: EDGING:RENEW 25X150MM TIMBER | C9: GROUNDWORKS | D9: Kerbs, Channels and Edges | E9: Edgings - Precast Conctete | F9: LM | G9: 5.91 | H9: =SUMIF('Contractor##'!C:C,'Planned Maint v6.2 CSV File'!C:C,'Contractor##'!F:F) -> -0.373 | I9: 3.70557 | J9: Edging:Renew or supply and fix new 25x150mm tanalised softwood edging board to and including 50x50x600mm long tanalised pegs at 900mm centres driven firmly into the ground including all necessary excavation and make good to existing finishes.
A10: 0015AC | B10: EDGING:LAY 50X152MM PCC EDGING | C10: GROUNDWORKS | D10: Kerbs, Channels and Edges | E10: Edgings - Timber | F10: LM | G10: 20.56 | H10: =SUMIF('Contractor##'!C:C,'Planned Maint v6.2 CSV File'!C:C,'Contractor##'!F:F) -> -0.373 | I10: 12.89112 | J10: Edging:Excavate, remove waste and debris, backfill as necessary, level and compact bottom of excavations lay concrete bed 200x100mm and supply and lay 50x152mm precast concrete edging, straight or curved, haunch to both sides, point including all formwork and make good to existing finishes.
A11: 0015AD | B11: EDGING:REBED STRAIGHT AND CURVED PCC EDGING | C11: GROUNDWORKS | D11: Kerbs, Channels and Edges | E11: Edgings - Precast Conctete | F11: LM | G11: 12.13 | H11: =SUMIF('Contractor##'!C:C,'Planned Maint v6.2 CSV File'!C:C,'Contractor##'!F:F) -> -0.373 | I11: 7.60551 | J11: Edging:Rebed any precast concrete edging, straight or curved on plan, by carefully taking up existing edging and haunching, remove waste and debris, clean up concrete bed and edging and relay including haunch both sides, point including all formwork and make good to existing finishes.
A12: 0030AA | B12: PATH:EXCAVATE LAY NE 100MM CONCRETE BED | C12: GROUNDWORKS | D12: Paths and Pavings | E12: Paving - Insitu Conctete | F12: SM | G12: 58.8 | H12: =SUMIF('Contractor##'!C:C,'Planned Maint v6.2 CSV File'!C:C,'Contractor##'!F:F) -> -0.373 | I12: 36.8676 | J12: Path:Excavate 250mm below required finished level, remove waste and debris, level and compact bottoms of excavations and fill, 150mm hardcore bed, blinded and ne 100mm concrete trowelled smooth including dishing to gullies and the like and all formwork.
A13: 0030AB | B13: PATH:RENEW NE 100MM CONCRETE BED AND SUB-BASE | C13: GROUNDWORKS | D13: Kerbs, Channels and Edges | E13: Edgings - Timber | F13: SM | G13: 62.78 | H13: =SUMIF('Contractor##'!C:C,'Planned Maint v6.2 CSV File'!C:C,'Contractor##'!F:F) -> -0.373 | I13: 39.36306 | J13: Path:Renew concrete path by breaking up existing concrete and excavating 250mm below existing level, remove waste and debris, fill soft spots, level and compact bottoms of excavations and fill, 150mm hardcore bed, blinded and ne 100mm concrete trowelled smooth including dishing to gullies and the like and all formwork
A14: 0030AC | B14: FINISH:EXTRA FOR NON-SLIP FINISH TO PATH | C14: GROUNDWORKS | D14: Paths and Pavings | E14: Paving - Insitu Conctete | F14: SM | G14: 3.22 | H14: =SUMIF('Contractor##'!C:C,'Planned Maint v6.2 CSV File'!C:C,'Contractor##'!F:F) -> -0.373 | I14: 2.01894 | J14: Finish:Extra for non-slip surface to concrete- carborundum grains at the rate of 1kg/sm.
A15: 0030BA | B15: DRIVE:RENEW 100MM CONCRETE BED AND SUB-BASE | C15: GROUNDWORKS | D15: Paths and Pavings | E15: Paving - Insitu Conctete | F15: SM | G15: 87.34 | H15: =SUMIF('Contractor##'!C:C,'Planned Maint v6.2 CSV File'!C:C,'Contractor##'!F:F) -> -0.373 | I15: 54.76218 | J15: Drive:Renew concrete drive or hardstanding by breaking up existing concrete and excavating 450mm below existing level, remove spoil, fill soft spots, level or grade and compact bottoms of excavations and fill, 350mm hardcore bed, blinded and 100mm concrete with mesh reinforcement, surface tamped or trowelled smooth including dishing to gullies and the like and all formwork.
A16: 0030CA | B16: PATH:REMOVE AND INFILL WITH TOPSOIL | C16: GROUNDWORKS | D16: Paths and Pavings | E16: Paving - Insitu Conctete | F16: SM | G16: 42.93 | H16: =SUMIF('Contractor##'!C:C,'Planned Maint v6.2 CSV File'!C:C,'Contractor##'!F:F) -> -0.373 | I16: 26.91711 | J16: Path:Break up and remove any thickness existing path and bed under and remove waste and debris, import topsoil and deposit to make up levels and grade to suit existing contours.
A17: 0050AA | B17: PAVING:RENEW 70MM MACADAM AND 75MM SUB-BASE | C17: GROUNDWORKS | D17: Paths and Pavings | E17: Paving - Coated Macadam | F17: SM | G17: 41.51 | H17: =SUMIF('Contractor##'!C:C,'Planned Maint v6.2 CSV File'!C:C,'Contractor##'!F:F) -> -0.373 | I17: 26.02677 | J17: Paving:Renew macadam by breaking up existing paving and excavations 145mm below existing level, remove spoil, fill soft spots, level and compact bottoms of excavations and fill in layers, 75mm crusher run of broken stone, blinding, 50mm base course of 20mm nominal size open textured macadam and 20mm wearing course of 6mm nominal size medium textured macadam laid to falls, crossfalls and slopes including joints to any existing finishes.
A18: 0050AB | B18: MACADAM:EXCAVATE AND LAY 70MM PAVING | C18: GROUNDWORKS | D18: Paths and Pavings | E18: Paving - Coated Macadam | F18: SM | G18: 48.12 | H18: =SUMIF('Contractor##'!C:C,'Planned Maint v6.2 CSV File'!C:C,'Contractor##'!F:F) -> -0.373 | I18: 30.17124 | J18: Macadam:Excavate 145mm below required finished level, remove waste and debris, level and compact bottoms of excavations and fill in layers, 75mm crusher run of broken stone blinding, 50mm base course of 20mm nominal size open-textured macadam and 20mm wearing course of 6mm nominal medium textured macadam laid to falls, crossfalls and slopes.
A19: 0050BA | B19: PAVING:RENEW 60MM MACADAM AND 140MM SUB-BASE | C19: GROUNDWORKS | D19: Paths and Pavings | E19: Paving - Coated Macadam | F19: SM | G19: 47.47 | H19: =SUMIF('Contractor##'!C:C,'Planned Maint v6.2 CSV File'!C:C,'Contractor##'!F:F) -> -0.373 | I19: 29.76369 | J19: Paving:Renew macadam by breaking up existing paving and excavations 200mm below existing level, remove spoil, fill soft spots, level or grade and compact bottoms of excavations and fill in layers, 140mm bed of granular sub-base material, blinding, 20mm dense basecourse macadam to a depth of 40mm, and a 6mm dense wearing course macadam to a depth of 20mm laid to falls, crossfalls and slopes including joints to any existing finishes.
A20: 0050CA | B20: PAVING:RENEW 60MM MACADAM SURFACING | C20: GROUNDWORKS | D20: Paths and Pavings | E20: Paving - Coated Macadam | F20: SM | G20: 28.02 | H20: =SUMIF('Contractor##'!C:C,'Planned Maint v6.2 CSV File'!C:C,'Contractor##'!F:F) -> -0.373 | I20: 17.56854 | J20: Paving:Renew macadam by breaking up existing surfacing,remove spoil, fill soft spots or pot holes with granular material, level or grade and compact surface of sub-base, lay 20mm dense base course macadam to a depth of 40mm, and a 6mm dense wearing course macadam to a depth of 20mm laid to falls, crossfalls and slopes including joints to any existing finishes.
A21: 0050DA | B21: PAVING:RENEW 90MM MACADAM SURFACING | C21: GROUNDWORKS | D21: Paths and Pavings | E21: Paving - Coated Macadam | F21: SM | G21: 44.44 | H21: =SUMIF('Contractor##'!C:C,'Planned Maint v6.2 CSV File'!C:C,'Contractor##'!F:F) -> -0.373 | I21: 27.86388 | J21: Paving:Renew macadam by breaking up existing surfacing,remove spoil, fill soft spots or pot holes with granular material, level or grade and compact surface of sub-base, lay 20mm dense base course macadam to a depth of 65mm, and a 6mm dense wearing course macadam to a depth of 25mm laid to falls, crossfalls and slopes including joints to any existing finishes.
A22: 0050DB | B22: MACADAM:EXCAVATE AND LAY 90MM PAVING | C22: GROUNDWORKS | D22: Paths and Pavings | E22: Paving - Coated Macadam | F22: SM | G22: 51.12 | H22: =SUMIF('Contractor##'!C:C,'Planned Maint v6.2 CSV File'!C:C,'Contractor##'!F:F) -> -0.373 | I22: 32.05224 | J22: Macadam:Excavate 340mm below required finished level, remove waste and debris, level and compact bottoms of excavations and fill in layers, 250mm crusher run of broken stone blinding, 65mm base course of 20mm nominal size open-textured macadam and 25mm wearing course of 6mm nominal medium textured macadam laid to falls, crossfalls and slopes.
A23: 0060AA | B23: LINE:FORM THERMOPLASTIC - 50MM | C23: GROUNDWORKS | D23: Paths and Pavings | E23: Road Markings - Lines | F23: LM | G23: 4.26 | H23: =SUMIF('Contractor##'!C:C,'Planned Maint v6.2 CSV File'!C:C,'Contractor##'!F:F) -> -0.373 | I23: 2.67102 | J23: Line:Form 50mm thermoplastic line to road surface including setting out on site
A24: 0060AB | B24: LINE:FORM THERMOPLASTIC - 100MM | C24: GROUNDWORKS | D24: Paths and Pavings | E24: Road Markings - Lines | F24: LM | G24: 6.91 | H24: =SUMIF('Contractor##'!C:C,'Planned Maint v6.2 CSV File'!C:C,'Contractor##'!F:F) -> -0.373 | I24: 4.33257 | J24: Line:Form 100mm thermoplastic line to road surface including setting out on site
A25: 0060AC | B25: LINE:FORM ROAD PAINT- 50MM | C25: GROUNDWORKS | D25: Paths and Pavings | E25: Road Markings - Lines | F25: LM | G25: 3.22 | H25: =SUMIF('Contractor##'!C:C,'Planned Maint v6.2 CSV File'!C:C,'Contractor##'!F:F) -> -0.373 | I25: 2.01894 | J25: Line:Form 50mm Road Marking Paint line to road surface including setting out on site
A26: 0060AD | B26: LINE:FORM ROAD PAINT- 100MM | C26: GROUNDWORKS | D26: Paths and Pavings | E26: Road Markings - Lines | F26: LM | G26: 4.89 | H26: =SUMIF('Contractor##'!C:C,'Planned Maint v6.2 CSV File'!C:C,'Contractor##'!F:F) -> -0.373 | I26: 3.06603 | J26: Line:Form 100mm Road Marking Paint line to road surface including setting out on site
A27: 0060AE | B27: LINE:BURN OFF 50MM WIDE | C27: GROUNDWORKS | D27: Paths and Pavings | E27: Road Markings - Lines | F27: LM | G27: 4.37 | H27: =SUMIF('Contractor##'!C:C,'Planned Maint v6.2 CSV File'!C:C,'Contractor##'!F:F) -> -0.373 | I27: 2.73999 | J27: Line: Burn off and completely opliteraterate 50 mm line
A28: 0060AF | B28: LINE:BURN OFF 100MM WIDE | C28: GROUNDWORKS | D28: Paths and Pavings | E28: Road Markings - Lines | F28: LM | G28: 5.62 | H28: =SUMIF('Contractor##'!C:C,'Planned Maint v6.2 CSV File'!C:C,'Contractor##'!F:F) -> -0.373 | I28: 3.52374 | J28: Line: Burn off and completely opliteraterate 100 mm line
A29: 0061AA | B29: WORD:FORM IN THERMOPLASTIC -50MM LINES-PER LETTER | C29: GROUNDWORKS | D29: Paths and Pavings | E29: Road Markings - Symbols, Words | F29: NO | G29: 20 | H29: =SUMIF('Contractor##'!C:C,'Planned Maint v6.2 CSV File'!C:C,'Contractor##'!F:F) -> -0.373 | I29: 12.54 | J29: Word:Form letters of words (Exit, Welcome etc) in 50mm thermoplastic line to road surface including setting out on site- per leter of word
A30: 0061AB | B30: WORD:FORM IN THERMOPLASTIC -100MM LINES-PER LETTER | C30: GROUNDWORKS | D30: Paths and Pavings | E30: Road Markings - Symbols, Words | F30: NO | G30: 35.87 | H30: =SUMIF('Contractor##'!C:C,'Planned Maint v6.2 CSV File'!C:C,'Contractor##'!F:F) -> -0.373 | I30: 22.49049 | J30: Word:Form letters of words (Exit, Welcome etc) in 100mm thermoplastic line to road surface including setting out on site- per letter of word
A31: 0061AC | B31: ARROW:FORM IN THERMOPLASTIC - 50MM | C31: GROUNDWORKS | D31: Paths and Pavings | E31: Road Markings - Symbols, Words | F31: NO | G31: 27.75 | H31: =SUMIF('Contractor##'!C:C,'Planned Maint v6.2 CSV File'!C:C,'Contractor##'!F:F) -> -0.373 | I31: 17.39925 | J31: Line:Form Directional Arrow in 50mm thermoplastic line to road surface including setting out on site- standard size
A32: 0061AD | B32: ARROW:FORM IN THERMOPLASTIC - 100MM | C32: GROUNDWORKS | D32: Paths and Pavings | E32: Road Markings - Symbols, Words | F32: NO | G32: 48.12 | H32: =SUMIF('Contractor##'!C:C,'Planned Maint v6.2 CSV File'!C:C,'Contractor##'!F:F) -> -0.373 | I32: 30.17124 | J32: Line:Form Directional Arrow in 100mm thermoplastic line to road surface including setting out on site- standard size
A33: 0061AE | B33: SYMBOL:FORM DISABLED IN THERMOPLASTIC | C33: GROUNDWORKS | D33: Paths and Pavings | E33: Road Markings - Symbols, Words | F33: NO | G33: 34.75 | H33: =SUMIF('Contractor##'!C:C,'Planned Maint v6.2 CSV File'!C:C,'Contractor##'!F:F) -> -0.373 | I33: 21.78825 | J33: Symbol:Form Disabled symbol in thermoplastic to car park surface including setting out on site- standard size
A34: 0061AF | B34: SYMBOL:FORM MOTHER AND CHILD IN THERMOPLASTIC | C34: GROUNDWORKS | D34: Paths and Pavings | E34: Road Markings - Symbols, Words | F34: NO | G34: 34.75 | H34: =SUMIF('Contractor##'!C:C,'Planned Maint v6.2 CSV File'!C:C,'Contractor##'!F:F) -> -0.373 | I34: 21.78825 | J34: Symbol:Form Mother and Child symbol in thermoplastic to car park surface including setting out on site- standard size
A35: 0070AA | B35: PAVING:LIFT AND REBED PCC PAVING FLAGS | C35: GROUNDWORKS | D35: Paths and Pavings | E35: Paving - Precast Concrete Flag | F35: SM | G35: 8.37 | H35: =SUMIF('Contractor##'!C:C,'Planned Maint v6.2 CSV File'!C:C,'Contractor##'!F:F) -> -0.373 | I35: 5.24799 | J35: Paving:Lift any size existing precast concrete paving flags, fill and compact hardcore to soft spots and rebed existing flags on 25mm bed of cement mortar (1:4) and point up joints.
A36: 0070BA | B36: PAVING:RENEW NON STANDARD PCC PAVING FLAGS - 50MM | C36: GROUNDWORKS | D36: Paths and Pavings | E36: Paving - Precast Concrete Flag | F36: SM | G36: 48.11 | H36: =SUMIF('Contractor##'!C:C,'Planned Maint v6.2 CSV File'!C:C,'Contractor##'!F:F) -> -0.373 | I36: 30.16497 | J36: Paving:Lift remnants of existing non-standard size precast concrete paving flags, remove from site to approved tip, fill and compact hardcore to soft spots and lay 50mm non-standard size precast concrete paving flags on 25mm bed of cement mortar (1:4), point up joints including any additional cutting and fitting to suit.
A37: 0070BC | B37: PAVING:RENEW STANDARD PCC PAVING FLAGS | C37: GROUNDWORKS | D37: Paths and Pavings | E37: Paving - Precast Concrete Flag | F37: SM | G37: 28.53 | H37: =SUMIF('Contractor##'!C:C,'Planned Maint v6.2 CSV File'!C:C,'Contractor##'!F:F) -> -0.373 | I37: 17.88831 | J37: Paving:Lift remnants of existing precast concrete paving flags, remove from site to approved tip, fill and compact hardcore to soft spots and lay 50mm standard size precast concrete paving flags on 25mm bed of cement mortar (1:4), point up joints including any additional cutting and fitting to suit.
A38: 0070BD | B38: FLAG:EXCAVATE AND LAY NEW PRECAST CONCRETE – 50 MM | C38: GROUNDWORKS | D38: Paths and Pavings | E38: Paving - Precast Concrete Flag | F38: SM | G38: 45.94 | H38: =SUMIF('Contractor##'!C:C,'Planned Maint v6.2 CSV File'!C:C,'Contractor##'!F:F) -> -0.373 | I38: 28.80438 | J38: Flag:Excavate 150mm below required finished level, remove waste and debris, and fill in layers, including compacting 75mm crusher run of broken stone blinding and lay 50mm standard size precast concrete paving flags on 25mm bed of cement mortar (1:4) including point up joints and all cutting and dishing to gullies, covers and the like.
A39: 0070BE | B39: FLAG:EXCAVATE AND LAY NEW PRECAST CONCRETE - 63MM | C39: GROUNDWORKS | D39: Paths and Pavings | E39: Paving - Precast Concrete Flag | F39: SM | G39: 47.94 | H39: =SUMIF('Contractor##'!C:C,'Planned Maint v6.2 CSV File'!C:C,'Contractor##'!F:F) -> -0.373 | I39: 30.05838 | J39: Flag:Excavate 150mm below required finished level, remove waste and debris, and fill in layers, including compacting 75mm crusher run of broken stone blinding and lay 63mm standard size precast concrete paving flags on 25mm bed of cement mortar (1:4) including point up joints and all cutting and dishing to gullies, covers and the like.
A40: 0070BF | B40: FLAG:LIFT AND REBED SINGLE PCC PAVING | C40: GROUNDWORKS | D40: Paths and Pavings | E40: Paving - Precast Concrete Flag | F40: NO | G40: 6.68 | H40: =SUMIF('Contractor##'!C:C,'Planned Maint v6.2 CSV File'!C:C,'Contractor##'!F:F) -> -0.373 | I40: 4.18836 | J40: Flag:Lift any size existing precast concrete paving flag, fill and compact hardcore to soft spots and rebed existing flag on 25mm bed of cement mortar (1:4) and point up joints.
A41: 0070BG | B41: PAVING:RENEW NON STANDARD PCC PAVING FLAGS - 63MM | C41: GROUNDWORKS | D41: Paths and Pavings | E41: Paving - Precast Concrete Flag | F41: SM | G41: 44.07 | H41: =SUMIF('Contractor##'!C:C,'Planned Maint v6.2 CSV File'!C:C,'Contractor##'!F:F) -> -0.373 | I41: 27.63189 | J41: Paving:Lift remnants of existing non-standard size precast concrete paving flags, remove from site to approved tip, fill and compact hardcore to soft spots and lay 63mm non-standard size precast concrete paving flags on 25mm bed of cement mortar (1:4), point up joints including any additional cutting and fitting to suit.
A42: 0070BH | B42: FLAG:RENEW SINGLE PCC PAVING FLAG-50MM | C42: GROUNDWORKS | D42: Paths and Pavings | E42: Paving - Precast Concrete Flag | F42: NO | G42: 10.67 | H42: =SUMIF('Contractor##'!C:C,'Planned Maint v6.2 CSV File'!C:C,'Contractor##'!F:F) -> -0.373 | I42: 6.69009 | J42: Flag:Lift remnants of existing 50mm standard size precast concrete paving flag, remove waste and debris, fill and compact hardcore to soft spots and lay new flag on 25mm bed of cement mortar (1:4), point up joints including any additional cutting and fitting to suit.
A43: 0070BJ | B43: FLAG:RENEW SINGLE PCC PAVING FLAG-63MM | C43: GROUNDWORKS | D43: Paths and Pavings | E43: Paving - Precast Concrete Flag | F43: NO | G43: 11.39 | H43: =SUMIF('Contractor##'!C:C,'Planned Maint v6.2 CSV File'!C:C,'Contractor##'!F:F) -> -0.373 | I43: 7.14153 | J43: Flag:Lift remnants of existing 63mm standard size precast concrete paving flag, remove waste and debris, fill and compact hardcore to soft spots and lay new flag on 25mm bed of cement mortar (1:4), point up joints including any additional cutting and fitting to suit.
A44: 0070BK | B44: PAVING:RENEW STANDARD PCC PAVING FLAGS-63MM | C44: GROUNDWORKS | D44: Paths and Pavings | E44: Paving - Precast Concrete Flag | F44: SM | G44: 30.73 | H44: =SUMIF('Contractor##'!C:C,'Planned Maint v6.2 CSV File'!C:C,'Contractor##'!F:F) -> -0.373 | I44: 19.26771 | J44: Paving:Lift remnants of existing precast concrete paving flags, remove from site to approved tip, fill and compact hardcore to soft spots and lay 63mm standard size precast concrete paving flags on 25mm bed of cement mortar (1:4), point up joints including any additional cutting and fitting to suit.
A45: 0070CA | B45: PAVING:REGROUT PCC PAVING FLAGS | C45: GROUNDWORKS | D45: Paths and Pavings | E45: Paving - Precast Concrete Flag | F45: SM | G45: 7.8 | H45: =SUMIF('Contractor##'!C:C,'Planned Maint v6.2 CSV File'!C:C,'Contractor##'!F:F) -> -0.373 | I45: 4.8906 | J45: Paving:Regrout PCC paving, rake out joints, repoint with cement mortar (1:4).
A46: 0070CB | B46: PAVING:FILLET POINT JOINT TO WALL FLAGS | C46: GROUNDWORKS | D46: Paths and Pavings | E46: Paving - Precast Concrete Flag | F46: LM | G46: 1.69 | H46: =SUMIF('Contractor##'!C:C,'Planned Maint v6.2 CSV File'!C:C,'Contractor##'!F:F) -> -0.373 | I46: 1.05963 | J46: Paving:Rake out existing and/or fillet point in cement mortar (1:4) joint between edges of paving and wall/abutment.
A47: 0071AA | B47: FLAG:EXCAVATE AND LAY NEW PCC TACTILE –50 MM | C47: GROUNDWORKS | D47: Paths and Pavings | E47: Paving - PCC Hazard Warning | F47: SM | G47: 53 | H47: =SUMIF('Contractor##'!C:C,'Planned Maint v6.2 CSV File'!C:C,'Contractor##'!F:F) -> -0.373 | I47: 33.231 | J47: Flag:Excavate 150mm below required finished level, remove waste and debris, and fill in layers, including compacting 75mm crusher run of broken stone blinding and lay 50mm standard size precast concrete Blister type Tactile paving flags on 25mm bed of cement mortar (1:4) including point up joints and all cutting and dishing to gullies, covers and the like.
A48: 0071AB | B48: FLAG:EXCAVATE AND LAY NEW PCC TACTILE – 63MM | C48: GROUNDWORKS | D48: Paths and Pavings | E48: Paving - PCC Hazard Warning | F48: SM | G48: 56 | H48: =SUMIF('Contractor##'!C:C,'Planned Maint v6.2 CSV File'!C:C,'Contractor##'!F:F) -> -0.373 | I48: 35.112 | J48: Flag:Excavate 150mm below required finished level, remove waste and debris, and fill in layers, including compacting 75mm crusher run of broken stone blinding and lay 63mm standard size precast concrete Blister Type Tactile paving flags on 25mm bed of cement mortar (1:4) including point up joints and all cutting and dishing to gullies, covers and the like.
A49: 0071AC | B49: FLAG:EXCAVATE AND LAY NEW PCC HAZARD STRIP –50 MM | C49: GROUNDWORKS | D49: Paths and Pavings | E49: Paving - PCC Hazard Warning | F49: LM | G49: 33.62 | H49: =SUMIF('Contractor##'!C:C,'Planned Maint v6.2 CSV File'!C:C,'Contractor##'!F:F) -> -0.373 | I49: 21.07974 | J49: Flag:Excavate 150mm below required finished level, remove waste and debris, and fill in layers, including compacting 75mm crusher run of broken stone blinding and lay n.e. 450mm wide strip of 50mm standard size precast concrete Corduroy type Hazard Warning paving flags on 25mm bed of cement mortar (1:4) including point up joints and all cutting and dishing to gullies, covers and the like.
A50: 0071AD | B50: FLAG:EXCAVATE AND LAY NEW PCC HAZARD STRIP – 63MM | C50: GROUNDWORKS | D50: Paths and Pavings | E50: Paving - PCC Hazard Warning | F50: LM | G50: 35.12 | H50: =SUMIF('Contractor##'!C:C,'Planned Maint v6.2 CSV File'!C:C,'Contractor##'!F:F) -> -0.373 | I50: 22.02024 | J50: Flag:Excavate 150mm below required finished level, remove waste and debris, and fill in layers, including compacting 75mm crusher run of broken stone blinding and lay n.e. 450mm wide strip of 63mm standard size precast concrete Blister Type Tactile paving flags on 25mm bed of cement mortar (1:4) including point up joints and all cutting and dishing to gullies, covers and the like.
A51: 0071AE | B51: FLAG:RENEW SINGLE 50 MM PCC CORDUROY PAVING FLAG | C51: GROUNDWORKS | D51: Paths and Pavings | E51: Paving - PCC Hazard Warning | F51: NO | G51: 17.19 | H51: =SUMIF('Contractor##'!C:C,'Planned Maint v6.2 CSV File'!C:C,'Contractor##'!F:F) -> -0.373 | I51: 10.77813 | J51: Flag:Lift remnants of existing 50mm standard Corduroy type Hazard Warning precast concrete paving flag, remove waste and debris, fill and compact hardcore to soft spots and lay new flag on 25mm bed of cement mortar (1:4), point up joints including any additional cutting and fitting to suit.
A52: 0071AF | B52: FLAG:RENEW SINGLE 50 MMPCC TACTILE PAVING FLAG | C52: GROUNDWORKS | D52: Paths and Pavings | E52: Paving - PCC Hazard Warning | F52: NO | G52: 15.14 | H52: =SUMIF('Contractor##'!C:C,'Planned Maint v6.2 CSV File'!C:C,'Contractor##'!F:F) -> -0.373 | I52: 9.49278 | J52: Flag:Lift remnants of existing 50mm standard Blister type Tacktile precast concrete paving flag, remove waste and debris, fill and compact hardcore to soft spots and lay new flag on 25mm bed of cement mortar (1:4), point up joints including any additional cutting and fitting to suit.
A53: 0071AG | B53: FLAG:RENEW SINGLE 63 MM PCC CORDUROY PAVING FLAG | C53: GROUNDWORKS | D53: Paths and Pavings | E53: Paving - PCC Hazard Warning | F53: NO | G53: 19.19 | H53: =SUMIF('Contractor##'!C:C,'Planned Maint v6.2 CSV File'!C:C,'Contractor##'!F:F) -> -0.373 | I53: 12.03213 | J53: Flag:Lift remnants of existing 50mm standard Corduroy type Hazard Warning precast concrete paving flag, remove waste and debris, fill and compact hardcore to soft spots and lay new flag on 25mm bed of cement mortar (1:4), point up joints including any additional cutting and fitting to suit.
A54: 0071AH | B54: FLAG:RENEW SINGLE 63MM PCC TACTILE PAVING FLAG | C54: GROUNDWORKS | D54: Paths and Pavings | E54: Paving - PCC Hazard Warning | F54: NO | G54: 16.26 | H54: =SUMIF('Contractor##'!C:C,'Planned Maint v6.2 CSV File'!C:C,'Contractor##'!F:F) -> -0.373 | I54: 10.19502 | J54: Flag:Lift remnants of existing 50mm standard Blister type Tacktile precast concrete paving flag, remove waste and debris, fill and compact hardcore to soft spots and lay new flag on 25mm bed of cement mortar (1:4), point up joints including any additional cutting and fitting to suit.
A55: 0071AJ | B55: PAVING:RENEW TACTILE PCC PAVING FLAGS - 50MM | C55: GROUNDWORKS | D55: Paths and Pavings | E55: Paving - PCC Hazard Warning | F55: SM | G55: 36.54 | H55: =SUMIF('Contractor##'!C:C,'Planned Maint v6.2 CSV File'!C:C,'Contractor##'!F:F) -> -0.373 | I55: 22.91058 | J55: Paving:Lift remnants of existing precast concrete paving flags, remove from site to approved tip, fill and compact hardcore to soft spots and lay 50mm standard Blister type Tactile precast concrete paving flags on 25mm bed of cement mortar (1:4), point up joints including any additional cutting and fitting to suit.
A56: 0071AK | B56: PAVING:RENEW TACTILE PCC PAVING FLAGS - 63MM | C56: GROUNDWORKS | D56: Paths and Pavings | E56: Paving - PCC Hazard Warning | F56: SM | G56: 38.61 | H56: =SUMIF('Contractor##'!C:C,'Planned Maint v6.2 CSV File'!C:C,'Contractor##'!F:F) -> -0.373 | I56: 24.20847 | J56: Paving:Lift remnants of existing precast concrete paving flags, remove from site to approved tip, fill and compact hardcore to soft spots and lay 63mm standard Blister type Tactile precast concrete paving flags on 25mm bed of cement mortar (1:4), point up joints including any additional cutting and fitting to suit.
A57: 0071AL | B57: PAVING:RENEW PCC HAZARD STRIP –50 MM | C57: GROUNDWORKS | D57: Paths and Pavings | E57: Paving - PCC Hazard Warning | F57: LM | G57: 24.95 | H57: =SUMIF('Contractor##'!C:C,'Planned Maint v6.2 CSV File'!C:C,'Contractor##'!F:F) -> -0.373 | I57: 15.64365 | J57: Paving:Lift remnants of existing precast concrete paving flags, remove from site to approved tip, fill and compact hardcore to soft spots and lay n.e. 450mm wide strip of 50mm standard size precast concrete Corduroy type Hazard Warning paving flags on 25mm bed of cement mortar (1:4) including point up joints and all cutting and dishing to gullies, covers and the like.
A58: 0071AM | B58: PAVING:RENEW PCC HAZARD STRIP –63 MM | C58: GROUNDWORKS | D58: Paths and Pavings | E58: Paving - PCC Hazard Warning | F58: LM | G58: 26 | H58: =SUMIF('Contractor##'!C:C,'Planned Maint v6.2 CSV File'!C:C,'Contractor##'!F:F) -> -0.373 | I58: 16.302 | J58: Paving:Lift remnants of existing precast concrete paving flags, remove from site to approved tip, fill and compact hardcore to soft spots and lay n.e. 450mm wide strip of 63mm standard size precast concrete Corduroy type Hazard Warning paving flags on 25mm bed of cement mortar (1:4) including point up joints and all cutting and dishing to gullies, covers and the like.
A59: 0090AA | B59: PAVING:REBED BRICK PAVING-MORTAR OR SAND | C59: GROUNDWORKS | D59: Paths and Pavings | E59: Paving - Brick | F59: SM | G59: 57.17 | H59: =SUMIF('Contractor##'!C:C,'Planned Maint v6.2 CSV File'!C:C,'Contractor##'!F:F) -> -0.373 | I59: 35.84559 | J59: Paving:Take up loose brick paving, set aside, clean bed and bricks, and relay brick paving including jointing and pointing in cement mortar (1:4) or joint filling sand including all bonding.
A60: 0090BA | B60: PAVING:RENEW BRICK PAVING-MORTAR OR SAND | C60: GROUNDWORKS | D60: Paths and Pavings | E60: Paving - Brick | F60: SM | G60: 67 | H60: =SUMIF('Contractor##'!C:C,'Planned Maint v6.2 CSV File'!C:C,'Contractor##'!F:F) -> -0.373 | I60: 42.009 | J60: Paving:Renew brick paving including take up existing, remove suplus spoil, fill and compact hardcore to soft spots and lay new paving on 25mm bed of cement mortar (1:4) or 50mm sand bed including all pointing and cutting and bonding.
A61: 0090BB | B61: PAVING:LAY NEW BRICK PAVING-MORTAR OR SAND | C61: GROUNDWORKS | D61: Paths and Pavings | E61: Paving - Brick | F61: SM | G61: 84.33 | H61: =SUMIF('Contractor##'!C:C,'Planned Maint v6.2 CSV File'!C:C,'Contractor##'!F:F) -> -0.373 | I61: 52.87491 | J61: Paving:Supply and lay new brick paving including excavate to level, lay 100mm hardcore bed and lay new paving on 25mm bed of cement mortar (1:4) or 50mm sand bed including all pointing and cutting and bonding.
A62: 0090CA | B62: PAVING:RENEW GRAVEL PAVING 30MM | C62: GROUNDWORKS | D62: Paths and Pavings | E62: Paving - Gravel | F62: SM | G62: 5.45 | H62: =SUMIF('Contractor##'!C:C,'Planned Maint v6.2 CSV File'!C:C,'Contractor##'!F:F) -> -0.373 | I62: 3.41715 | J62: Paving:Renew gravel paving to paths and driveways ne 30mm thick including take up and clear away existing, supply, spread and level washed gravel to existing surfaces.
A63: 0090DA | B63: PAVING:RENEW HOGGIN PAVING 30MM | C63: GROUNDWORKS | D63: Paths and Pavings | E63: Paving - Hoggin | F63: SM | G63: 6.75 | H63: =SUMIF('Contractor##'!C:C,'Planned Maint v6.2 CSV File'!C:C,'Contractor##'!F:F) -> -0.373 | I63: 4.23225 | J63: Paving:Renew gravel paving to paths and driveways ne 30mm thick including take up and clear away existing, supply, spread and level and compact natural hoggin to existing surfaces.
A64: 0091AA | B64: PAVING:REBED GRANITE SETT | C64: GROUNDWORKS | D64: Paths and Pavings | E64: Paving - Setts | F64: SM | G64: 51.78 | H64: =SUMIF('Contractor##'!C:C,'Planned Maint v6.2 CSV File'!C:C,'Contractor##'!F:F) -> -0.373 | I64: 32.46606 | J64: Paving:Take up loose granite sett paving, set aside, clean bed and setts, lay and point setts in cement mortar (1:4) including all bonding.
A65: 0091BA | B65: PAVING:RENEW 150MM GRANITE SETT | C65: GROUNDWORKS | D65: Paths and Pavings | E65: Paving - Setts | F65: SM | G65: 91.45 | H65: =SUMIF('Contractor##'!C:C,'Planned Maint v6.2 CSV File'!C:C,'Contractor##'!F:F) -> -0.373 | I65: 57.33915 | J65: Paving:Renew 150x150mmx150mm granite sett paving including take up existing and clear away, fill and compact hardcore to soft spots and lay newsetts on 30mm bed of cement mortar (1:4) including all pointing, cutting and bonding.
A66: 0091BB | B66: PAVING:RENEW 200MM GRANITE SETT | C66: GROUNDWORKS | D66: Paths and Pavings | E66: Paving - Setts | F66: SM | G66: 87.48 | H66: =SUMIF('Contractor##'!C:C,'Planned Maint v6.2 CSV File'!C:C,'Contractor##'!F:F) -> -0.373 | I66: 54.84996 | J66: Paving:Renew 200x150mmx150mm granite sett paving including take up existing and clear away, fill and compact hardcore to soft spots and lay new setts on 30mm bed of cement mortar (1:4) including all pointing, cutting and bonding.
A67: 0091CA | B67: PAVING:RENEW RECLAIMED 150MM GRANITE SETT | C67: GROUNDWORKS | D67: Paths and Pavings | E67: Paving - Setts | F67: SM | G67: 75.76 | H67: =SUMIF('Contractor##'!C:C,'Planned Maint v6.2 CSV File'!C:C,'Contractor##'!F:F) -> -0.373 | I67: 47.50152 | J67: Paving:Renew 150x150mmx150mm granite sett paving including take up existing and clear away, fill and compact hardcore to soft spots and lay reclaimed setts on 30mm bed of cement mortar (1:4) including all pointing, cutting and bonding.
A68: 0091CB | B68: PAVING:RENEW RECLAIMED 200MM GRANITE SETT | C68: GROUNDWORKS | D68: Paths and Pavings | E68: Paving - Setts | F68: SM | G68: 71.79 | H68: =SUMIF('Contractor##'!C:C,'Planned Maint v6.2 CSV File'!C:C,'Contractor##'!F:F) -> -0.373 | I68: =(1+H68)*G68 -> 45.01233 | J68: Paving:Renew 200x150mmx150mm granite sett paving including take up existing and clear away, fill and compact hardcore to soft spots and lay reclaimed setts on 30mm bed of cement mortar(1:4) including all pointing, cutting and bonding.
A69: 0091DA | B69: PAVING:REBED ARTSTONE SETT | C69: GROUNDWORKS | D69: Paths and Pavings | E69: Paving - Artstone Setts | F69: SM | G69: 47.1 | H69: =SUMIF('Contractor##'!C:C,'Planned Maint v6.2 CSV File'!C:C,'Contractor##'!F:F) -> -0.373 | I69: 29.5317 | J69: Paving:Take up loose artstone (tegula) sett paving, set aside, clean bed and setts, lay and point setts in cement mortar (1:4) including all bonding.
A70: 0091DB | B70: PAVING:RENEW 60MM ARTSTONE SETT | C70: GROUNDWORKS | D70: Paths and Pavings | E70: Paving - Artstone Setts | F70: SM | G70: 62.5 | H70: =SUMIF('Contractor##'!C:C,'Planned Maint v6.2 CSV File'!C:C,'Contractor##'!F:F) -> -0.373 | I70: 39.1875 | J70: Paving:Renew random sized 60mm artstone (tegula) sett paving including take up existing and clear away, fill and compact hardcore to soft spots and lay newsetts on 30mm bed of cement mortar (1:4) including all pointing, cutting and bonding.
A71: 0091DC | B71: PAVING:RENEW 80MM ARTSTONE SETT | C71: GROUNDWORKS | D71: Paths and Pavings | E71: Paving - Artstone Setts | F71: SM | G71: 69.12 | H71: =SUMIF('Contractor##'!C:C,'Planned Maint v6.2 CSV File'!C:C,'Contractor##'!F:F) -> -0.373 | I71: 43.33824 | J71: Paving:Renew random sized 80 mm artstone (tegula) sett paving including take up existing and clear away, fill and compact hardcore to soft spots and lay new setts on 30mm bed of cement mortar (1:4) including all pointing, cutting and bonding.
A72: 0092AA | B72: PAVING:REBED COBBLES | C72: GROUNDWORKS | D72: Paths and Pavings | E72: Paving - Cobbles | F72: SM | G72: 47.1 | H72: =SUMIF('Contractor##'!C:C,'Planned Maint v6.2 CSV File'!C:C,'Contractor##'!F:F) -> -0.373 | I72: 29.5317 | J72: Paving:Take up existing cobble paving:50-75mm, set aside, clean off, relay, bedding 30mm thick in cement mortar (1:4) jointing to a height of two thirds of the cobble in dry mortar tightly butted, washed and brushed.
A73: 0092BA | B73: PAVING:RENEW COBBLES | C73: GROUNDWORKS | D73: Paths and Pavings | E73: Paving - Cobbles | F73: SM | G73: 67.04 | H73: =SUMIF('Contractor##'!C:C,'Planned Maint v6.2 CSV File'!C:C,'Contractor##'!F:F) -> -0.373 | I73: 42.03408 | J73: Paving:Renew cobble paving including taking up existing and clear away, fill and compact hardcore to softspots and lay new cobble paving:50-75mm, bedding 30mm thick in cement mortar (1:4) jointing to a height of two thirds of the cobble in dry mortar tightly butted, washed and brushed.
A74: 0093AA | B74: PAVING:REBED INTERLOCK BLOCKS | C74: GROUNDWORKS | D74: Paths and Pavings | E74: Paving - Interlock Blocks | F74: SM | G74: 28.59 | H74: =SUMIF('Contractor##'!C:C,'Planned Maint v6.2 CSV File'!C:C,'Contractor##'!F:F) -> -0.373 | I74: 17.92593 | J74: Paving:Take up loose interlocking paving blocks, set aside, clean blocks, make up levels and soft spots to sand bed as necessary, relay blocks including bonding, compacting with plate vibrator, jointing and pointing with approved joint filling sand.
A75: 0093BA | B75: PAVING:RENEW 60MM INTERLOCK | C75: GROUNDWORKS | D75: Paths and Pavings | E75: Paving - Interlock Blocks | F75: SM | G75: 54.27 | H75: =SUMIF('Contractor##'!C:C,'Planned Maint v6.2 CSV File'!C:C,'Contractor##'!F:F) -> -0.373 | I75: 34.02729 | J75: Paving:Renew upto 60mm thick interlocking precast concrete paving blocks including take up existing and clear away, fill and compact hardcore to soft spots and lay new paving on 60mm bed of sand including bonding, compacting with plate vibrator, jointing and pointing with approved joint filling sand.
A76: 0093CA | B76: PAVING:RENEW 80MM INTERLOCK | C76: GROUNDWORKS | D76: Paths and Pavings | E76: Paving - Interlock Blocks | F76: SM | G76: 65.27 | H76: =SUMIF('Contractor##'!C:C,'Planned Maint v6.2 CSV File'!C:C,'Contractor##'!F:F) -> -0.373 | I76: 40.92429 | J76: Paving:Renew 80mm thick interlocking precast concrete paving blocks including take up existing and clear away, fill and compact hardcore to soft spots and lay new paving on 60mm bed of sand including bonding, compacting with plate vibrator, jointing and pointing with approved joint filling sand.
A77: 0094AA | B77: PAVING:REBED CHAMFER EDGE BLOCKS | C77: GROUNDWORKS | D77: Paths and Pavings | E77: Paving - Chamfer Edge Blocks | F77: SM | G77: 28.59 | H77: =SUMIF('Contractor##'!C:C,'Planned Maint v6.2 CSV File'!C:C,'Contractor##'!F:F) -> -0.373 | I77: 17.92593 | J77: Paving:Take up loose chamfered edge concrete block paving, set aside, clean blocks, make up levels and soft spots to sand bed as necessary, relay blocks including bonding, compacting with plate vibrator, jointing and pointing with approved joint filling sand.
A78: 0094BA | B78: PAVING:RENEW CHAMFER EDGE BLOCK | C78: GROUNDWORKS | D78: Paths and Pavings | E78: Paving - Chamfer Edge Blocks | F78: SM | G78: 54.44 | H78: =SUMIF('Contractor##'!C:C,'Planned Maint v6.2 CSV File'!C:C,'Contractor##'!F:F) -> -0.373 | I78: 34.13388 | J78: Paving:Renew 200x100x65mm thick concrete paving blocks with chamfered edge including take up existing and clear away, fill and compact hardcore to soft spots and lay new paving on 60mm bed of sand including bonding, compacting with plate vibrator, jointing and pointing with approved joint filling sand.
A79: 0095AA | B79: PAVING:REBED GRASS CONCRETE | C79: GROUNDWORKS | D79: Paths and Pavings | E79: Paving - Grass Concrete | F79: SM | G79: 22.06 | H79: =SUMIF('Contractor##'!C:C,'Planned Maint v6.2 CSV File'!C:C,'Contractor##'!F:F) -> -0.373 | I79: 13.83162 | J79: Paving:Take up loose grass concrete paving units, set aside, clean units, make up levels and soft spots to sand bed as necessary, relay units, voids filled with topsoil and sown with grass seed.
A80: 0095BA | B80: PAVING:RENEW GRASS CONCRETE | C80: GROUNDWORKS | D80: Paths and Pavings | E80: Paving - Grass Concrete | F80: SM | G80: 45.21 | H80: =SUMIF('Contractor##'!C:C,'Planned Maint v6.2 CSV File'!C:C,'Contractor##'!F:F) -> -0.373 | I80: 28.34667 | J80: Paving:Renew 120mm thick precast concrete perforated paving units including take up existing and clear away, fill and compact hardcore to soft spots and lay new units on 25mm bed of sand, voids filled with topsoil and sown with grass seed.
A81: 0096AA | B81: TREE:GRILLE-BRICK:1350X1350MM:450 HOLE | C81: GROUNDWORKS | D81: Paths and Pavings | E81: Paving - Tree Grilles | F81: NO | G81: 312.5 | H81: =SUMIF('Contractor##'!C:C,'Planned Maint v6.2 CSV File'!C:C,'Contractor##'!F:F) -> -0.373 | I81: 195.9375 | J81: Tree:Grille:supply and lay special quality paving bricks in grid size 1350 x 1350mm around tree on 50mm bed of sharp sand, well tamped and pointed in sand, with 450 x 450mm hole for tree
A82: 0096AB | B82: TREE:GRILLE-BRICK:1800X1800MM:450 HOLE | C82: GROUNDWORKS | D82: Paths and Pavings | E82: Paving - Tree Grilles | F82: NO | G82: 528.19 | H82: =SUMIF('Contractor##'!C:C,'Planned Maint v6.2 CSV File'!C:C,'Contractor##'!F:F) -> -0.373 | I82: 331.17513 | J82: Tree:Grille:supply and lay special quality paving bricks in grid size 1800 x 1800mm around tree on 50mm bed of sharp sand, well tamped and pointed in sand, with 450 x 450mm hole for tree
A83: 0096AC | B83: TREE:GRILLE-BRICK:2250X22500MM:450 HOLE | C83: GROUNDWORKS | D83: Paths and Pavings | E83: Paving - Tree Grilles | F83: NO | G83: 806.87 | H83: =SUMIF('Contractor##'!C:C,'Planned Maint v6.2 CSV File'!C:C,'Contractor##'!F:F) -> -0.373 | I83: 505.90749 | J83: Tree:Grille:supply and lay special quality paving bricks in grid size 2250 x 2250mm around tree on 50mm bed of sharp sand, well tamped and pointed in sand, with 450 x 450mm hole for tree
A84: 0096AD | B84: TREE:GRILLE-BRICK:2700X2700MM:450 HOLE | C84: GROUNDWORKS | D84: Paths and Pavings | E84: Paving - Tree Grilles | F84: NO | G84: 1151.25 | H84: =SUMIF('Contractor##'!C:C,'Planned Maint v6.2 CSV File'!C:C,'Contractor##'!F:F) -> -0.373 | I84: 721.83375 | J84: Tree:Grille:supply and lay special quality paving bricks in grid size 2700 x 2700mm around tree on 50mm bed of sharp sand, well tamped and pointed in sand, with 450 x 450mm hole for tree
A85: 0096AE | B85: TREE:GRILLE–GRANITE SETT:1000X1000MM:400 HOLE | C85: GROUNDWORKS | D85: Paths and Pavings | E85: Paving - Tree Grilles | F85: NO | G85: 184.37 | H85: =SUMIF('Contractor##'!C:C,'Planned Maint v6.2 CSV File'!C:C,'Contractor##'!F:F) -> -0.373 | I85: 115.59999 | J85: Tree:Grille:supply and lay granite setts in grid size 1000 x 1000mm around tree on 50mm bed of sharp sand, well tamped and pointed in sand, with 450 x 450mm hole for tree
A86: 0096AF | B86: TREE:GRILLE–GRANITE SETT:1400X1400MM:400 HOLE | C86: GROUNDWORKS | D86: Paths and Pavings | E86: Paving - Tree Grilles | F86: NO | G86: 334.06 | H86: =SUMIF('Contractor##'!C:C,'Planned Maint v6.2 CSV File'!C:C,'Contractor##'!F:F) -> -0.373 | I86: 209.45562 | J86: Tree:Grille:supply and lay granite setts in grid size 1400 x 1400mm around tree on 50mm bed of sharp sand, well tamped and pointed in sand, with 450 x 450mm hole for tree
A87: 0096AG | B87: TREE:GRILLE–GRANITE SETT:1800X1800MM:400 HOLE | C87: GROUNDWORKS | D87: Paths and Pavings | E87: Paving - Tree Grilles | F87: NO | G87: 527.19 | H87: =SUMIF('Contractor##'!C:C,'Planned Maint v6.2 CSV File'!C:C,'Contractor##'!F:F) -> -0.373 | I87: 330.54813 | J87: Tree:Grille:supply and lay granite setts in grid size 1800 x 1800mm around tree on 50mm bed of sharp sand, well tamped and pointed in sand, with 450 x 450mm hole for tree
A88: 0096AH | B88: TREE:GRILLE–GRANITE SETT:2000X2000MM:400 HOLE | C88: GROUNDWORKS | D88: Paths and Pavings | E88: Paving - Tree Grilles | F88: NO | G88: 644.37 | H88: =SUMIF('Contractor##'!C:C,'Planned Maint v6.2 CSV File'!C:C,'Contractor##'!F:F) -> -0.373 | I88: 404.01999 | J88: Tree:Grille:supply and lay granite setts in grid size 2000 x 2000mm around tree on 50mm bed of sharp sand, well tamped and pointed in sand, with 450 x 450mm hole for tree
A89: 0096AI | B89: TREE:GRILLE:RENEW GRAVEL PAVING 30MM TO TREE GRID | C89: GROUNDWORKS | D89: Paths and Pavings | E89: Paving - Tree Grilles | F89: NO | G89: 6.39 | H89: =SUMIF('Contractor##'!C:C,'Planned Maint v6.2 CSV File'!C:C,'Contractor##'!F:F) -> -0.373 | I89: 4.00653 | J89: Paving:Renew gravel paving to tree grid or grille ne 30mm thick including take up grill and set aside, take up gravel and clear away existing, resey grid to level and supply, spread and level washed gravel.
A90: 0097AA | B90: PAVING:TEMPORARY CONCRETE REPAIR | C90: GROUNDWORKS | D90: Paths and Pavings | E90: Paving - Temporary Repairs | F90: IT | G90: 27.43 | H90: =SUMIF('Contractor##'!C:C,'Planned Maint v6.2 CSV File'!C:C,'Contractor##'!F:F) -> -0.373 | I90: 17.19861 | J90: Paving:Break out existing defective paving of any type if necessary ne 100mm thick and clear away, remove waste and debris, fill in void with lean mix concrete ensuring flush edges to existing finishes in areas ne 1.00sm.
A91: 0098AA | B91: HARDCORE:ADDITIONAL SUB-BASE OR BED NE 150 | C91: GROUNDWORKS | D91: Paths and Pavings | E91: Hardcore | F91: SM | G91: 24.27 | H91: =SUMIF('Contractor##'!C:C,'Planned Maint v6.2 CSV File'!C:C,'Contractor##'!F:F) -> -0.373 | I91: 15.21729 | J91: Hardcore:Extra for additional hardcore sub-base or bed ne 150mm thick laid under any type of paving including excavate, remove spoil, level and compact bottoms, remove waste and debris, (to be charged only when specifically ordered by Client’s Representative).
A92: 0130AA | B92: STEP:FORM OR RENEW STEP IN CONCRETE PAVING | C92: GROUNDWORKS | D92: Steps, Stairs and Ramps | E92: Steps, Stairs and Ramps - Institu and Precast Concrete | F92: IT | G92: 29.14 | H92: =SUMIF('Contractor##'!C:C,'Planned Maint v6.2 CSV File'!C:C,'Contractor##'!F:F) -> -0.373 | I92: 18.27078 | J92: Step:Form step ne 1000x300x200mm in concrete paving including all necessary excavation, hardcore, extra concrete and all formwork with surfaces trowelled smooth, make good to adjacent finishes and remove waste and debris.
A93: 0130AB | B93: STEP:FORM OR RENEW PCC STEP IN PAVING | C93: GROUNDWORKS | D93: Steps, Stairs and Ramps | E93: Steps, Stairs and Ramps - Institu and Precast Concrete | F93: IT | G93: 34.24 | H93: =SUMIF('Contractor##'!C:C,'Planned Maint v6.2 CSV File'!C:C,'Contractor##'!F:F) -> -0.373 | I93: 21.46848 | J93: Step:Form step in precast concrete paving ne 1000x300x200mm including all extra excavation, hardcore, blinding and bed precast concrete flags to steps and risers on 25mm mortar bed including all cutting, make good to adjacent finishes and remove waste and debris.
A94: 0130AC | B94: STEP:FORM BRICK ON EDGE STEP | C94: GROUNDWORKS | D94: Steps, Stairs and Ramps | E94: Steps, Stairs and Ramps - Institu and Precast Concrete | F94: LM | G94: 16.49 | H94: =SUMIF('Contractor##'!C:C,'Planned Maint v6.2 CSV File'!C:C,'Contractor##'!F:F) -> -0.373 | I94: 10.33923 | J94: Step:Form step with approved brick on edge, bedded and pointed in cement mortar (1:4).
A95: 0130AD | B95: STEP:REPAIR DAMAGED CONCRETE | C95: GROUNDWORKS | D95: Steps, Stairs and Ramps | E95: Steps, Stairs and Ramps - Institu and Precast Concrete | F95: IT | G95: 14.67 | H95: =SUMIF('Contractor##'!C:C,'Planned Maint v6.2 CSV File'!C:C,'Contractor##'!F:F) -> -0.373 | I95: 9.19809 | J95: Step:Cut out damaged section and repair step as necessary with concrete (1:1:5:3) or cement and sand polymer enhanced cementitious mortar including formwork and trowel finish.
A96: 0130DB | B96: STEP:REFIX AND BED LOOSE STEP | C96: GROUNDWORKS | D96: Steps, Stairs and Ramps | E96: Steps, Stairs and Ramps - Institu and Precast Concrete | F96: IT | G96: 5.42 | H96: =SUMIF('Contractor##'!C:C,'Planned Maint v6.2 CSV File'!C:C,'Contractor##'!F:F) -> -0.373 | I96: 3.39834 | J96: Step:Rebed loose precast concrete step or loose bricks to brick step including remove existing, clean off as necessary and rebed in cement mortar (1:4) (per step).
A97: 0130EA | B97: RAMP:CONSTRUCT CONCRETE RAMP | C97: GROUNDWORKS | D97: Steps, Stairs and Ramps | E97: Steps, Stairs and Ramps - Institu and Precast Concrete | F97: LM | G97: 79.08 | H97: =SUMIF('Contractor##'!C:C,'Planned Maint v6.2 CSV File'!C:C,'Contractor##'!F:F) -> -0.373 | I97: 49.58316 | J97: Ramp:Construct insitu concrete ramp average 150mm thick, ne 1.5m wide overall with 50mm high insitu concrete kerbs to both sides, laid to gradient 1:12 with pinked finish including all excavation, hardcore, reinforcement and formwork.
A98: 0130FA | B98: NOSING:RENEW INSET NOSING TO PCC STEP | C98: GROUNDWORKS | D98: Steps, Stairs and Ramps | E98: Steps - Institu PCC Concrete | F98: LM | G98: 24.94 | H98: =SUMIF('Contractor##'!C:C,'Planned Maint v6.2 CSV File'!C:C,'Contractor##'!F:F) -> -0.373 | I98: 15.63738 | J98: Nosing:Renew Ferodo type Inset nosing to step in precast concrete paving ne 200mm wide including all jointing, bedding and pointing as required and all cutting, make good to adjacent finishes and remove waste and debris.
A99: 0130FB | B99: NOSING:REFIX BED LOOSE INSET NOSING TO PCC STEP | C99: GROUNDWORKS | D99: Steps, Stairs and Ramps | E99: Steps - Institu PCC Concrete | F99: IT | G99: 12.94 | H99: =SUMIF('Contractor##'!C:C,'Planned Maint v6.2 CSV File'!C:C,'Contractor##'!F:F) -> -0.373 | I99: 8.11338 | J99: Step:Rebed loose Ferodo type inset nosing to precast concrete step including remove existing, clean off as necessary and rebed as required(per step).
A100: 0150AA | B100: FLOOR:RENEW INTERNAL CONCRETE | C100: FOUNDATIONS | D100: Floors | E100: Concrete Internal Renewal | F100: SM | G100: 91.26 | H100: =SUMIF('Contractor##'!C:C,'Planned Maint v6.2 CSV File'!C:C,'Contractor##'!F:F) -> -0.373 | I100: 57.22002 | J100: Floor:Renew complete any floor with new concrete floor including break up existing floor, applied finish and sub-base under and remove from site, excavate as necessary, compact bottoms and lay and compact up to 175mm hardcore bed blinded with sand, lay 1200 gauge polythene damp proof membrane and 100mm concrete slab (1:2:4) with 50mm cement and sand floor screed trowelled smooth to receive floor finish,remove and refix skirtings as necessary and make good all finishes.
A101: 0150AB | B101: FLOOR:RENEW INTERNAL CONCRETE INSULATION | C101: FOUNDATIONS | D101: Floors | E101: Concrete Internal Renewal | F101: SM | G101: 123.62 | H101: =SUMIF('Contractor##'!C:C,'Planned Maint v6.2 CSV File'!C:C,'Contractor##'!F:F) -> -0.373 | I101: 77.50974 | J101: Floor:Renew complete any floor with new concrete floor including break up existing floor, applied finish and sub-base under and remove from site, excavate as necessary, compact bottoms and lay and compact up to 175mm hardcore bed blinded with sand, lay 1200 gauge polythene damp proof membrane, 50mm Jablite or other equal and approved insulation board, both membrane and board turned up 150mm at edges, 150mm concrete slab (1:2:4) with mesh reinforcement and upto 65mm cement and sand floor screed trowelled smooth to receive floor finish, remove and refix skirtings as necessary and make good all finishes.
A102: 0150AC | B102: FLOOR:RENEW INTERNAL REINFORCED CONCRETE | C102: FOUNDATIONS | D102: Floors | E102: Concrete Internal Renewal | F102: SM | G102: 83.87 | H102: =SUMIF('Contractor##'!C:C,'Planned Maint v6.2 CSV File'!C:C,'Contractor##'!F:F) -> -0.373 | I102: 52.58649 | J102: Floor:Renew complete any floor with new concrete floor including break up existing floor, applied finish and sub-base under and remove from site, excavate as necessary, compact bottoms and lay and compact up to 175mm hardcore bed blinded with sand, lay 1200 gauge polythene damp proof membrane and 100mm concrete slab (1:2:4) with mesh reinforcement 50mm cement and sand floor screed trowelled smooth to receive floor finish, remove and refix skirtings as necessary and make good all finishes.
A103: 0155AA | B103: FLOOR:HARDCORE FILL UNDER FLOOR | C103: SPECIALIST TREATMENTS | D103: Fungus and Beetle Eradication and DPC Works | E103: Works to Sub-Floors due to Fungus and Beetle Eradication or DPC Works | F103: CM | G103: 57.78 | H103: =SUMIF('Contractor##'!C:C,'Planned Maint v6.2 CSV File'!C:C,'Contractor##'!F:F) -> -0.259 | I103: 42.81498 | J103: Floor:Fill under floor with clean broken and graded hardcore or other filling to approval of Client’s Representative, consolidate and blind ready to receive PVC membrane and concrete floor slab as specified all in conjunction with injected dpc wall treatment.
A104: 0171AD | B104: FENCING:RENEW 1.8M BOARD - TIMBER POST | C104: FENCING AND GATES | D104: Fencing | E104: Fencing - Boarded | F104: LM | G104: 93.18 | H104: =SUMIF('Contractor##'!C:C,'Planned Maint v6.2 CSV File'!C:C,'Contractor##'!F:F) -> -0.373 | I104: 58.42386 | J104: Fencing:Renew or provide new 1.65m tanalised timber vertical board fencing including for taking down remnants of existing fence and posts set in concrete, remove from site to approved tip, and set 125x125mm x 2.65m long softwood posts in concrete at ne 1.80m centres with three 69x44mm softwood rails bolted to posts and 144x20mm vertical boards nailed to rails, softwood gravel board with centre prop (measured per metre run of fencing).
A105: 0171AE | B105: FENCING:RENEW 1.2M BOARD PCC POST GRAVEL BOARD | C105: FENCING AND GATES | D105: Fencing | E105: Fencing - Boarded | F105: LM | G105: 66.96 | H105: =SUMIF('Contractor##'!C:C,'Planned Maint v6.2 CSV File'!C:C,'Contractor##'!F:F) -> -0.373 | I105: 41.98392 | J105: Fencing:Renew or provide new 1.05m tanalised timber vertical board fencing including for taking down remnants of existing fence and posts set in concrete, remove waste and debris, and set 100x100mm x 1.65m long concrete posts in concrete at ne 1.80m centres with two 69x44mm softwood rails bolted to posts and 144x20mm vertical boards nailed to rails, precast concrete gravel board with centre prop (measured per metre run of fencing).
A106: 0171AF | B106: FENCING:RENEW 1.2M BOARD TIMBER POST | C106: FENCING AND GATES | D106: Fencing | E106: Fencing - Boarded | F106: LM | G106: 63.85 | H106: =SUMIF('Contractor##'!C:C,'Planned Maint v6.2 CSV File'!C:C,'Contractor##'!F:F) -> -0.373 | I106: 40.03395 | J106: Fencing:Renew or provide new 1.05m tanalised timber vertical board fencing including for taking down remnants of existing fence and posts set in concrete, remove waste and debris, and set 100x100mm x 1.65m long softwood posts in concrete at ne 1.80m centres with two 69x44mm softwood rails bolted to posts and 144x20mm vertical boards nailed to rails, softwood gravel board with centre prop (measured per metre run of fencing).
A107: 0171AG | B107: FENCING:RENEW 1.8M BOARD PCC POST | C107: FENCING AND GATES | D107: Fencing | E107: Fencing - Boarded | F107: LM | G107: 98.81 | H107: =SUMIF('Contractor##'!C:C,'Planned Maint v6.2 CSV File'!C:C,'Contractor##'!F:F) -> -0.373 | I107: 61.95387 | J107: Fencing:Renew or provide new 1.65m high tanalised timber vertical board fencing including for taking down remnants of existing fence and posts set in concrete, remove waste and debris, and set 125x125mm x 2.25m long concrete posts in concrete at ne 1.80m centres with three softwood rails 69x44mm bolted to posts and 144x20mm vertical boards nailed to rails 25x150mm softwood gravel board with centre prop (measured per metre run of fencing).
A108: 0171AH | B108: FENCING:RENEW 1.8M BOARD PCC POST GRAVEL BOARD | C108: FENCING AND GATES | D108: Fencing | E108: Fencing - Boarded | F108: LM | G108: 93.18 | H108: =SUMIF('Contractor##'!C:C,'Planned Maint v6.2 CSV File'!C:C,'Contractor##'!F:F) -> -0.373 | I108: 58.42386 | J108: Fencing:Renew or provide new 1.65m high tanalised timber vertical board fencing including for taking down remnants of existing fence and posts set in concrete, remove waste and debris, and set 125x125mm x 2.25m long concrete posts in concrete at ne 1.80m centres with three softwood rails 69x44mm bolted to posts and 144x20mm vertical boards nailed to rails precast concrete gravel board with centre prop (measured per metre run of fencing).
A109: 0171AJ | B109: FENCING:REMOVE BOARD FENCE | C109: FENCING AND GATES | D109: Fencing | E109: Fencing - Boarded | F109: LM | G109: 7.02 | H109: =SUMIF('Contractor##'!C:C,'Planned Maint v6.2 CSV File'!C:C,'Contractor##'!F:F) -> -0.373 | I109: 4.40154 | J109: Fencing:Take down and remove any height vertical board fence consisting of concrete and or timber posts set in concrete, softwood rails, gravel board and vertical boards and remove waste and debris, fill post holes with top soil.
A110: 0171AK | B110: FENCING:RENEW TIMBER GRAVEL BOARD | C110: FENCING AND GATES | D110: Fencing | E110: Fencing - Boarded | F110: NO | G110: 12.4 | H110: =SUMIF('Contractor##'!C:C,'Planned Maint v6.2 CSV File'!C:C,'Contractor##'!F:F) -> -0.373 | I110: 7.7748 | J110: Fencing:Renew or supply and fix new 25x150mm tanalised softwood gravel board and centre prop including remove existing, excavate as necessary, cut and or trim existing fence boards as necessary and fix gravel board with galvanised nails, remove waste and debris.
A111: 0171AL | B111: FENCING:RENEW PCC GRAVEL BOARD | C111: FENCING AND GATES | D111: Fencing | E111: Fencing - Boarded | F111: NO | G111: 14 | H111: =SUMIF('Contractor##'!C:C,'Planned Maint v6.2 CSV File'!C:C,'Contractor##'!F:F) -> -0.373 | I111: 8.778 | J111: Fencing:Renew or supply and fix new ne 50x225mm precast concrete gravel board and centre prop including remove existing, excavate as necessary, cut and or trim existing fence boards as necessary and fix gravel board with cleats and or bolts, remove waste and debris.
A112: 0171BA | B112: FENCING:RENEW 1.2M CLOSE BOARD PCC POST | C112: FENCING AND GATES | D112: Fencing | E112: Fencing - Close Boarded | F112: LM | G112: 66.96 | H112: =SUMIF('Contractor##'!C:C,'Planned Maint v6.2 CSV File'!C:C,'Contractor##'!F:F) -> -0.373 | I112: 41.98392 | J112: Fencing:Renew or provide new tanalised timber closeboard fencing including for taking down remnants of existing fence and posts set in concrete, remove from site to approved tip, and set 100x100x1650mm long concrete posts in concrete at 1.80m centres with two 69x44mm softwood arris rails bolted to posts and 144x20mm vertical boards 1.05m high nailed to rails, provide and fix 25x150mm tanalised softwood gravel board with centre prop. (measured per metre run of fencing).
A113: 0171BB | B113: FENCING:RENEW 1.2M CLOSE BOARD TIMBER POST | C113: FENCING AND GATES | D113: Fencing | E113: Fencing - Close Boarded | F113: LM | G113: 63.85 | H113: =SUMIF('Contractor##'!C:C,'Planned Maint v6.2 CSV File'!C:C,'Contractor##'!F:F) -> -0.373 | I113: 40.03395 | J113: Fencing:Renew or provide new tanalised timber closeboard fencing including for taking down remnants of existing fence and posts set in concrete, remove from site to approved tip, and set 100x100x1650mm long tanalised softwood posts in concrete at 1.80m centres with two 69x44mm softwood arris rails bolted to posts with 144x20mm vertical boards 1.05m high nailed to rails, provide and fix 25x150mm tanalised softwood gravel board with centre prop. (measured per metre run of fencing).
A114: 0171BC | B114: FENCING:RENEW 1.8M CLOSE BOARD PCC POST | C114: FENCING AND GATES | D114: Fencing | E114: Fencing - Close Boarded | F114: LM | G114: 98.81 | H114: =SUMIF('Contractor##'!C:C,'Planned Maint v6.2 CSV File'!C:C,'Contractor##'!F:F) -> -0.373 | I114: 61.95387 | J114: Fencing:Renew or provide new tanalised timber closeboard fencing including for taking down remnants of existing fence and posts set in concrete, remove from site to approved tip, and set 125x125x2250mm long concrete posts in concrete at 1.80m centres with three softwood arris rails 69x44mm bolted to posts and 144x20mm vertical boards 1.675m high nailed to rails, provide and fix 25x150mm tanalised softwood gravel board with centre prop. (measured per metre run of fencing).
A115: 0171BD | B115: FENCING:RENEW 1.8M CLOSE BOARD TIMBER POST | C115: FENCING AND GATES | D115: Fencing | E115: Fencing - Close Boarded | F115: LM | G115: 93.18 | H115: =SUMIF('Contractor##'!C:C,'Planned Maint v6.2 CSV File'!C:C,'Contractor##'!F:F) -> -0.373 | I115: 58.42386 | J115: Fencing:Renew or provide new tanalised timber closeboard fencing including for taking down remnants of existing fence and posts set in concrete, remove from site to approved tip, and set 125x125x2250mm long tanalised softwood posts in concrete at 1.80m centres, with three softwood arris rails 69x44mm bolted to posts and 144x20mm vertical boards 1.675m high nailed to rails, provide and fix 25x150mm tanalised gravel board with centre prop. (measured per metre run of fencing).
A116: 0172AB | B116: FENCING:RENEW CHESTNUT NE 1.5M AND POSTS | C116: FENCING AND GATES | D116: Fencing | E116: Fencing - Chestnut Pale | F116: LM | G116: 16.51 | H116: =SUMIF('Contractor##'!C:C,'Planned Maint v6.2 CSV File'!C:C,'Contractor##'!F:F) -> -0.373 | I116: 10.35177 | J116: Fencing:Renew chestnut pale fencing ne 1.50m high including for taking down remnants of existing fence and posts, remove waste and debris, and renew by driving in 60mm diameter sweet chestnut posts at 2.22m centres including galvanised accessories and sweet chestnut struts and chestnut pales at 75mm centres, fixed at head and bottom with galvanised straining wire (measured per metre run of fencing).
A117: 0172AD | B117: FENCING:RENEW CHESTNUT NE 1.5M | C117: FENCING AND GATES | D117: Fencing | E117: Fencing - Chestnut Pale | F117: LM | G117: 13.87 | H117: =SUMIF('Contractor##'!C:C,'Planned Maint v6.2 CSV File'!C:C,'Contractor##'!F:F) -> -0.373 | I117: 8.69649 | J117: Fencing:Renew existing pales and wire on existing posts by carefully removing, remove waste and debris, and renew with chestnut pales ne 1.50m high at 75mm centres fixed at head and bottom with galvanised straining wire (measured per metre run of fencing).
A118: 0172AE | B118: FENCING:LINE WIRE SUPPORT | C118: FENCING AND GATES | D118: Fencing | E118: Fencing - Chestnut Pale | F118: LM | G118: 2.13 | H118: =SUMIF('Contractor##'!C:C,'Planned Maint v6.2 CSV File'!C:C,'Contractor##'!F:F) -> -0.373 | I118: 1.33551 | J118: Fencing:Renew or fix new galvanised or PVC coated line wire to support cleft chestnut paling fence, fix wire to posts and fencing with galvanised staples and ties including remove and refix fencing as found expedient (measured per run of line wire).
A119: 0172AF | B119: FENCING:RENEW INDIVIDUAL CHESTNUT PALE | C119: FENCING AND GATES | D119: Fencing | E119: Fencing - Chestnut Pale | F119: NO | G119: 4.96 | H119: =SUMIF('Contractor##'!C:C,'Planned Maint v6.2 CSV File'!C:C,'Contractor##'!F:F) -> -0.373 | I119: 3.10992 | J119: Fencing:Renew cleft chestnut pale to fence including remove existing and remove waste and debris and fix new to match existing.
A120: 0172AG | B120: FENCING:RENEW 75MM STRAIN POST | C120: FENCING AND GATES | D120: Fencing | E120: Fencing - Chestnut Pale | F120: NO | G120: 12.65 | H120: =SUMIF('Contractor##'!C:C,'Planned Maint v6.2 CSV File'!C:C,'Contractor##'!F:F) -> -0.373 | I120: 7.93155 | J120: Fencing:Renew 75mm timber sweet chestnut straining post 1.60m long to chestnut pale fencing including connecting bolt strainers, remove waste and debris.
A121: 0173AA | B121: FENCING:RENEW 1.8M HIGH PANEL | C121: FENCING AND GATES | D121: Fencing | E121: Fencing - Interwoven and Overlap Fence Panels | F121: NO | G121: 42.65 | H121: =SUMIF('Contractor##'!C:C,'Planned Maint v6.2 CSV File'!C:C,'Contractor##'!F:F) -> -0.373 | I121: 26.74155 | J121: Fencing:Renew any interwoven or overlap fence panel ne 1.8x1.8m fixed with galvanised metal support brackets to existing posts, remove and dismantle existing and cart away debris to tip.
A122: 0173AB | B122: FENCING:RENEW 1.2M HIGH PANEL | C122: FENCING AND GATES | D122: Fencing | E122: Fencing - Interwoven and Overlap Fence Panels | F122: NO | G122: 40.64 | H122: =SUMIF('Contractor##'!C:C,'Planned Maint v6.2 CSV File'!C:C,'Contractor##'!F:F) -> -0.373 | I122: 25.48128 | J122: Fencing:Renew any interwoven or overlap fence panel ne 1.8x1.2m fixed with galvanised metal support brackets to existing posts, remove and dismantle existing and cart away debris to tip.
A123: 0173AC | B123: FENCING:RENEW 1.2M WIDE PANEL | C123: FENCING AND GATES | D123: Fencing | E123: Fencing - Interwoven Panels | F123: NO | G123: 45.19 | H123: =SUMIF('Contractor##'!C:C,'Planned Maint v6.2 CSV File'!C:C,'Contractor##'!F:F) -> -0.373 | I123: 28.33413 | J123: Fencing:Renew any interwoven or overlap fence panel ne 1.20x1.80m fixed with galvanised metal support brackets to existing posts, remove and dismantle existing and remove waste and debris.
A124: 0173AD | B124: FENCING:RENEW 0.9M HIGH PANEL | C124: FENCING AND GATES | D124: Fencing | E124: Fencing - Interwoven Panels | F124: NO | G124: 43.62 | H124: =SUMIF('Contractor##'!C:C,'Planned Maint v6.2 CSV File'!C:C,'Contractor##'!F:F) -> -0.373 | I124: 27.34974 | J124: Fencing:Renew any interwoven or overlap fence panel ne 1.80x0.90m fixed with galvanised metal support brackets to existing posts, remove and dismantle existing and remove waste and debris.
A125: 0173BA | B125: FENCING:RENEW 1.8M PANEL WITH TIMBER POSTS | C125: FENCING AND GATES | D125: Fencing | E125: Fencing - Interwoven and Overlap Fence Panels | F125: LM | G125: 47.47 | H125: =SUMIF('Contractor##'!C:C,'Planned Maint v6.2 CSV File'!C:C,'Contractor##'!F:F) -> -0.373 | I125: 29.76369 | J125: Fencing:Renew interwoven or overlap panel fencing complete consisting of 1.80x1.80m high interwoven or overlap fencing panels fixed with galvanised metal support brackets to and including 75x75mm tanalised fence posts, allow for all necessary excavation including excavation for posts, concrete, backfill and remove surplus to approved tip, reinstate paths and gardens as necessary (measured per metre run of fencing).
A126: 0173BB | B126: FENCING:RENEW 1.2M PANEL WITH TIMBER POSTS | C126: FENCING AND GATES | D126: Fencing | E126: Fencing - Interwoven and Overlap Fence Panels | F126: LM | G126: 43.05 | H126: =SUMIF('Contractor##'!C:C,'Planned Maint v6.2 CSV File'!C:C,'Contractor##'!F:F) -> -0.373 | I126: 26.99235 | J126: Fencing:Renew interwoven or overlap panel fencing complete consisting of 1.80x1.20m high interwoven or overlap fencing panels fixed with galvanised metal support brackets to and including 75x75mm tanalised fence posts, set in concrete, provide and fix 25x150mm tanalised softwood gravel board with centre prop, allow for all necessary excavation including excavation for posts, concrete, backfill and remove surplus to approved tip, reinstate paths and gardens as necessary (measured per metre run of fencing).
A127: 0173CA | B127: FENCING:RENEW 1.8M PANEL WITH PCC POSTS | C127: FENCING AND GATES | D127: Fencing | E127: Fencing - Interwoven and Overlap Fence Panels | F127: LM | G127: 52.35 | H127: =SUMIF('Contractor##'!C:C,'Planned Maint v6.2 CSV File'!C:C,'Contractor##'!F:F) -> -0.373 | I127: 32.82345 | J127: Fencing:Renew interwoven or overlap panel fencing complete consisting of 1.80x1.80m high interwoven or overlap fencing panels fixed with galvanised metal support brackets to and including 100x100mm PCC posts, allow for all necessary excavation including excavation for posts, concrete, backfill and remove surplus to approved tip, reinstate paths and gardens as necessary (measured per metre run of fencing).
A128: 0173CB | B128: FENCING:RENEW 1.2M PANEL WITH PCC POSTS | C128: FENCING AND GATES | D128: Fencing | E128: Fencing - Interwoven and Overlap Fence Panels | F128: LM | G128: 47.35 | H128: =SUMIF('Contractor##'!C:C,'Planned Maint v6.2 CSV File'!C:C,'Contractor##'!F:F) -> -0.373 | I128: 29.68845 | J128: Fencing:Renew interwoven or overlap panel fencing complete consisting of 1.80x1.20m high interwoven or overlap fencing panels fixed with galvanised metal support brackets to and including 100x100mm PCC posts set in concrete, provide and fix 25x150mm precast concrete gravel board, allow for all necessary excavation including excavation for posts, concrete, backfill and remove surplus to approved tip, reinstate paths and gardens as necessary (measured per metre run of fencing).
A129: 0173CD | B129: FENCING:ERECT 1.8M HIGH PANEL WITH TIMBER POSTS | C129: FENCING AND GATES | D129: Fencing | E129: Fencing - Interwoven Panels | F129: LM | G129: 52.12 | H129: =SUMIF('Contractor##'!C:C,'Planned Maint v6.2 CSV File'!C:C,'Contractor##'!F:F) -> -0.373 | I129: 32.67924 | J129: Fencing:Erect tanalised 1.80m high interwoven or overlap panel fencing complete consisting of interwoven or overlap fencing panels fixed with galvanised metal support brackets to and including 75x75mm fence posts, posts set in concrete, capping, 25x150mm gravel board with centre prop, allow for all necessary excavation including excavation for posts, concrete, backfill and remove waste and debris, reinstate paving and gardens as necessary (measured per metre run of fencing).
A130: 0173CE | B130: FENCING:ERECT 1.2M HIGH PANEL WITH TIMBER POSTS | C130: FENCING AND GATES | D130: Fencing | E130: Fencing - Interwoven Panels | F130: LM | G130: 47.22 | H130: =SUMIF('Contractor##'!C:C,'Planned Maint v6.2 CSV File'!C:C,'Contractor##'!F:F) -> -0.373 | I130: 29.60694 | J130: Fencing:Erect tanalised 1.20m high interwoven or overlap panel fencing complete consisting of interwoven or overlap fencing panels fixed with galvanised metal support brackets to and including 75x75mm fence posts, posts set in concrete, capping, 25x150mm gravel board with with centre prop, allow for all necessary excavation including excavation for posts, concrete, backfill and remove waste and debris, reinstate paving and gardens as necessary (measured per metre run of fencing).
A131: 0173CF | B131: FENCING:ERECT 0.9M HIGH PANEL WITH TIMBER POSTS | C131: FENCING AND GATES | D131: Fencing | E131: Fencing - Interwoven Panels | F131: LM | G131: 42.88 | H131: =SUMIF('Contractor##'!C:C,'Planned Maint v6.2 CSV File'!C:C,'Contractor##'!F:F) -> -0.373 | I131: 26.88576 | J131: Fencing:Erect tanalised 0.90m high interwoven or overlap panel fencing complete consisting of interwoven or overlap fencing panels fixed with galvanised metal support brackets to and including 75x75mm fence posts, posts set in concrete, capping, 25x150mm gravel board with centre prop, allow for all necessary excavation including excavation for posts, concrete, backfill and remove waste and debris, reinstate paving and gardens as necessary (measured per metre run of fencing).
A132: 0173CG | B132: FENCING:ERECT 1.8M HIGH PANEL WITH PCC POSTS | C132: FENCING AND GATES | D132: Fencing | E132: Fencing - Interwoven Panels | F132: LM | G132: 57.53 | H132: =SUMIF('Contractor##'!C:C,'Planned Maint v6.2 CSV File'!C:C,'Contractor##'!F:F) -> -0.373 | I132: =(1+H132)*G132 -> 36.07131 | J132: Fencing:Erect tanalised 1.80m high interwoven or overlap panel fencing complete consisting of 1 interwoven or overlap fencing panels fixed with galvanised metal support brackets to and including 100x100mm pcc posts, posts set in concrete, capping 25x150mm precast concrete gravel board, allow for all necessary excavation including excavation for posts, concrete, backfill and remove waste and debris, reinstate paving and gardens as necessary (measured per metre run of fencing).
A133: 0173CH | B133: FENCING:ERECT 1.2M HIGH PANEL WITH PCC POSTS | C133: FENCING AND GATES | D133: Fencing | E133: Fencing - Interwoven Panels | F133: LM | G133: 51.97 | H133: =SUMIF('Contractor##'!C:C,'Planned Maint v6.2 CSV File'!C:C,'Contractor##'!F:F) -> -0.373 | I133: 32.58519 | J133: Fencing:Erect tanalised 1.20m high interwoven or overlap panel fencing complete consisting of 1 interwoven or overlap fencing panels fixed with galvanised metal support brackets to and including 100x100mm pcc posts, posts set in concrete, capping 25x150mm precast concrete gravel board, allow for all necessary excavation including excavation for posts, concrete, backfill and remove waste and debris, reinstate paving and gardens as necessary (measured per metre run of fencing).
A134: 0173CJ | B134: FENCING:ERECT 0.9M HIGH PANEL WITH PCC POSTS | C134: FENCING AND GATES | D134: Fencing | E134: Fencing - Interwoven Panels | F134: LM | G134: 47.31 | H134: =SUMIF('Contractor##'!C:C,'Planned Maint v6.2 CSV File'!C:C,'Contractor##'!F:F) -> -0.373 | I134: 29.66337 | J134: Fencing:Erect tanalised 0.90m high interwoven or overlap panel fencing complete consisting of 1 interwoven or overlap fencing panels fixed with galvanised metal support brackets to and including 100x100mm pcc posts, posts set in concrete, capping 25x150mm precast concrete gravel board, allow for all necessary excavation including excavation for posts, concrete, backfill and remove waste and debris, reinstate paving and gardens as necessary (measured per metre run of fencing).
A135: 0173CK | B135: FENCING:REMOVE PANEL FENCE COMPLETE | C135: FENCING AND GATES | D135: Fencing | E135: Fencing - Interwoven Panels | F135: LM | G135: 6.08 | H135: =SUMIF('Contractor##'!C:C,'Planned Maint v6.2 CSV File'!C:C,'Contractor##'!F:F) -> -0.373 | I135: 3.81216 | J135: Fencing:Remove any panel fencing complete including timber or concrete posts, gravel boards etc and remove waste and debris, fill post holes with top soil and reinstate paths and gardens (measured per metre run of fencing).
A136: 0173DA | B136: TRELLIS:RENEW 1.8M PANEL WITH PCC POSTS | C136: FENCING AND GATES | D136: Fencing | E136: Fencing - Trellis Panels | F136: LM | G136: 50.75 | H136: =SUMIF('Contractor##'!C:C,'Planned Maint v6.2 CSV File'!C:C,'Contractor##'!F:F) -> -0.373 | I136: 31.82025 | J136: Trellis:Renew Timber Trellis panel fencing complete consisting of 1.80x1.80m high trellis fencing panels fixed with galvanised metal support brackets to and including 100x100mm PCC posts, allow for all necessary excavation including excavation for posts, concrete, backfill and remove surplus to approved tip, reinstate paths and gardens as necessary (measured per metre run of fencing).
A137: 0173DB | B137: TRELLIS:ERECT 1.8M HIGH PANEL WITH PCC POSTS | C137: FENCING AND GATES | D137: Fencing | E137: Fencing - Trellis Panels | F137: LM | G137: 54.31 | H137: =SUMIF('Contractor##'!C:C,'Planned Maint v6.2 CSV File'!C:C,'Contractor##'!F:F) -> -0.373 | I137: 34.05237 | J137: Trellis:Erect tanalised 1.80m high Trellis panel fencing complete consisting of trellis fencing panels fixed with galvanised metal support brackets to and including 100x100mm pcc posts, posts set in concrete, capping 25x150mm precast concrete gravel board, allow for all necessary excavation including excavation for posts, concrete, backfill and remove waste and debris, reinstate paving and gardens as necessary (measured per metre run of fencing).
A138: 0173EA | B138: FENCING:RENEW HAIRPIN METAL ON EXISTING POSTS 1.2M | C138: FENCING AND GATES | D138: Fencing | E138: Fencing - Metal - Hairpin | F138: LM | G138: 110 | H138: =SUMIF('Contractor##'!C:C,'Planned Maint v6.2 CSV File'!C:C,'Contractor##'!F:F) -> -0.373 | I138: 68.97 | J138: Fencing:Renew Hairpin top decorative metal fencing 1.20m high on existing posts, including removal of old and remove from site to approved tip, supply and fix new galvanised steel fencing panels including all bars, rails,fittings,boltsetc. (measured per metre run of fencing).
A139: 0173EB | B139: FENCING:ERECT HAIRPIN TOP METAL FENCE POSTS 1.2M | C139: FENCING AND GATES | D139: Fencing | E139: Fencing - Metal - Hairpin | F139: LM | G139: 135 | H139: =SUMIF('Contractor##'!C:C,'Planned Maint v6.2 CSV File'!C:C,'Contractor##'!F:F) -> -0.373 | I139: 84.645 | J139: Fencing:Erect new Hairpin top decorative fencing 1.20m high with 100x100mm x 2.35m galvanised steel posts cast into concrete at n.e. 2.4m centres and galvanised steel fencing panels including all bars, rails, fittings, bolts etc. and all excavation, concrete backfill and remove waste and debris, reinstatement of paving, gardens and the like (measured per metre run of fencing).
A140: 0173FA | B140: FENCING:RENEW DECORATIVE METAL ON EXIST POSTS 1.8M | C140: FENCING AND GATES | D140: Fencing | E140: Fencing - Decorative Metal | F140: LM | G140: 165 | H140: =SUMIF('Contractor##'!C:C,'Planned Maint v6.2 CSV File'!C:C,'Contractor##'!F:F) -> -0.373 | I140: 103.455 | J140: Fencing:Renew decorative metal fencing 1.80m high on existing posts, including removal of old and remove from site to approved tip, supply and fix new galvanised steel fencing panels including all bars, rails,fittings,boltsetc. (measured per metre run of fencing).
A141: 0173FB | B141: FENCING:ERECT DECORATIVE METAL FENCE POSTS 1.8M | C141: FENCING AND GATES | D141: Fencing | E141: Fencing - Decorative Metal | F141: LM | G141: 190 | H141: =SUMIF('Contractor##'!C:C,'Planned Maint v6.2 CSV File'!C:C,'Contractor##'!F:F) -> -0.373 | I141: 119.13 | J141: Fencing:Erect new decorative metal fencing 1.80m high with 100x100mm x 2.35m galvanised steel posts cast into concrete at n.e. 2.4m centres and galvanised steel fencing panels including all bars, rails, fittings, bolts etc. and all excavation, concrete backfill and remove waste and debris, reinstatement of paving, gardens and the like (measured per metre run of fencing).
A142: 0173GA | B142: FENCING:RENEW PVC WELDMESH SECURITY 1.8M | C142: FENCING AND GATES | D142: Fencing | E142: Fencing - PVC Weldmesh | F142: LM | G142: 54 | H142: =SUMIF('Contractor##'!C:C,'Planned Maint v6.2 CSV File'!C:C,'Contractor##'!F:F) -> -0.373 | I142: 33.858 | J142: Fencing:Renew pvc weldmesh security fencing 1.80m high on existing posts, including excavate to remove old buried section and supply and fix new weldmesh fencing, mesh size 38x75mm including 3.15mm pvc coated mild steel wires and all fittings, ties etc. Fence set 600mm into ground (overall mesh height =2.40m),backfill trench, remove surplus and spoil to approved tip, make good ( measured per metre run of fencing)
A143: 0173GB | B143: FENCING:ERECT NEW PVC WELDMESH SECURITY 1.8M | C143: FENCING AND GATES | D143: Fencing | E143: Fencing - PVC Weldmesh | F143: LM | G143: 65 | H143: =SUMIF('Contractor##'!C:C,'Planned Maint v6.2 CSV File'!C:C,'Contractor##'!F:F) -> -0.373 | I143: 40.755 | J143: Fencing:Erect new pvc weldmesh security fencing 1.80m high on 100 x 100 concrete or pvc coated mild steel posts set in concrete at 1.80m centres, supply and fix new weldmesh fencing, mesh size 38x75mm including 3.15mm pvc coated mild steel wires and all fittings, ties etc. Fence set 600mm into ground (overall mesh height =2.40m). Allow for all necessary excavations,concrete (C25)backfill pits and trenches, remove surplus and spoil to approved tip, , reinstatement of paving, gardens and the like ( measured per metre run of fencing)
A144: 0173HA | B144: FENCING:RENEW GALV WELDMESH SECURITY 1.8M | C144: FENCING AND GATES | D144: Fencing | E144: Fencing - Galvanised Weldmesh | F144: LM | G144: 52 | H144: =SUMIF('Contractor##'!C:C,'Planned Maint v6.2 CSV File'!C:C,'Contractor##'!F:F) -> -0.373 | I144: 32.604 | J144: Fencing:Renew galvanised weldmesh security fencing 1.80m high on existing posts, including excavate to remove old buried section and supply and fix new weldmesh fencing, mesh size 38x75mm including 3.15mm galvanised mild steel wires and all fittings, ties etc. Fence set 600mm into ground (overall mesh height =2.40m),backfill trench, remove surplus and spoil to approved tip, make good ( measured per metre run of fencing)
A145: 0173HB | B145: FENCING:ERECT NEW GALV WELDMESH SECURITY 1.8M | C145: FENCING AND GATES | D145: Fencing | E145: Fencing - Galvanised Weldmesh | F145: LM | G145: 63 | H145: =SUMIF('Contractor##'!C:C,'Planned Maint v6.2 CSV File'!C:C,'Contractor##'!F:F) -> -0.373 | I145: 39.501 | J145: Fencing:Erect new galvanisedweldmesh security fencing 1.80m high on 100 x 100 concrete or galvanised mild steel posts set in concrete at 1.80m centres, supply and fix new weldmesh fencing, mesh size 38x75mm including 3.15mm galv mild steel wires and all fittings, ties etc. Fence set 600mm into ground (overall mesh height =2.40m). Allow for allnecessary excavations,concrete (C25)backfill pits and trenches, remove surplus and spoil to approved tip, , reinstatement of paving, gardens and the like ( measured per metre run of fencing)
A146: 0174AA | B146: CHAINLINK:RENEW ON EXISTING POSTS 0.9M | C146: FENCING AND GATES | D146: Fencing | E146: Fencing - Chainlink | F146: LM | G146: 8.39 | H146: =SUMIF('Contractor##'!C:C,'Planned Maint v6.2 CSV File'!C:C,'Contractor##'!F:F) -> -0.373 | I146: 5.26053 | J146: Chainlink:Renew chainlink fencing 0.9m high on existing posts, including removal of old and remove from site to approved tip, supply and fix new galvanised or plastic coated steel chainlink wire fencing including three 2.50mm diameter galvanised mild steel line wires and all fittings, ties etc. (measured per metre run of fencing).
A147: 0174AB | B147: CHAINLINK:RENEW ON EXISTING POSTS 1.2M | C147: FENCING AND GATES | D147: Fencing | E147: Fencing - Chainlink | F147: LM | G147: 9.24 | H147: =SUMIF('Contractor##'!C:C,'Planned Maint v6.2 CSV File'!C:C,'Contractor##'!F:F) -> -0.373 | I147: 5.79348 | J147: Chainlink:Renew chainlink fencing 1.20m high on existing posts, including removal of old and remove from site to approved tip, supply and fix new galvanised or plastic coated steel chainlink wire fencing including three 2.50mm diameter galvanised mild steel line wires and all fittings, ties etc. (measured per metre run of fencing).
A148: 0174AC | B148: CHAINLINK:RENEW ON EXISTING POSTS 1.8M | C148: FENCING AND GATES | D148: Fencing | E148: Fencing - Chainlink | F148: LM | G148: 11.29 | H148: =SUMIF('Contractor##'!C:C,'Planned Maint v6.2 CSV File'!C:C,'Contractor##'!F:F) -> -0.373 | I148: 7.07883 | J148: Chainlink:Renew chainlink fencing 1.80m high on existing posts, including removal of old and remove from site to approved tip, supply and fix new galvanised or plastic coated steel chainlink wire fencing including three 2.50mm diameter galvanised mild steel line wires and all fittings, ties etc. (measured per metre run of fencing).
A149: 0174AD | B149: FENCING:ERECT CHAINLINK FENCE AND POSTS 1.2M | C149: FENCING AND GATES | D149: Fencing | E149: Fencing - Chainlink | F149: LM | G149: 34.27 | H149: =SUMIF('Contractor##'!C:C,'Planned Maint v6.2 CSV File'!C:C,'Contractor##'!F:F) -> -0.373 | I149: 21.48729 | J149: Fencing:1.20m high with 100x100mm x 1.625m concrete posts cast into concrete with three 2.5mm diameter galvanised mild steel line wires and galvanised or plastic coated steel chainlink fencing including all fittings, ties etc. and all excavation, concrete backfill and remove waste and debris, reinstatement of paving, gardens and the like (measured per metre run of fencing).
A150: 0174AE | B150: FENCING:ERECT CHAINLINK FENCE AND POSTS 1.8M | C150: FENCING AND GATES | D150: Fencing | E150: Fencing - Chainlink | F150: LM | G150: 38.62 | H150: =SUMIF('Contractor##'!C:C,'Planned Maint v6.2 CSV File'!C:C,'Contractor##'!F:F) -> -0.373 | I150: 24.21474 | J150: Fencing:Erect new chainlink fencing 1.80m high with 100x100mm x 2.35m concrete posts cast into concrete with three 2.5mm diameter galvanised mild steel line wires and galvanised or plastic coated steel chainlink fencing including all fittings, ties etc. and all excavation, concrete backfill and remove waste and debris, reinstatement of paving, gardens and the like (measured per metre run of fencing).
A151: 0174BA | B151: CHAINLINK:RESECURE LOOSE FENCE | C151: FENCING AND GATES | D151: Fencing | E151: Fencing - Chainlink | F151: LM | G151: 1.06 | H151: =SUMIF('Contractor##'!C:C,'Planned Maint v6.2 CSV File'!C:C,'Contractor##'!F:F) -> -0.373 | I151: 0.66462 | J151: Chainlink:Resecure loose chainlink fencing including tightening straining wires as necessary.
A152: 0174BB | B152: FENCING:REMOVE CHAINLINK COMPLETE | C152: FENCING AND GATES | D152: Fencing | E152: Fencing - Chainlink | F152: LM | G152: 6.08 | H152: =SUMIF('Contractor##'!C:C,'Planned Maint v6.2 CSV File'!C:C,'Contractor##'!F:F) -> -0.373 | I152: 3.81216 | J152: Fencing:Remove any height chainlink fencing complete with concrete posts and remove waste and debris, fill holes with topsoil and reinstate paving and gardens as necessary.
A153: 0174DA | B153: FENCING:RENEW WIRES TO EXISTING POSTS 1.2M | C153: FENCING AND GATES | D153: Fencing | E153: Fencing - Post and Wire | F153: LM | G153: 4.29 | H153: =SUMIF('Contractor##'!C:C,'Planned Maint v6.2 CSV File'!C:C,'Contractor##'!F:F) -> -0.373 | I153: 2.68983 | J153: Fencing:Renew wire fencing 1.20m high on existing posts, including removal of old and remove waste and debris, supply and fix three new galvanised or plastic coated steel 2.50mm diameter line wires and all fittings, ties etc. (measured per metre run of fencing).
A154: 0174EA | B154: FENCING:RENEW POST AND WIRE 0.9M HIGH | C154: FENCING AND GATES | D154: Fencing | E154: Fencing - Post and Wire | F154: LM | G154: 14.36 | H154: =SUMIF('Contractor##'!C:C,'Planned Maint v6.2 CSV File'!C:C,'Contractor##'!F:F) -> -0.373 | I154: 9.00372 | J154: Fencing:Renew 900mm high post and wire fencing complete, concrete posts with rounded tops and struts at 2743mm centres set 600mm into ground in and including concrete (1:3:6), three strands of 2.50mm galvanised mild or plastic coated steel line wires, including all fittings, ties etc., and including all excavation, concrete, backfill and remove waste and debris, reinstate paving, gardens and the like as necessary (measured per metre run of fencing).
A155: 0174FA | B155: FENCING:RENEW POST AND WIRE 1.05M HIGH | C155: FENCING AND GATES | D155: Fencing | E155: Fencing - Post and Wire | F155: LM | G155: 16.68 | H155: =SUMIF('Contractor##'!C:C,'Planned Maint v6.2 CSV File'!C:C,'Contractor##'!F:F) -> -0.373 | I155: 10.45836 | J155: Fencing:Renew 1050mm high post and wire fencing complete, concrete posts with rounded tops and struts at 2743mm centres set 600mm into ground in and including concrete (1:3:6), three strands of 2.50mm galvanised mild or plastic coated steel line wires, including all fittings, ties etc., and including all excavation, concrete, backfill and remove waste and debris, reinstate paving, gardens and the like as necessary (measured per metre run of fencing).
A156: 0175AA | B156: FENCING:RENEW GARDEN RAIL 0.575M HIGH | C156: FENCING AND GATES | D156: Fencing | E156: Fencing - Garden Rail | F156: LM | G156: 25.6 | H156: =SUMIF('Contractor##'!C:C,'Planned Maint v6.2 CSV File'!C:C,'Contractor##'!F:F) -> -0.373 | I156: 16.0512 | J156: Fencing:Renew with or supply and fix 575mm high tanalised softwood garden rail fencing comprising 50x225mm horizontal rail splayed on top, bolted to 75x75mm x 0.90m splayed on top posts set in concrete bases at ne 2.00m centres with two (2) 9mm diameter x 150mm galvanised mild steel round head bolts, including excavation, concrete, backfill and remove waste and debris including where necessary taking down remnants of existing fencing and posts, reinstate paving, gardens and the like as necessary (measured per metre run of fencing).
A157: 0175AB | B157: FENCING:REMOVE GARDEN RAIL 0.575M HIGH | C157: FENCING AND GATES | D157: Fencing | E157: Fencing - Garden Rail | F157: LM | G157: 4.52 | H157: =SUMIF('Contractor##'!C:C,'Planned Maint v6.2 CSV File'!C:C,'Contractor##'!F:F) -> -0.373 | I157: 2.83404 | J157: Fencing:Remove 575mm high garden rail fencing including posts and remove waste and debris, including fill in post holes with top soil and reinstate paving, gardens and the like as necessary.
A158: 0176AA | B158: FENCING:RENEW HIT AND MISS 1.35M HIGH | C158: FENCING AND GATES | D158: Fencing | E158: Fencing - Hit and Miss | F158: LM | G158: 38.39 | H158: =SUMIF('Contractor##'!C:C,'Planned Maint v6.2 CSV File'!C:C,'Contractor##'!F:F) -> -0.373 | I158: 24.07053 | J158: Fencing:Renew with or supply and fix tanalised softwood hit and miss fence 1.35m high, comprising 100x100mm posts at ne 1.80m centres, 100x50mm rails, 100x25mm pales to both faces including all excavation, concrete, backfill and remove waste and debris, including where necessary taking down remnants of existing fencing and posts,, reinstate paving, gardens and the like as necessary (measured per metre run of fencing).
A159: 0176AB | B159: FENCING:RENEW HIT AND MISS 1.8M HIGH | C159: FENCING AND GATES | D159: Fencing | E159: Fencing - Hit and Miss | F159: LM | G159: 44.38 | H159: =SUMIF('Contractor##'!C:C,'Planned Maint v6.2 CSV File'!C:C,'Contractor##'!F:F) -> -0.373 | I159: 27.82626 | J159: Fencing:Renew with or supply and fix tanalised softwood hit and miss fence 1.80m high, comprising 100x100mm posts at ne 1.80m centres, 100x50mm rails, 100x25mm pales to both faces including all excavation, concrete, 100x25mm pales including all excavation, concrete backfill and remove waste and debris, including where necessary taking down remnants of existing fencing and posts, reinstate paving, gardens and the like as necessary (measured per metre run of fencing).
A160: 0176BA | B160: FENCING:RENEW HORIZONTAL HIT AND MISS 1.8M HIGH | C160: FENCING AND GATES | D160: Fencing | E160: Fencing - Hit and Miss | F160: LM | G160: 52.4 | H160: =SUMIF('Contractor##'!C:C,'Planned Maint v6.2 CSV File'!C:C,'Contractor##'!F:F) -> -0.373 | I160: 32.8548 | J160: Fencing:Renew with or supply and fix tanalised softwood horizontal hit and miss fence 1.80m high, comprising 100x100mm posts at ne 1.20m centres, posts fixed to and including concrete spur posts set in concrete, 100x50mm pales, 150x25mm rails to both faces including all excavation, concrete backfill and remove waste and debris, including where necessary taking down remnants of existing fencing and posts, reinstate paving, gardens and the like as necessary (measured per metre run of fencing).
A161: 0176BB | B161: FENCING:REMOVE HIT AND MISS | C161: FENCING AND GATES | D161: Fencing | E161: Fencing - Hit and Miss | F161: LM | G161: 7.64 | H161: =SUMIF('Contractor##'!C:C,'Planned Maint v6.2 CSV File'!C:C,'Contractor##'!F:F) -> -0.373 | I161: 4.79028 | J161: Fencing:Remove any softwood hit and miss type of fencing including posts and and remove waste and debris, fill post holes with top soil and reinstate paving and gardens as necessary.
A162: 0176CA | B162: FENCING:RENEW PALISADE 1.35M HIGH | C162: FENCING AND GATES | D162: Fencing | E162: Fencing - Palisade | F162: LM | G162: 42.32 | H162: =SUMIF('Contractor##'!C:C,'Planned Maint v6.2 CSV File'!C:C,'Contractor##'!F:F) -> -0.373 | I162: 26.53464 | J162: Fencing:Renew with or supply and fix tanalised softwood palisade fence 1.35m high with 100x100mm posts at ne 1.80m centres, 100x50mm rails, 75mm pales at 125mm centres including all excavation, concrete, backfill and remove waste and debris, including where necessary taking down remnants of existing fencing and posts, reinstate paving, gardens and the like as necessary (measured per metre run of fencing).
A163: 0176CB | B163: FENCING:RENEW PALISADE 1.8M HIGH | C163: FENCING AND GATES | D163: Fencing | E163: Fencing - Palisade | F163: LM | G163: 49.62 | H163: =SUMIF('Contractor##'!C:C,'Planned Maint v6.2 CSV File'!C:C,'Contractor##'!F:F) -> -0.373 | I163: 31.11174 | J163: Fencing:Renew with or supply and fix tanalised softwood palisade fence 1.80m high with 100x100mm posts at ne 1.80m centres, 100x50mm rails, 75mm pales at 125mm centres including all excavation, concrete, backfill and remove waste and debris, including where necessary taking down remnants of existing fencing and posts, reinstate paving, gardens and the like as necessary (measured per metre run of fencing).
A164: 0176CC | B164: FENCING:REMOVE PALISADE | C164: FENCING AND GATES | D164: Fencing | E164: Fencing - Palisade | F164: LM | G164: 8.78 | H164: =SUMIF('Contractor##'!C:C,'Planned Maint v6.2 CSV File'!C:C,'Contractor##'!F:F) -> -0.373 | I164: 5.50506 | J164: Fencing:Remove any palisade type of fencing including posts and remove waste and debris, fill post holes with top soil and reinstate paving and gardens as necessary.
A165: 0176GA | B165: FENCING:RENEW POST AND 2 RAIL | C165: FENCING AND GATES | D165: Fencing | E165: Fencing - Post and Rail | F165: LM | G165: 30.62 | H165: =SUMIF('Contractor##'!C:C,'Planned Maint v6.2 CSV File'!C:C,'Contractor##'!F:F) -> -0.373 | I165: 19.19874 | J165: Fencing:Renew with or supply and fix tanalised softwood post and two rail fence with 75x125mm posts at ne 1.80m centres, 100x38mm rails, including all excavation, concrete, backfill and remove waste and debris, including where necessary taking down remnants of existing fencing and posts, reinstate paving, gardens and the like as necessary (measured per metre run of fencing).
A166: 0176GB | B166: FENCING:RENEW POST AND 3 RAIL | C166: FENCING AND GATES | D166: Fencing | E166: Fencing - Post and Rail | F166: LM | G166: 34.15 | H166: =SUMIF('Contractor##'!C:C,'Planned Maint v6.2 CSV File'!C:C,'Contractor##'!F:F) -> -0.373 | I166: 21.41205 | J166: Fencing:Renew with or supply and fix tanalised softwood post and three rail fence with 75x125mm posts at ne 1.80m centres, 100x38mm rails, including all excavation, concrete, backfill and remove waste and debris, including where necessary taking down remnants of existing fencing and posts, reinstate paving, gardens and the like as necessary (measured per metre run of fencing).
A167: 0176HA | B167: FENCING:ERECT POST AND WIRE 1.2M | C167: FENCING AND GATES | D167: Fencing | E167: Fencing - Post and Wire | F167: LM | G167: 20.9 | H167: =SUMIF('Contractor##'!C:C,'Planned Maint v6.2 CSV File'!C:C,'Contractor##'!F:F) -> -0.373 | I167: 13.1043 | J167: Fencing:Erect post and wire fencing 1.20m high with 100x100x1.625m concrete posts cast into concrete with three 2.5mm diameter galvanised mild or plastic coated steel line wires including all fittings, ties etc. and including all excavation, concrete, backfill and remove waste and debris, reinstate paving, gardens and the like as necessary (measured per metre run of fencing).
A168: 0176HB | B168: FENCING:RENEW OR FIX LINE WIRE | C168: FENCING AND GATES | D168: Fencing | E168: Fencing - Post and Wire | F168: LM | G168: 1.69 | H168: =SUMIF('Contractor##'!C:C,'Planned Maint v6.2 CSV File'!C:C,'Contractor##'!F:F) -> -0.373 | I168: 1.05963 | J168: Fencing:Renew or fix new galvanised or PVC coated line wire to post and wire fence, fix wire to posts including remove and refix fencing as found expedient, remove waste and debris (measured per run of line wire).
A169: 0177AA | B169: FENCING:REMOVE PCC POST AND SLAB | C169: FENCING AND GATES | D169: Fencing | E169: Fencing - Concrete Panel | F169: LM | G169: 7.64 | H169: =SUMIF('Contractor##'!C:C,'Planned Maint v6.2 CSV File'!C:C,'Contractor##'!F:F) -> -0.373 | I169: 4.79028 | J169: Fencing:Remove precast concrete post and slab fencing 1.20m high and remove waste and debris, fill post holes with top soil and reinstate paving gardens and the like as necessary (measured per metre run of fencing).
A170: 0178AA | B170: FENCING:MAKE SAFE FENCING | C170: FENCING AND GATES | D170: Fencing | E170: Fencing - Concrete Panel | F170: LM | G170: 10.62 | H170: =SUMIF('Contractor##'!C:C,'Planned Maint v6.2 CSV File'!C:C,'Contractor##'!F:F) -> -0.373 | I170: 6.65874 | J170: Fencing:Make safe any unstable fence and or gate including but not limited to resecure and or refix fencing, brace and or reset and or refix post, rehang gate or resecure.
A171: 0178AB | B171: FENCING:RENEW TIMBER PALE AND LAG | C171: FENCING AND GATES | D171: Fencing | E171: Fencing - Sundry Repairs | F171: NO | G171: 6.01 | H171: =SUMIF('Contractor##'!C:C,'Planned Maint v6.2 CSV File'!C:C,'Contractor##'!F:F) -> -0.373 | I171: 3.76827 | J171: Fencing:Renew any type of fencing pale or lag with ne 25x150mm tanalised timber including all labours, remove waste and debris.
A172: 0178AC | B172: FENCING:REFIX TIMBER PALE AND LAG | C172: FENCING AND GATES | D172: Fencing | E172: Fencing - Sundry Repairs | F172: NO | G172: 1.71 | H172: =SUMIF('Contractor##'!C:C,'Planned Maint v6.2 CSV File'!C:C,'Contractor##'!F:F) -> -0.373 | I172: 1.07217 | J172: Fencing:Refix any type of fencing pale or lag including remove and refix as necessary.
A173: 0178AD | B173: FENCING:FIX GALVANISED REPAIR BRACKET | C173: FENCING AND GATES | D173: Fencing | E173: Fencing - Sundry Repairs | F173: NO | G173: 6.1 | H173: =SUMIF('Contractor##'!C:C,'Planned Maint v6.2 CSV File'!C:C,'Contractor##'!F:F) -> -0.373 | I173: 3.8247 | J173: Fencing:Supply and fix galvanised repair bracket to rail and post including all cutting and fitting to suit.
A174: 0190AA | B174: FENCE POST:EXCAVATE REMOVE AND MAKE GOOD | C174: FENCING AND GATES | D174: Fencing | E174: Fencing - Posts | F174: NO | G174: 6.86 | H174: =SUMIF('Contractor##'!C:C,'Planned Maint v6.2 CSV File'!C:C,'Contractor##'!F:F) -> -0.373 | I174: 4.30122 | J174: Fence Post:Excavate and remove remnants of damaged post with earth or concrete surround, fill hole with top soil, and remove waste and debris, reinstate paving, gardens and the like as necessary.
A175: 0190AB | B175: FENCE POST:REFIX LOOSE POST | C175: FENCING AND GATES | D175: Fencing | E175: Fencing - Posts | F175: NO | G175: 7.7 | H175: =SUMIF('Contractor##'!C:C,'Planned Maint v6.2 CSV File'!C:C,'Contractor##'!F:F) -> -0.373 | I175: 4.8279 | J175: Fence Post:Refix any type of loose post including reset any post set in earth or concrete without removing and refixing any post fixed to brickwork, concrete and make good.
A176: 0190BA | B176: FENCE POST:RENEW TIMBER TO HARDCORE OR CONCRETE | C176: FENCING AND GATES | D176: Fencing | E176: Fencing - Posts | F176: NO | G176: 26.57 | H176: =SUMIF('Contractor##'!C:C,'Planned Maint v6.2 CSV File'!C:C,'Contractor##'!F:F) -> -0.373 | I176: 16.65939 | J176: Fence Post:Renew tanalised softwood fence post set in hardcore or concrete size 100x100mm and ne 2.40m long including any struts, excavate hole, place hardcore and or concrete, backfill, remove and refix fencing, and remove waste and debris, reinstate paving, gardens and the like as necessary.
A177: 0190BB | B177: FENCE POST:RENEW TIMBER TO BRICKWORK | C177: FENCING AND GATES | D177: Fencing | E177: Fencing - Posts | F177: NO | G177: 24.42 | H177: =SUMIF('Contractor##'!C:C,'Planned Maint v6.2 CSV File'!C:C,'Contractor##'!F:F) -> -0.373 | I177: 15.31134 | J177: Post:Renew softwood tanalised fence post fixed to brickwork size 100x100mm and up to 2.4m long including remove and refix fencing and or gates and drill plug and screw and make good.
A178: 0190BC | B178: FENCE POST:RENEW TIMBER IN METPOST | C178: FENCING AND GATES | D178: Fencing | E178: Fencing - Posts | F178: NO | G178: 23.7 | H178: =SUMIF('Contractor##'!C:C,'Planned Maint v6.2 CSV File'!C:C,'Contractor##'!F:F) -> -0.373 | I178: 14.8599 | J178: Fence Post:Renew 75x75mm tanalised softwood fence post ne 2.40m long with post fixed into driven or bolted Metpost including any struts, remove and refix fencing, remove spoil from site to approved tip, reinstate paving, gardens and the like as necessary.
A179: 0190CA | B179: FENCE POST:RENEW PCC NE 1.5M | C179: FENCING AND GATES | D179: Fencing | E179: Fencing - Posts | F179: NO | G179: 28.47 | H179: =SUMIF('Contractor##'!C:C,'Planned Maint v6.2 CSV File'!C:C,'Contractor##'!F:F) -> -0.373 | I179: 17.85069 | J179: Fence Post:Renew precast concrete fence post or spur set in hardcore or concrete ne 100x100mm and ne 1.50m long including any struts, excavate hole, place hardcore and concrete, backfill, remove and refix fencing, and remove waste and debris, reinstate paving, gardens and the like as necessary.
A180: 0190CB | B180: FENCE POST:RENEW PCC OVER 1.5M | C180: FENCING AND GATES | D180: Fencing | E180: Fencing - Posts | F180: NO | G180: 36.87 | H180: =SUMIF('Contractor##'!C:C,'Planned Maint v6.2 CSV File'!C:C,'Contractor##'!F:F) -> -0.373 | I180: 23.11749 | J180: Fence Post:Renew precast concrete fence post or spur set in hardcore or concrete ne 100x100mm and over 1.50m long including any struts, excavate hole, place hardcore or concrete, backfill, remove and refix fencing, and remove waste and debris, reinstate paving, gardens and the like as necessary.
A181: 0190DA | B181: FENCE POST:FIX 50X100MM SW BATTEN | C181: FENCING AND GATES | D181: Fencing | E181: Fencing - Posts | F181: NO | G181: 15.05 | H181: =SUMIF('Contractor##'!C:C,'Planned Maint v6.2 CSV File'!C:C,'Contractor##'!F:F) -> -0.373 | I181: 9.43635 | J181: Fence Post:Supply and fix 50x100mm tanalised softwood batten to precast concrete post ne 1.80m long including drill and bolt batten to post.
A182: 0190EA | B182: FENCE POST:REPAIR WITH METSPUR | C182: FENCING AND GATES | D182: Fencing | E182: Fencing - Posts | F182: NO | G182: 16.2 | H182: =SUMIF('Contractor##'!C:C,'Planned Maint v6.2 CSV File'!C:C,'Contractor##'!F:F) -> -0.373 | I182: 10.1574 | J182: Fence Post:Repair broken post with ‘Metspur’ fitting including driving spur into ground and bolting to existing post, supply all necessary struts and reinstate paths and gardens on completion, and remove waste and debris.
A183: 0210AA | B183: GATE:RENEW TIMBER NE 1.0SM | C183: FENCING AND GATES | D183: Fencing | E183: Fencing - Timber Gates | F183: NO | G183: 64.35 | H183: =SUMIF('Contractor##'!C:C,'Planned Maint v6.2 CSV File'!C:C,'Contractor##'!F:F) -> -0.373 | I183: 40.34745 | J183: Gate:Renew tanalised softwood single leaf gate ne 1.00sm overall, comprising of two 144x27mm ledges, five 144x20mm vertical boards at 175mm centres and one 144x27mm diagonal brace, including new galvanised steel strap hinges and hangers fixed to existing concrete post, new galvanised mild steel auto catch, prepare for and decorate, and remove waste and debris.
A184: 0210AB | B184: GATE:RENEW TIMBER NE 1.5SM | C184: FENCING AND GATES | D184: Fencing | E184: Fencing - Timber Gates | F184: NO | G184: 73.72 | H184: =SUMIF('Contractor##'!C:C,'Planned Maint v6.2 CSV File'!C:C,'Contractor##'!F:F) -> -0.373 | I184: 46.22244 | J184: Gate:Renew tanalised softwood single leaf gate ne 1.50sm overall, comprising two 144x27mm ledges, five 144x20mm vertical boards at 175mm centres and one 144x27mm diagonal brace, including new galvanised steel strap hinges and hangers fixed to existing concrete post, new galvanised mild steel auto catch, prepare for and decorate, and remove waste and debris.
A185: 0210AC | B185: GATE:RENEW PAIR TIMBER NE 2.5SM OVERALL | C185: FENCING AND GATES | D185: Fencing | E185: Fencing - Timber Gates | F185: NO | G185: 179.83 | H185: =SUMIF('Contractor##'!C:C,'Planned Maint v6.2 CSV File'!C:C,'Contractor##'!F:F) -> -0.373 | I185: 112.75341 | J185: Gate:Renew tanalised softwood two leaved gate ne 2.50sm overall, each leaf comprising two 144x27mm ledges six 144x20mm vertical boards at 175mm centres and one 144x27mm diagonal brace, including new galavanised steel strap hinges and hangers fixed to existing concrete posts, new galvanised mild steel auto catch, prepare for and decorate, to approved tip.
A186: 0210AD | B186: GATE:RENEW TIMBER NE 2.SM OVERALL | C186: FENCING AND GATES | D186: Gates | E186: Fencing - Timber Gates | F186: NO | G186: 95.31 | H186: =SUMIF('Contractor##'!C:C,'Planned Maint v6.2 CSV File'!C:C,'Contractor##'!F:F) -> -0.373 | I186: 59.75937 | J186: Gate:Renew tanalised softwood single leaf gate ne 2.00sm overall, comprising of three 144x27mm ledges six 144x20mm vertical boards at 175mm centres and two 144x27mm diagonal braces, including new galavanised steel strap hinges and hangers fixed to existing concrete posts, new galvanised mild steel auto catch, prepare for and decorate, remove waste and debris.
A187: 0210AE | B187: GATE:RENEW PAIR TIMBER NE 4SM OVERALL | C187: FENCING AND GATES | D187: Gates | E187: Fencing - Timber Gates | F187: NO | G187: 282.19 | H187: =SUMIF('Contractor##'!C:C,'Planned Maint v6.2 CSV File'!C:C,'Contractor##'!F:F) -> -0.373 | I187: 176.93313 | J187: Gate:Renew tanalised softwood two leaved gate ne 4.00sm overall, each leaf comprising three 144x27mm ledges six 144x20mm vertical boards at 175mm centres and two 144x27mm diagonal braces, including new galavanised steel strap hinges and hangers fixed to existing concrete posts, new galvanised mild steel auto catch, prepare for and decorate, to approved tip.
A188: 0210AF | B188: GATE:RENEW PAIR TIMBER NE 8SM OVERALL | C188: FENCING AND GATES | D188: Gates | E188: Fencing - Timber Gates | F188: NO | G188: 618.12 | H188: =SUMIF('Contractor##'!C:C,'Planned Maint v6.2 CSV File'!C:C,'Contractor##'!F:F) -> -0.373 | I188: 387.56124 | J188: Gate:Renew tanalised softwood two leaved gate ne 8.00sm overall, each leaf comprising three 144x27mm ledges six 144x20mm vertical boards at 175mm centres and two 144x27mm diagonal braces, including new galavanised steel strap hinges and hangers fixed to existing concrete posts, new galvanised mild steel auto catch, prepare for and decorate, to approved tip.
A189: 0210BA | B189: GATE:INSTALL TIMBER NE 1.0SM AND POSTS | C189: FENCING AND GATES | D189: Fencing | E189: Fencing - Timber Gates | F189: NO | G189: 131.04 | H189: =SUMIF('Contractor##'!C:C,'Planned Maint v6.2 CSV File'!C:C,'Contractor##'!F:F) -> -0.373 | I189: 82.16208 | J189: Gate:Install tanalised softwood single leaf gate ne 1.00sm overall, comprising of two 144x27mm ledges, five 144x20mm vertical boards at 175mm centres and one 144x27mm diagonal brace, including galvanised steel strap hinges and hangers fixed to and including precast concrete posts ne 1.65m long, galvanised mild steel auto catch, prepare for and decorate, posts set in concrete including all excavation, concrete, backfill, and remove waste and debris, reinstate paving, gardens and the like as necessary.
A190: 0210BB | B190: GATE:INSTALL TIMBER NE 1.5SM AND POSTS | C190: FENCING AND GATES | D190: Fencing | E190: Fencing - Timber Gates | F190: NO | G190: 150.72 | H190: =SUMIF('Contractor##'!C:C,'Planned Maint v6.2 CSV File'!C:C,'Contractor##'!F:F) -> -0.373 | I190: 94.50144 | J190: Gate:Install tanalised softwood single leaf gate ne 1.50sm overall, comprising two 144x27mm ledges, five 144x20mm vertical boards at 175mm centres and one 144x27mm diagonal brace, including galvanised steel strap hinges and hangers fixed to and including precast concrete posts ne 2.15m long, galvanised mild steel auto catch, prepare for and decorate, posts set in concrete including all excavation, concrete, backfill, and remove waste and debris, reinstate paving, gardens and the like as necessary.
A191: 0210BC | B191: GATES:INSTALL PAIR TIMBER NE 2.5SM OVERALL & POSTS | C191: FENCING AND GATES | D191: Fencing | E191: Fencing - Timber Gates | F191: NO | G191: 259.88 | H191: =SUMIF('Contractor##'!C:C,'Planned Maint v6.2 CSV File'!C:C,'Contractor##'!F:F) -> -0.373 | I191: 162.94476 | J191: Gates:Install tanalised softwood two leaved gate ne 2.5sm overall, each leaf comprising two 144x27mm ledges, six 144x20mm vertical boards at 175mm centres and one 144x27mm diagonal brace, including steel strap hinges and hangers fixed to and including precaste concrete posts, galvanised mild steel auto catch, prepare for and decorate, posts set in concrete including all excavation, concrete, backfill and remove waste and debris, reinstate paving, gardens and like as necessary.
A192: 0210BD | B192: GATE:INSTALL TIMBER NE 2.0SM AND POSTS | C192: FENCING AND GATES | D192: Gates | E192: Fencing - Timber Gates | F192: NO | G192: 189.37 | H192: =SUMIF('Contractor##'!C:C,'Planned Maint v6.2 CSV File'!C:C,'Contractor##'!F:F) -> -0.373 | I192: 118.73499 | J192: Gate:Install tanalised softwood single leaf gate ne 2.00sm overall, comprising of three 144x27mm ledges, six 144x20mm vertical boards at 175mm centres and two 144x27mm diagonal braces, including galvanised steel strap hinges and hangers fixed to and including precast concrete posts ne 1.65m long, galvanised mild steel auto catch, prepare for and decorate, posts set in concrete including all excavation, concrete, backfill, and remove waste and debris, reinstate paving, gardens and the like as necessary.
A193: 0210BF | B193: GATES:INSTALL PAIR TIMBER NE 4SM OVERALL & POSTS | C193: FENCING AND GATES | D193: Gates | E193: Fencing - Timber Gates | F193: NO | G193: 377.49 | H193: =SUMIF('Contractor##'!C:C,'Planned Maint v6.2 CSV File'!C:C,'Contractor##'!F:F) -> -0.373 | I193: 236.68623 | J193: Gates:Install tanalised softwood two leaved gate ne 4.00sm overall, each leaf comprising three 144x27mm ledges, six 144x20mm vertical boards at 175mm centres and two 144x27mm diagonal braces, including steel strap hinges and hangers fixed to and including precaste concrete posts, galvanised mild steel auto catch, prepare for and decorate, posts set in concrete including all excavation, concrete, backfill and remove waste and debris, reinstate paving, gardens and like as necessary.
A194: 0210BG | B194: GATES:INSTALL PAIR TIMBER NE 8SM OVERALL & POSTS | C194: FENCING AND GATES | D194: Gates | E194: Fencing - Timber Gates | F194: NO | G194: 774.37 | H194: =SUMIF('Contractor##'!C:C,'Planned Maint v6.2 CSV File'!C:C,'Contractor##'!F:F) -> -0.373 | I194: 485.52999 | J194: Gates:Install tanalised softwood two leaved gate ne 8.00sm overall, each leaf comprising three 144x27mm ledges, six 144x20mm vertical boards at 175mm centres and two 144x27mm diagonal braces, including steel strap hinges and hangers fixed to and including precaste concrete posts, galvanised mild steel auto catch, prepare for and decorate, posts set in concrete including all excavation, concrete, backfill and remove waste and debris, reinstate paving, gardens and like as necessary.
A195: 0210BH | B195: GATE:INSTALL TIMBER PANEL 1.2M HIGH | C195: FENCING AND GATES | D195: Gates | E195: Fencing - Timber Gates | F195: NO | G195: 91.48 | H195: =SUMIF('Contractor##'!C:C,'Planned Maint v6.2 CSV File'!C:C,'Contractor##'!F:F) -> -0.373 | I195: 57.35796 | J195: Gate:Install tanalised softwood single leaf gate comprising 0 90m wide x 1.20m high interwoven or overlap panel with additional diagonal brace, including galvanised steel hinges fixed to and including 100x100mm treated softwood posts ne 1.85m long, galvanised mild steel auto catch, prepare for and decorate, posts set in concrete including all excavation, concrete, backfill, and remove waste and debris, reinstate paving, gardens and the like as necessary.
A196: 0210BJ | B196: GATE:INSTALL TIMBER PANEL 1.8M HIGH | C196: FENCING AND GATES | D196: Gates | E196: Fencing - Timber Gates | F196: NO | G196: 105.51 | H196: =SUMIF('Contractor##'!C:C,'Planned Maint v6.2 CSV File'!C:C,'Contractor##'!F:F) -> -0.373 | I196: =(1+H196)*G196 -> 66.15477 | J196: Gate:Install tanalised softwood single leaf gate comprising 0.90m wide x 1.80m high interwoven or overlap panel with additional diagonal brace, including galvanised steel hinges fixed to and including 100x100mm treated softwood posts ne 2.45m long, galvanised mild steel auto catch, prepare for and decorate, posts set in concrete including all excavation, concrete, backfill, and remove waste and debris, reinstate paving, gardens and the like as necessary.
A197: 0210CA | B197: GATE:REPAIR AND EASE AND ADJUST TIMBER GATE | C197: FENCING AND GATES | D197: Gates | E197: Fencing - Timber Gates | F197: NO | G197: 19.42 | H197: =SUMIF('Contractor##'!C:C,'Planned Maint v6.2 CSV File'!C:C,'Contractor##'!F:F) -> -0.373 | I197: 12.17634 | J197: Gate:Repair any damaged timber gate including ease and adjust, remove and rehang as necessary including adjust stop, supply and fix new timbers and scarf new sections as required and redecorate to match existing.
A198: 0210CB | B198: GATE:RENEW GATE AND FENCE CAPPING | C198: FENCING AND GATES | D198: Gates | E198: Fencing - Timber Gates | F198: LM | G198: 4.05 | H198: =SUMIF('Contractor##'!C:C,'Planned Maint v6.2 CSV File'!C:C,'Contractor##'!F:F) -> -0.373 | I198: 2.53935 | J198: Gate:Renew any type and size of gate or fence capping with softwood tanalised capping to match and redecorate to match existing, remove waste and debris.
A199: 0230AA | B199: GATE:RENEW METAL NE 1.0SM | C199: FENCING AND GATES | D199: Fencing | E199: Fencing - Metal Gates | F199: NO | G199: 60.04 | H199: =SUMIF('Contractor##'!C:C,'Planned Maint v6.2 CSV File'!C:C,'Contractor##'!F:F) -> -0.373 | I199: 37.64508 | J199: Gate:Renew galvanised mild steel gate ne 1.00sm, overall consisting of 25x25x3mm angle frame with corners mitred and welded and seven 10x10mm balusters with ends welded to frame, including sliding bolt, stop and one pair of hanging lugs fixed to brickwork or concrete, prepare for and decorate, and remove waste and debris.
A200: 0230AB | B200: GATE:RENEW METAL NE 2.0SM | C200: FENCING AND GATES | D200: Fencing | E200: Fencing - Metal Gates | F200: NO | G200: 134.57 | H200: =SUMIF('Contractor##'!C:C,'Planned Maint v6.2 CSV File'!C:C,'Contractor##'!F:F) -> -0.373 | I200: 84.37539 | J200: Gate:Renew galvanised mild steel gate ne 2.00sm overall consisting of 25x25x3mm angle frame with corners mitred and welded and seven 10x10mm balusters with ends welded to frame, including sliding bolt, stop and one pair of hanging lugs fixed to brickwork or concrete, prepare for and decorate, and remove waste and debris.
... 2998 more rows

Sheet Contractor##
K1: Rate Packet Order
K2: Details | L2: Order
C3: Camden Better Homes Construction Framework | K3: SCAFFOLD | L3: 1
C4: Lot 2: Internals & Externals | K4: ROOF | L4: 2
C5: Schedule 4: Pricing Document | K5: WINDOWS | L5: 3
K6: EXTREP | L6: 4
C7: Morgan Sindall | K7: COMMUNAL WORKS | L7: 5
K8: ASBESTOS | L8: 6
D9: Works total (exc Central Overhead and Profit) | G9: 142064000 | K9: ESTATE WORKS | L9: 7
K10: FRA WORKS | L10: 8
C11: Category | D11: Weighting | E11: Score share | F11: (-) Discount/ (+) Increase | G11: Score | K11: ENERGY EFFICIENY | L11: 9
C12: NHF Schedule - Planned Maintenance and Property Reinvestment Works - Version 6.2 - Volume 2 - Schedule of Rates
C14: Foundations | D14: 0.0011 | E14: =G$9*D14 -> 156270.4 | F14: -0.373 | G14: =(1+F14)*E14 -> 97981.5408
C15: Groundworks | D15: 0.0011 | E15: =G$9*D15 -> 156270.4 | F15: -0.373 | G15: =(1+F15)*E15 -> 97981.5408
C16: Fencing and gates | D16: 0.0011 | E16: 156270.4 | F16: -0.373 | G16: 97981.5408
C17: Drainage | D17: 0.0011 | E17: 156270.4 | F17: -0.306 | G17: 108451.6576
C18: Brickwork | D18: 0.0162 | E18: 2301436.8 | F18: -0.304 | G18: 1601800.013
C19: Masonry | D19: 0.0011 | E19: 156270.4 | F19: -0.294 | G19: 110326.9024
C20: Roofing | D20: 0.1135 | E20: 16124264 | F20: -0.35 | G20: 10480771.6
C21: CARPENTRY AND JOINERY | D21: 0.2236 | E21: 31765510.4 | F21: -0.304 | G21: 22108795.24
C22: Plasterwork and other finishes | D22: 0.0114 | E22: 1619529.6 | F22: -0.343 | G22: 1064030.947
C23: WALL AND FLOOR TILE AND SHEET FINISHES | D23: 0.0041 | E23: 582462.4 | F23: -0.254 | G23: 434516.9504
C24: Painting and decorating | D24: 0.0986 | E24: 14007510.4 | F24: -0.314 | G24: 9609152.134
C25: Cleaning and clearances | D25: 0.0009 | E25: 127857.6 | F25: -0.47 | G25: 67764.528
C26: Glazing | D26: 0.0194 | E26: 2756041.6 | F26: -0.294 | G26: 1945765.37
C27: Plumbing | D27: 0.0073 | E27: 1037067.2 | F27: -0.343 | G27: 681353.1504
C28: Electrical | D28: 0.0041 | E28: 582462.4 | F28: -0.294 | G28: 411218.4544
C29: Specialist treatments | D29: 0.0011 | E29: 156270.4 | F29: -0.259 | G29: 115796.3664
C31: Addendums
C33: Scaffolding | D33: 0.1781 | E33: =G$9*D33 -> 25301598.4 | F33: 0.32 | G33: =(1+F33)*E33 -> 33398109.89
C34: Window repairs addendum | D34: 0.1322 | E34: 18780860.8 | F34: 0.02 | G34: 19156478.02
C35: Fabric Repairs addendum | D35: 0.0185 | E35: 2628184 | F35: -0.38 | G35: 1629474.08
C36: Roofing addendum | D36: 0.0117 | E36: 1662148.8 | F36: -0.01 | G36: 1645527.312
C37: Asbestos internal/external | D37: 0.0089 | E37: 1264369.6 | F37: 0.02 | G37: 1289656.992
C39: Internal Baskets
C41: Kitchens | D41: 0.0204 | E41: =G$9*D41 -> 2898105.6 | F41: -0.02 | G41: =(1+F41)*E41 -> 2840143.488
C42: Bathrooms | D42: 0.0059 | E42: 838177.6 | F42: 0.064 | G42: 891820.9664
C43: Electrical Internals | D43: 0.0149 | E43: 2116753.6 | F43: -0.07 | G43: 1968580.848
C44: Heating | D44: 0.0037 | E44: 525636.8 | F44: -0.07 | G44: 488842.224
C46: Project Overhead Schedule
C47: Category | D47: Weighting | E47: Estimated Spend | F47: % Increase or Decrease on Schedule | G47: Score
C49: Project Overhead Schedule | D49: 0.1 | E49: =G$9*D49 -> 14206400 | F49: -0.3 | G49: =(1+F49)*E49 -> 9944480
D52: Works Tender Score | G52: =(SUM(G13:G30))+(SUM(G33:G37))+(SUM(G40:G45))+G49 -> 122286801.7
C54: Percentage for Central Overhead & Profit
C55: Category | F55: Percentage | G55: Amount
C57: Percentage for Central Overhead & Profit | F57: 0.05 | G57: =G52*F57 -> 6114340.087
D60: Tender Price Score | G60: =G52+G57 -> 128401141.8
D62: =(SUM(D14:D44))+D49 -> 1 | E62: =SUM(E14:E49) -> 142064000
C64: * It is anticipated that most of the works done under this heading will be window renewals and repairs

Sheet Overheads,Scaffold&Other Costs
AK2: May not need this section
V4: Scaffolding- additional hire over 12 weeks (if required)
A6: Requirement | C6: Requirement Type | D6: Rowtype (H=Header, D=Detail) | E6: Description | F6: Works Order Commencement Date | G6: Works Order Completion Date | H6: Specification Ref. Item No.'s | I6: Works Order Delivery Date | J6: SOR Code | K6: SOR Unit | L6: No units | M6: Allocation | N6: No Months | O6: Tendered rate | P6: Improved rate | Q6: Total Cost | V6: Property | W6: Code | X6: Requirement Type | Y6: Rowtype (H=Header, D=Detail) | Z6: Description | AA6: Works Order Commencement Date | AB6: Works Order Completion Date | AC6: Specification Ref. Item No.'s | AD6: Works Order Delivery Date | AE6: SOR Code | AF6: SOR Unit | AG6: SOR Qty | AH6: SOR Cost | AI6: Total Cost | AK6: Rate (max) | AL6: Cost (max) | AM6: Modified price | AN6: Tendered rate | AO6: Tendered total
U7: 0 | V7: =OFFSET(PropertyStart,0,U7) -> Flaxman Court | W7: =INDIRECT("'"&V7&"'!B6") -> REPB47873 | X7: SCAFFOLD | Y7: D | Z7: Additional Hire if required - % per week of total scaffolding costs. This is to be applied in the event an agreed programme exceeding the duration set out above. An example would be large low level blocks of 4 storeys requiring a large programme duration (additional weeks over 12 weeks) | AE7: SC024 | AF7: weeks | AG7: 16 | AH7: =IF($AP$10="",$AP$8,$AP$10) -> 0.012 | AI7: =AG7*AH7*(SUMIFS(INDIRECT("'"&V7 &"'!T:T"),INDIRECT("'"&V7 &"'!j:j"),"<>SC024",INDIRECT("'"&V7 &"'!C:C"),"SCAFFOLD")-AI8-'Flaxman Court'!T57) -> 11504.60736 | AK7: =SUMIF('Planned Maint v6.2 CSV File'!A:A,AE7,'Planned Maint v6.2 CSV File'!I:I) -> 0.0483 | AL7: =IF(AE7="PROV SUM",AI7,#REF!*AK7) ->  | AM7: =IF(AE7="Prov Sum","",IF(MATCH(AE7,'Packet Rate Library'!J:J,0),VLOOKUP(AE7,'Packet Rate Library'!J:T,9,FALSE),"")) ->  | AN7: =AK7 -> 0.0483 | AO7: =IF(AE7="PROV SUM",AI7,AG7*AN7) -> 0.7728
C8: PROJECT OVERHEADS- Staffing | U8: 1 | V8: Flaxman Court | W8: REPB47873 | X8: SCAFFOLD | Y8: D | Z8: Weekly hire (in event of programme extension in line with NEC opt A compensation event agreed). Hoist hire (total number of weeks) | AE8: SC027 | AF8: weeks | AG8: 16 | AH8: =IF($AP$14="",$AP$12,$AP$14) -> 150 | AI8: =AG8*AH8 -> 2400 | AK8: =SUMIF('Planned Maint v6.2 CSV File'!A:A,AE8,'Planned Maint v6.2 CSV File'!I:I) -> 236.28 | AL8: =IF(AE8="PROV SUM",AI8,#REF!*AK8) ->  | AM8: =IF(AE8="Prov Sum","",IF(MATCH(AE8,'Packet Rate Library'!J:J,0),VLOOKUP(AE8,'Packet Rate Library'!J:T,9,FALSE),"")) -> 0 | AN8: =AK8 -> 236.28 | AO8: =IF(AE8="PROV SUM",AI8,AG8*AN8) -> 3780.48 | AP8: ='Planned Maint v6.2 CSV File'!I2999 -> 0.0483 | AQ8: Additional Hire if required - % per week of total scaffolding costs. This is to be applied in the event an agreed programme exceeding 12 weeks
C9: PROJECT OVERHEADS- Staffing | D9: D | E9: Project Manager | J9: 1.01 | K9: Unit/Month | L9: 1 | M9: 0.4 | N9: 8 | O9: =SUMIF('Planned Maint v6.2 CSV File'!A:A,J9,'Planned Maint v6.2 CSV File'!I:I) -> 4268.77193 | Q9: =IF(NOT(ISBLANK(P9)),P9*N9*M9*L9,O9*N9*M9*L9) -> 13660.07018 | AK9: =SUMIF('Planned Maint v6.2 CSV File'!A:A,AE9,'Planned Maint v6.2 CSV File'!I:I) -> 0 | AL9: =IF(AE9="PROV SUM",AI9,#REF!*AK9) ->  | AM9: =IF(AE9="Prov Sum","",IF(MATCH(AE9,'Packet Rate Library'!J:J,0),VLOOKUP(AE9,'Packet Rate Library'!J:T,9,FALSE),"")) ->  | AN9: 0 | AO9: 0
C10: PROJECT OVERHEADS- Staffing | D10: D | E10: Senior Contract Manager | J10: 1.02 | K10: Unit/Month | O10: =SUMIF('Planned Maint v6.2 CSV File'!A:A,J10,'Planned Maint v6.2 CSV File'!I:I) -> 5148.5 | Q10: =IF(NOT(ISBLANK(P10)),P10*N10*M10*L10,O10*N10*M10*L10) -> 0 | AK10: =SUMIF('Planned Maint v6.2 CSV File'!A:A,AE10,'Planned Maint v6.2 CSV File'!I:I) -> 0 | AL10: =IF(AE10="PROV SUM",AI10,#REF!*AK10) ->  | AM10: =IF(AE10="Prov Sum","",IF(MATCH(AE10,'Packet Rate Library'!J:J,0),VLOOKUP(AE10,'Packet Rate Library'!J:T,9,FALSE),"")) ->  | AN10: 0 | AO10: 0 | AP10: 0.012 | AQ10: Additional Hire if required - % per week of total scaffolding costs. This is to be applied in the event an agreed programme exceeding 12 weeks (modified)
C11: PROJECT OVERHEADS- Staffing | D11: D | E11: Contract Manager | J11: 1.03 | K11: Unit/Month | O11: =SUMIF('Planned Maint v6.2 CSV File'!A:A,J11,'Planned Maint v6.2 CSV File'!I:I) -> 3799.04 | Q11: 0 | AK11: =SUMIF('Planned Maint v6.2 CSV File'!A:A,AE11,'Planned Maint v6.2 CSV File'!I:I) -> 0 | AL11: =IF(AE11="PROV SUM",AI11,#REF!*AK11) ->  | AM11: =IF(AE11="Prov Sum","",IF(MATCH(AE11,'Packet Rate Library'!J:J,0),VLOOKUP(AE11,'Packet Rate Library'!J:T,9,FALSE),"")) ->  | AN11: 0 | AO11: 0
C12: PROJECT OVERHEADS- Staffing | D12: D | E12: Senior Site Manager | J12: 1.04 | K12: Unit/Month | L12: 1 | M12: 1 | N12: 8 | O12: =SUMIF('Planned Maint v6.2 CSV File'!A:A,J12,'Planned Maint v6.2 CSV File'!I:I) -> 3497.725 | Q12: 27981.8 | AK12: =SUMIF('Planned Maint v6.2 CSV File'!A:A,AE12,'Planned Maint v6.2 CSV File'!I:I) -> 0 | AL12: =IF(AE12="PROV SUM",AI12,#REF!*AK12) ->  | AM12: =IF(AE12="Prov Sum","",IF(MATCH(AE12,'Packet Rate Library'!J:J,0),VLOOKUP(AE12,'Packet Rate Library'!J:T,9,FALSE),"")) ->  | AN12: 0 | AO12: 0 | AP12: ='Planned Maint v6.2 CSV File'!I3002 -> 236.28 | AQ12: Weekly hire (in event of programme extension in line with NEC opt A compensation event agreed). Hoist hire (total number of weeks)
C13: PROJECT OVERHEADS- Staffing | D13: D | E13: Site Manager | J13: 1.05 | K13: Unit/Month | O13: =SUMIF('Planned Maint v6.2 CSV File'!A:A,J13,'Planned Maint v6.2 CSV File'!I:I) -> 3130.05 | Q13: 0 | AK13: =SUMIF('Planned Maint v6.2 CSV File'!A:A,AE13,'Planned Maint v6.2 CSV File'!I:I) -> 0 | AL13: =IF(AE13="PROV SUM",AI13,#REF!*AK13) ->  | AM13: =IF(AE13="Prov Sum","",IF(MATCH(AE13,'Packet Rate Library'!J:J,0),VLOOKUP(AE13,'Packet Rate Library'!J:T,9,FALSE),"")) ->  | AN13: 0 | AO13: 0
C14: PROJECT OVERHEADS- Staffing | D14: D | E14: Assistant Site Manager | J14: 1.06 | K14: Unit/Month | O14: =SUMIF('Planned Maint v6.2 CSV File'!A:A,J14,'Planned Maint v6.2 CSV File'!I:I) -> 2737.35 | Q14: 0 | AK14: =SUMIF('Planned Maint v6.2 CSV File'!A:A,AE14,'Planned Maint v6.2 CSV File'!I:I) -> 0 | AL14: =IF(AE14="PROV SUM",AI14,#REF!*AK14) ->  | AM14: =IF(AE14="Prov Sum","",IF(MATCH(AE14,'Packet Rate Library'!J:J,0),VLOOKUP(AE14,'Packet Rate Library'!J:T,9,FALSE),"")) ->  | AN14: 0 | AO14: 0 | AP14: 150 | AQ14: Weekly hire (in event of programme extension in line with NEC opt A compensation event agreed). Hoist hire (total number of weeks) (modified)
C15: PROJECT OVERHEADS- Staffing | D15: D | E15: Site Supervisor | J15: 1.07 | K15: Unit/Month | O15: =SUMIF('Planned Maint v6.2 CSV File'!A:A,J15,'Planned Maint v6.2 CSV File'!I:I) -> 2032.66 | Q15: 0 | AK15: =SUMIF('Planned Maint v6.2 CSV File'!A:A,AE15,'Planned Maint v6.2 CSV File'!I:I) -> 0 | AL15: =IF(AE15="PROV SUM",AI15,#REF!*AK15) ->  | AM15: =IF(AE15="Prov Sum","",IF(MATCH(AE15,'Packet Rate Library'!J:J,0),VLOOKUP(AE15,'Packet Rate Library'!J:T,9,FALSE),"")) ->  | AN15: 0 | AO15: 0
C16: PROJECT OVERHEADS- Staffing | D16: D | E16: Technical (lifts, electrical, etc) Supervisor | J16: 1.08 | K16: Unit/Month | O16: =SUMIF('Planned Maint v6.2 CSV File'!A:A,J16,'Planned Maint v6.2 CSV File'!I:I) -> 2585.45 | Q16: 0 | AK16: =SUMIF('Planned Maint v6.2 CSV File'!A:A,AE16,'Planned Maint v6.2 CSV File'!I:I) -> 0 | AL16: =IF(AE16="PROV SUM",AI16,#REF!*AK16) ->  | AM16: =IF(AE16="Prov Sum","",IF(MATCH(AE16,'Packet Rate Library'!J:J,0),VLOOKUP(AE16,'Packet Rate Library'!J:T,9,FALSE),"")) ->  | AN16: 0 | AO16: 0
C17: PROJECT OVERHEADS- Staffing | D17: D | E17: Co-ordinator / RLO / TLO | J17: 1.09 | K17: Unit/Month | L17: 1 | M17: 1 | N17: 8 | O17: =SUMIF('Planned Maint v6.2 CSV File'!A:A,J17,'Planned Maint v6.2 CSV File'!I:I) -> 1735.58 | Q17: 13884.64 | AK17: =SUMIF('Planned Maint v6.2 CSV File'!A:A,AE17,'Planned Maint v6.2 CSV File'!I:I) -> 0 | AL17: =IF(AE17="PROV SUM",AI17,#REF!*AK17) ->  | AM17: =IF(AE17="Prov Sum","",IF(MATCH(AE17,'Packet Rate Library'!J:J,0),VLOOKUP(AE17,'Packet Rate Library'!J:T,9,FALSE),"")) ->  | AN17: 0 | AO17: 0
C18: PROJECT OVERHEADS- Staffing | D18: D | E18: Senior QS | J18: 1.1 | K18: Unit/Month | O18: =SUMIF('Planned Maint v6.2 CSV File'!A:A,J18,'Planned Maint v6.2 CSV File'!I:I) -> 4471.6 | Q18: 0 | AK18: =SUMIF('Planned Maint v6.2 CSV File'!A:A,AE18,'Planned Maint v6.2 CSV File'!I:I) -> 0 | AL18: =IF(AE18="PROV SUM",AI18,#REF!*AK18) ->  | AM18: =IF(AE18="Prov Sum","",IF(MATCH(AE18,'Packet Rate Library'!J:J,0),VLOOKUP(AE18,'Packet Rate Library'!J:T,9,FALSE),"")) ->  | AN18: 0 | AO18: 0
C19: PROJECT OVERHEADS- Staffing | D19: D | E19: QS | J19: 1.11 | K19: Unit/Month | L19: 1 | M19: 0.5 | N19: 8 | O19: =SUMIF('Planned Maint v6.2 CSV File'!A:A,J19,'Planned Maint v6.2 CSV File'!I:I) -> 4154.85 | Q19: 16619.4 | AK19: =SUMIF('Planned Maint v6.2 CSV File'!A:A,AE19,'Planned Maint v6.2 CSV File'!I:I) -> 0 | AL19: =IF(AE19="PROV SUM",AI19,#REF!*AK19) ->  | AM19: =IF(AE19="Prov Sum","",IF(MATCH(AE19,'Packet Rate Library'!J:J,0),VLOOKUP(AE19,'Packet Rate Library'!J:T,9,FALSE),"")) ->  | AN19: 0 | AO19: 0
C20: PROJECT OVERHEADS- Staffing | D20: D | E20: Assistant QS | J20: 1.12 | K20: Unit/Month | O20: =SUMIF('Planned Maint v6.2 CSV File'!A:A,J20,'Planned Maint v6.2 CSV File'!I:I) -> 1672.825 | Q20: 0 | AK20: =SUMIF('Planned Maint v6.2 CSV File'!A:A,AE20,'Planned Maint v6.2 CSV File'!I:I) -> 0 | AL20: =IF(AE20="PROV SUM",AI20,#REF!*AK20) ->  | AM20: =IF(AE20="Prov Sum","",IF(MATCH(AE20,'Packet Rate Library'!J:J,0),VLOOKUP(AE20,'Packet Rate Library'!J:T,9,FALSE),"")) ->  | AN20: 0 | AO20: 0
C21: PROJECT OVERHEADS- Staffing | D21: D | E21: Ad Hoc Site Administrator | J21: 1.13 | K21: Unit/Month | O21: =SUMIF('Planned Maint v6.2 CSV File'!A:A,J21,'Planned Maint v6.2 CSV File'!I:I) -> 1186.185 | Q21: 0 | AK21: =SUMIF('Planned Maint v6.2 CSV File'!A:A,AE21,'Planned Maint v6.2 CSV File'!I:I) -> 0 | AL21: =IF(AE21="PROV SUM",AI21,#REF!*AK21) ->  | AM21: =IF(AE21="Prov Sum","",IF(MATCH(AE21,'Packet Rate Library'!J:J,0),VLOOKUP(AE21,'Packet Rate Library'!J:T,9,FALSE),"")) ->  | AN21: 0 | AO21: 0
C22: PROJECT OVERHEADS- Other | D22: H | AK22: =SUMIF('Planned Maint v6.2 CSV File'!A:A,AE22,'Planned Maint v6.2 CSV File'!I:I) -> 0 | AL22: =IF(AE22="PROV SUM",AI22,#REF!*AK22) ->  | AM22: =IF(AE22="Prov Sum","",IF(MATCH(AE22,'Packet Rate Library'!J:J,0),VLOOKUP(AE22,'Packet Rate Library'!J:T,9,FALSE),"")) ->  | AN22: 0 | AO22: 0
C23: PROJECT OVERHEADS- Other | D23: D | E23: Site office Cabin (At site office location, with furniture) (drop off, pick up included) | J23: 2.01 | K23: Unit/Month | L23: 2 | M23: 1 | N23: 8 | O23: =SUMIF('Planned Maint v6.2 CSV File'!A:A,J23,'Planned Maint v6.2 CSV File'!I:I) -> 99.792 | Q23: =IF(NOT(ISBLANK(P23)),P23*N23*M23*L23,O23*N23*M23*L23) -> 1596.672 | AK23: =SUMIF('Planned Maint v6.2 CSV File'!A:A,AE23,'Planned Maint v6.2 CSV File'!I:I) -> 0 | AL23: =IF(AE23="PROV SUM",AI23,#REF!*AK23) ->  | AM23: =IF(AE23="Prov Sum","",IF(MATCH(AE23,'Packet Rate Library'!J:J,0),VLOOKUP(AE23,'Packet Rate Library'!J:T,9,FALSE),"")) ->  | AN23: 0 | AO23: 0
C24: PROJECT OVERHEADS- Other | D24: D | E24: Site stores cabin (At site office location) (drop off, pick up included) | J24: 2.02 | K24: Unit/Month | L24: 1 | M24: 1 | N24: 8 | O24: =SUMIF('Planned Maint v6.2 CSV File'!A:A,J24,'Planned Maint v6.2 CSV File'!I:I) -> 27.3672 | Q24: 218.9376 | AK24: =SUMIF('Planned Maint v6.2 CSV File'!A:A,AE24,'Planned Maint v6.2 CSV File'!I:I) -> 0 | AL24: =IF(AE24="PROV SUM",AI24,#REF!*AK24) ->  | AM24: =IF(AE24="Prov Sum","",IF(MATCH(AE24,'Packet Rate Library'!J:J,0),VLOOKUP(AE24,'Packet Rate Library'!J:T,9,FALSE),"")) ->  | AN24: 0 | AO24: 0
C25: PROJECT OVERHEADS- Other | D25: D | E25: Site portable toilet and shower block (drop off, pick up included) | J25: 2.03 | K25: Unit/Month | O25: =SUMIF('Planned Maint v6.2 CSV File'!A:A,J25,'Planned Maint v6.2 CSV File'!I:I) -> 650.16 | Q25: 0 | AK25: =SUMIF('Planned Maint v6.2 CSV File'!A:A,AE25,'Planned Maint v6.2 CSV File'!I:I) -> 0 | AL25: =IF(AE25="PROV SUM",AI25,#REF!*AK25) ->  | AM25: =IF(AE25="Prov Sum","",IF(MATCH(AE25,'Packet Rate Library'!J:J,0),VLOOKUP(AE25,'Packet Rate Library'!J:T,9,FALSE),"")) ->  | AN25: 0 | AO25: 0
C26: PROJECT OVERHEADS- Other | D26: D | E26: Site portable toilet 3+1 (drop off, pick up included) | J26: 2.04 | K26: Unit/Month | O26: =SUMIF('Planned Maint v6.2 CSV File'!A:A,J26,'Planned Maint v6.2 CSV File'!I:I) -> 650.16 | Q26: 0
C27: PROJECT OVERHEADS- Other | D27: D | E27: Site portable changing/canteen/drying (drop off, pick up included) | J27: 2.05 | K27: Unit/Month | O27: =SUMIF('Planned Maint v6.2 CSV File'!A:A,J27,'Planned Maint v6.2 CSV File'!I:I) -> 90.72 | Q27: 0
C28: PROJECT OVERHEADS- Other | D28: D | E28: Portaloo (drop off, pick up included) | J28: 2.06 | K28: Unit/Month | L28: 3 | M28: 1 | N28: 8 | O28: =SUMIF('Planned Maint v6.2 CSV File'!A:A,J28,'Planned Maint v6.2 CSV File'!I:I) -> 60.48 | Q28: 1451.52
C29: PROJECT OVERHEADS- Other | D29: D | E29: Site accommodation general waste per site set up | J29: 2.07 | K29: Unit/Month | O29: =SUMIF('Planned Maint v6.2 CSV File'!A:A,J29,'Planned Maint v6.2 CSV File'!I:I) -> 175 | Q29: 0
C30: PROJECT OVERHEADS- Other | D30: D | E30: Fencing/hoarding per site set up | J30: 2.08 | K30: Unit/Month | L30: 10 | M30: 1 | N30: 1 | O30: =SUMIF('Planned Maint v6.2 CSV File'!A:A,J30,'Planned Maint v6.2 CSV File'!I:I) -> 90.72 | Q30: 907.2
C31: PROJECT OVERHEADS- Other | D31: D | E31: Power per site set up | J31: 2.09 | K31: Unit/Month | L31: 1 | M31: 1 | N31: 8 | O31: =SUMIF('Planned Maint v6.2 CSV File'!A:A,J31,'Planned Maint v6.2 CSV File'!I:I) -> 63 | Q31: 504
C32: PROJECT OVERHEADS- Other | D32: D | E32: Telephone, communications for remote Office Etc… per site set up | J32: 2.1 | K32: Unit/Month | L32: 6 | M32: 1 | N32: 8 | O32: =SUMIF('Planned Maint v6.2 CSV File'!A:A,J32,'Planned Maint v6.2 CSV File'!I:I) -> 56 | Q32: 2688
C33: PROJECT OVERHEADS- Other | D33: D | E33: Site set up safety (health & safety pack, first aid pack, fire extinguishers, etc.) per site set up | J33: 2.11 | K33: Item | O33: =SUMIF('Planned Maint v6.2 CSV File'!A:A,J33,'Planned Maint v6.2 CSV File'!I:I) -> 140 | Q33: 0
C34: PROJECT OVERHEADS- Other | D34: D | E34: Set up signage | J34: 2.12 | K34: Item | L34: 2 | M34: 1 | N34: 1 | O34: =SUMIF('Planned Maint v6.2 CSV File'!A:A,J34,'Planned Maint v6.2 CSV File'!I:I) -> 210 | Q34: 420
C35: PROJECT OVERHEADS- Other | D35: D | E35: Cleaning per site set up | J35: 2.13 | K35: Unit/Month | L35: 1 | M35: 1 | N35: 8 | O35: =SUMIF('Planned Maint v6.2 CSV File'!A:A,J35,'Planned Maint v6.2 CSV File'!I:I) -> 210.7 | Q35: 1685.6
C36: PROJECT OVERHEADS- Other | D36: D | E36: Sundries (office stationery, printers, water, etc) per site set up | J36: 2.14 | K36: Unit/Month | L36: 1 | M36: 1 | N36: 8 | O36: =SUMIF('Planned Maint v6.2 CSV File'!A:A,J36,'Planned Maint v6.2 CSV File'!I:I) -> 90.3 | Q36: 722.4
C37: The Contractor is to set out below costs for any items such a site security; watching the works; lifting, access or debris removal equipment, car parking suspension bay costs, licences, hoarding; fencing, power, water, additional staff, resources, etc. and all matters covered by the Works Information Scope of Works and Section A Employers Requirements not allowed for elsewhere. The Contractor is instructed to use the priced rates as submitted with the framework tender to price for items covered in that schedule
C38: ADDITIONAL | D38: D | E38: Staff mobile phone purchase | K38: ea | L38: 6 | M38: 1 | N38: 1 | O38: 1500 | Q38: 9000
C39: ADDITIONAL | D39: D | E39: IT licences | L39: 6 | M39: 1 | N39: 1 | O39: 250 | Q39: 1500
C40: ADDITIONAL | D40: D | E40: IT equipment purchase | L40: 6 | M40: 1 | N40: 1 | O40: 750 | Q40: 4500
C41: ADDITIONAL | D41: D | E41: Photocopier/printer | L41: 1 | M41: 1 | N41: 8 | O41: 45 | Q41: 360
C42: ADDITIONAL | D42: D | E42: Power connection (weekly cost included above) | L42: 1 | M42: 1 | N42: 1 | O42: 1500 | Q42: 1500
C43: ADDITIONAL | D43: D | E43: Skips/Waste Removal | L43: 1 | M43: 1 | N43: 1 | O43: 7626.88 | Q43: 7626.88
C44: ADDITIONAL | D44: D | E44: CRB checks/ID cards | L44: 6 | M44: 1 | N44: 1 | O44: 55 | Q44: 330
C45: ADDITIONAL | D45: D | Q45: 0
C46: ADDITIONAL | D46: D | Q46: 0
C47: ADDITIONAL | D47: D | Q47: 0
C48: ADDITIONAL | D48: D | Q48: 0
C49: ADDITIONAL | D49: D | Q49: 0
C50: ADDITIONAL | D50: D | Q50: 0
C51: ADDITIONAL | D51: D | Q51: 0
C52: ADDITIONAL | D52: D | Q52: 0
C53: ADDITIONAL | D53: D | Q53: 0
P55: TOTAL | Q55: =SUM(Q9:Q54) -> 107157.1198
C57: ADDITIONAL RATES (please insert price)- Rates not covered in the framework schedule. Please insert price in yellow cell and the it will be added to the individual properties when relevant
E59: Description | J59: SOR Code | K59: SOR Unit | L59: Rate
E60: Contractor to access and undertake survey of loft space in accordance with the Project Brief in order to assess level of current loft insulation. Including submittion of a survey report supported by photographic evidance to CM/PM. Where insulation levels are less then 200mm, Contractor to provide cost proposal to upgrade insulation in accordance with NHF SoR Planned Maintenance Version 6.2. | J60: ADD001 | K60: ITEM | L60: 225

Sheet Summary
C3: Percentage for Central Overhead & Profit | D3: ='Contractor##'!F57 -> 0.05
C5: Percentage for Central Overhead & Profit (modified) | D5: 0.05
J7: Check for text containing Provisional sum
B8: Property Order | C8: Property | D8: Cost of Activities | E8: Provisional Sums | F8: Project Overheads & Other | G8: Central Overheads and Profit | H8: TOTAL | J8: Provisional sums | K8: Check property sheet for difference
B9: 0 | C9: =OFFSET(PropertyStart,0,B9) -> Flaxman Court | D9: =IF(C9=0,"",SUM(INDIRECT("'"&C9&"'!T:T"))) -> 1166925.163 | E9: =IF(C9=0,"",SUMIF(INDIRECT("'"&C9&"'!J:J"),"PROV SUM",INDIRECT("'"&C9&"'!T:T"))) -> 977799.98 | F9: =IF(D9="","",D9/$D$60*$F$60) -> 107157.1198 | G9: =IF(F9="","",(D9+F9)*IF(NOT(ISBLANK($D$5)),$D$5,$D$3)) -> 63704.11415 | H9: =D9+F9+G9 -> 1337786.397 | J9: =IF(C9=0,"",SUMIF(INDIRECT("'"&C9&"'!E:E"),"*PROVISIONAL SUM*",INDIRECT("'"&C9&"'!T:T"))) -> 174400 | K9: =IF(J9="","",J9-E9) -> -803399.98
B10: 1 | C10: 0 | D10: =IF(C10=0,"",SUM(INDIRECT("'"&C10&"'!T:T"))) ->  | E10: =IF(C10=0,"",SUMIF(INDIRECT("'"&C10&"'!J:J"),"PROV SUM",INDIRECT("'"&C10&"'!T:T"))) ->  | F10: =IF(D10="","",D10/$D$60*$F$60) ->  | G10: =IF(F10="","",(D10+F10)*IF(NOT(ISBLANK($D$5)),$D$5,$D$3)) ->  | H10: =SUM(D10:G10) -> 0 | J10: =IF(C10=0,"",SUMIF(INDIRECT("'"&C10&"'!E:E"),"*PROVISIONAL SUM*",INDIRECT("'"&C10&"'!T:T"))) ->  | K10: =IF(J10="","",J10-E10) -> 
B11: 2 | C11: 0 | H11: 0
B12: 3 | C12: 0 | H12: 0
B13: 4 | C13: 0 | H13: 0
B14: 5 | C14: 0 | H14: 0
B15: 6 | C15: 0 | H15: 0
B16: 7 | C16: 0 | H16: 0
B17: 8 | C17: =OFFSET(PropertyStart,0,B17) -> 0 | H17: 0
B18: 9 | C18: 0 | H18: 0
B19: 10 | C19: 0 | H19: 0
B20: 11 | C20: 0 | H20: 0
B21: 12 | C21: 0 | H21: 0
B22: 13 | C22: 0 | H22: 0
B23: 14 | C23: 0 | H23: 0
B24: 15 | C24: 0 | H24: 0
B25: 16 | C25: 0 | H25: 0
B26: 17 | C26: 0 | H26: 0
B27: 18 | C27: 0 | H27: 0
B28: 19 | C28: 0 | D28: =IF(C28=0,"",SUM(INDIRECT("'"&C28&"'!T:T"))+E28) ->  | F28: =IF(D28="","",D28/$D$60*$F$60) ->  | G28: =IF(F28="","",(D28+F28)*IF(NOT(ISBLANK($D$5)),$D$5,$D$3)) ->  | H28: =SUM(D28:G28) -> 0
B29: 20 | C29: 0 | F29: =IF(D29="","",D29/$D$60*$F$60) ->  | G29: =IF(F29="","",(D29+F29)*IF(NOT(ISBLANK($D$5)),$D$5,$D$3)) ->  | H29: =SUM(D29:G29) -> 0
B30: 21 | C30: 0 | H30: 0
B31: 22 | C31: 0 | H31: 0
B32: 23 | C32: 0 | H32: 0
B33: 24 | C33: 0 | H33: 0
B34: 25 | C34: 0 | H34: 0
B35: 26 | C35: 0 | H35: 0
B36: 27 | C36: 0 | H36: 0
B37: 28 | C37: 0 | H37: 0
B38: 29 | C38: 0 | H38: 0
B39: 30 | C39: 0 | H39: 0
B40: 31 | C40: 0 | H40: 0
B41: 32 | C41: 0 | H41: 0
B42: 33 | C42: 0 | H42: 0
B43: 34 | C43: 0 | H43: 0
B44: 35 | C44: 0 | H44: 0
B45: 36 | C45: 0 | H45: 0
B46: 37 | C46: 0 | H46: 0
B47: 38 | C47: 0 | H47: 0
B48: 39 | C48: 0 | H48: 0
B49: 40 | C49: 0 | H49: 0
B50: 41 | C50: 0 | H50: 0
B51: 42 | C51: 0 | H51: 0
B52: 43 | C52: 0 | H52: 0
B53: 44 | C53: 0 | H53: 0
B54: 45 | C54: 0 | H54: 0
B55: 46 | C55: 0 | H55: 0
B56: 47 | C56: 0 | H56: 0
B57: 48 | C57: 0 | H57: 0
B58: 49 | C58: 0 | H58: 0
B59: 50 | C59: 0 | H59: 0
C60: TOTAL | D60: =SUM(D9:D59) -> 1166925.163 | E60: =SUM(E9:E59) -> 977799.98 | F60: ='Overheads,Scaffold&Other Costs'!Q55 -> 107157.1198 | G60: =SUM(G9:G59) -> 63704.11415 | H60: =D60+F60+G60 -> 1337786.397 | J60: =SUM(J9:J59) -> 174400 | K60: =SUM(K9:K59) -> -803399.98
C63: Value of Rate Library (excl. prov sums, excl. scaffold ) | D63: =SUM('Packet Rate Library'!T:T) -> 175220.5759
C65: =IF(D65<>0,"ERROR","") -> ERROR | D65: =D60-D63-E60-SUM('Overheads,Scaffold&Other Costs'!AI:AI) -> -4.420144251e-10
C67: =J7 -> Check for text containing Provisional sum | D67: =J60-E60 -> -803399.98

Sheet Packet Rate Library
A1: =LEFT(E1,100)&J1 ->  | B1: Template row | L1: =SUM(V1:BS1) -> 0 | N1: =L1*M1 -> 0 | O1: =VLOOKUP(C1,RateOrderTable,2,FALSE) ->  | P1: =SUMIF('Planned Maint v6.2 CSV File'!A:A,J1,'Planned Maint v6.2 CSV File'!I:I) -> 0 | Q1: =IF(J1="PROV SUM",N1,L1*P1) -> 0 | S1: =IF(R1>0,R1,P1) -> 0 | T1: =IF(J1="PROV SUM",N1,L1*S1) -> 0 | V1: =IF(ISERROR(VLOOKUP($J1,INDIRECT("'"&V$7&"'!J:J"),1,FALSE)),"",SUMIF(INDIRECT("'"&V$7&"'!J:J"),$J1,INDIRECT("'"&V$7&"'!L:L"))) ->  | W1: =IF(ISERROR(VLOOKUP($J1,INDIRECT("'"&W$7&"'!J:J"),1,FALSE)),"",SUMIF(INDIRECT("'"&W$7&"'!J:J"),$J1,INDIRECT("'"&W$7&"'!L:L"))) -> 
A3: BILL OF QUANTITIES - RAPID LOADER
V6: SOR Qtys
A7: Requirement | B7: REPB | C7: Requirement Type | D7: Rowtype (H=Header, D=Detail) | E7: Description | F7: Works Order Commencement Date | G7: Works Order Completion Date | H7: Specification Ref. Item No.'s | I7: Works Order Delivery Date | J7: SOR Code | K7: SOR Unit | L7: SOR Qty | M7: SOR Cost | N7: Total Cost | P7: Rate (max) | Q7: Cost (max) | R7: Modified price | S7: Tendered rate | T7: Tendered total | V7: Flaxman Court
B9: REPB47873 | C9: SCAFFOLD | D9: D | E9: Standard Scaffold item: erect; dismantle; basic independent tied working scaffolding; 5 boards wide, including hire period; completely accessible; debris netting to all elevations; double boarded and polythene included as necessary, any fan(s) included as required; rope plus wheel for lifting operations; 3rd handrail included whenever necessary; as per applicable regulations (applies to up to 5 storeys). Measured up to second handrail and by the middle of the scaffold (equidistant from the inside/outside face) including design when required. Rate to include for 12 week hire | H9: 2.1 | J9: SC001 | K9: M2 | L9: =SUM(V9:BS9) -> 3440 | M9: 12.92 | N9: =L9*M9 -> 44444.8 | P9: =SUMIF('Planned Maint v6.2 CSV File'!A:A,J9,'Planned Maint v6.2 CSV File'!I:I) -> 17.0544 | Q9: =IF(J9="PROV SUM",N9,L9*P9) -> 58667.136 | R9: 15.5 | S9: =IF(R9>0,R9,P9) -> 15.5 | T9: =IF(J9="PROV SUM",N9,L9*S9) -> 53320 | V9: =IF(ISERROR(VLOOKUP($J9,INDIRECT("'"&V$7&"'!J:J"),1,FALSE)),"",SUMIF(INDIRECT("'"&V$7&"'!J:J"),$J9,INDIRECT("'"&V$7&"'!L:L"))) -> 3440 | AF9: =IF(ISERROR(VLOOKUP($J9,INDIRECT("'"&AF$7&"'!J:J"),1,FALSE)),"",SUMIF(INDIRECT("'"&AF$7&"'!J:J"),$J9,INDIRECT("'"&AF$7&"'!L:L"))) ->  | AP9: =IF(ISERROR(VLOOKUP($J9,INDIRECT("'"&AP$7&"'!J:J"),1,FALSE)),"",SUMIF(INDIRECT("'"&AP$7&"'!J:J"),$J9,INDIRECT("'"&AP$7&"'!L:L"))) ->  | AZ9: =IF(ISERROR(VLOOKUP($J9,INDIRECT("'"&AZ$7&"'!J:J"),1,FALSE)),"",SUMIF(INDIRECT("'"&AZ$7&"'!J:J"),$J9,INDIRECT("'"&AZ$7&"'!L:L"))) ->  | BJ9: =IF(ISERROR(VLOOKUP($J9,INDIRECT("'"&BJ$7&"'!J:J"),1,FALSE)),"",SUMIF(INDIRECT("'"&BJ$7&"'!J:J"),$J9,INDIRECT("'"&BJ$7&"'!L:L"))) -> 
B10: REPB47873 | C10: SCAFFOLD | D10: D | E10: Scaffold alarm - 1 x sounder, 2 x PIR 1 X key pad (Divided by Number of properties if continuous scaffolds) | H10: 2.5 | J10: SC005 | K10: unit | L10: 4 | M10: 420 | N10: 1680 | P10: =SUMIF('Planned Maint v6.2 CSV File'!A:A,J10,'Planned Maint v6.2 CSV File'!I:I) -> 554.4 | Q10: 2217.6 | R10: 500 | S10: 500 | T10: 2000 | V10: 4
B11: REPB47873 | C11: SCAFFOLD | D11: D | E11: E/O for additional PIRS | H11: 2.6 | J11: SC007 | K11: unit | L11: 3 | M11: 50 | N11: 150 | P11: =SUMIF('Planned Maint v6.2 CSV File'!A:A,J11,'Planned Maint v6.2 CSV File'!I:I) -> 66 | Q11: 198 | R11: 52.8 | S11: 52.8 | T11: 158.4 | V11: 3
B12: REPB47873 | C12: SCAFFOLD | D12: D | E12: Installation of rubbish chute | H12: 2.18 | J12: SC018 | K12: lm | L12: 18 | M12: 45 | N12: 810 | P12: =SUMIF('Planned Maint v6.2 CSV File'!A:A,J12,'Planned Maint v6.2 CSV File'!I:I) -> 59.4 | Q12: 1069.2 | R12: 42.5 | S12: 42.5 | T12: 765 | V12: 18
B13: REPB47873 | C13: SCAFFOLD | D13: D | E13: Modular Beams (Measured as lm include inside/outside face of scaffold- 2 beams included) | H13: 2.2 | J13: SC020 | K13: lm | L13: 20 | M13: 59.92 | N13: 1198.4 | P13: =SUMIF('Planned Maint v6.2 CSV File'!A:A,J13,'Planned Maint v6.2 CSV File'!I:I) -> 79.0944 | Q13: 1581.888 | R13: 61.5 | S13: 61.5 | T13: 1230 | V13: 20
B14: REPB47873 | C14: SCAFFOLD | D14: D | E14: Erecting hoist mast- per unit- up to 5 storeys (including delivery, dismantle and gates) | H14: 2.26 | J14: SC026 | K14: unit | L14: 2 | M14: 1127.5 | N14: 2255 | P14: =SUMIF('Planned Maint v6.2 CSV File'!A:A,J14,'Planned Maint v6.2 CSV File'!I:I) -> 1488.3 | Q14: 2976.6 | R14: 1190.64 | S14: 1190.64 | T14: 2381.28 | V14: 2
B15: REPB47873 | C15: SCAFFOLD | D15: D | E15: Weekly hire (in event of programme extension in line with NEC opt A compensation event agreed). Hoist hire | H15: 2.27 | J15: SC027 | K15: week | M15: 179 | N15: 0 | P15: =SUMIF('Planned Maint v6.2 CSV File'!A:A,J15,'Planned Maint v6.2 CSV File'!I:I) -> 236.28 | Q15: 0 | S15: 236.28 | T15: 0 | V15: 20
B16: REPB47873 | C16: SCAFFOLD | D16: D | E16: Parking bay suspensions per 2 bays fee. | H16: 2.28 | J16: SC028 | K16: day | L16: 120 | M16: 77.26 | N16: 9271.2 | P16: =SUMIF('Planned Maint v6.2 CSV File'!A:A,J16,'Planned Maint v6.2 CSV File'!I:I) -> 101.9832 | Q16: 12237.984 | R16: 82.12 | S16: 82.12 | T16: 9854.4 | V16: 120
B17: REPB47873 | C17: SCAFFOLD | D17: D | E17: Suspension of Parking Bays administration Fee | H17: 2.29 | J17: SC029 | K17: item | L17: 1 | M17: 61.29 | N17: 61.29 | P17: =SUMIF('Planned Maint v6.2 CSV File'!A:A,J17,'Planned Maint v6.2 CSV File'!I:I) -> 80.9028 | Q17: 80.9028 | R17: 65.15 | S17: 65.15 | T17: 65.15 | V17: 1
B18: REPB47873 | C18: ROOF | D18: D | E18: Slate: Renew any size and type of natural roof slates including double course at eaves cloaked verges, ridge, hips and valley tiles, supply and install proprietary ventilation units in roof, renew all code 6 lead flashings, aprons chimney gutters and the like wedged and pointed, renew valley gutter and valley board as necessary including all labours, cutting etc including renew roofing felt and battens and install restraint straps to gables and elevational gables, and remove waste and debris. | H18: 3.219 | J18: 2034AC | K18: SM | L18: 30 | M18: 133.3 | N18: 3999 | P18: =SUMIF('Planned Maint v6.2 CSV File'!A:A,J18,'Planned Maint v6.2 CSV File'!I:I) -> 86.645 | Q18: 2599.35 | R18: 69.32 | S18: 69.32 | T18: 2079.6 | V18: 30
B19: REPB47873 | C19: ROOF | D19: D | E19: Gutter: Clean out debris from gutters to any type of property including flush out and test, rod downpipe including clean out gulley and remove debris from site on completion (per elevation). | H19: 3.364 | J19: 6039BA | K19: IT | L19: 10 | M19: 20.13 | N19: 201.3 | P19: =SUMIF('Planned Maint v6.2 CSV File'!A:A,J19,'Planned Maint v6.2 CSV File'!I:I) -> 13.22541 | Q19: 132.2541 | R19: 10.58 | S19: 10.58 | T19: 105.8 | V19: =IF(ISERROR(VLOOKUP($J19,INDIRECT("'"&V$7&"'!J:J"),1,FALSE)),"",SUMIF(INDIRECT("'"&V$7&"'!J:J"),$J19,INDIRECT("'"&V$7&"'!L:L"))) -> 10 | AF19: =IF(ISERROR(VLOOKUP($J19,INDIRECT("'"&AF$7&"'!J:J"),1,FALSE)),"",SUMIF(INDIRECT("'"&AF$7&"'!J:J"),$J19,INDIRECT("'"&AF$7&"'!L:L"))) ->  | AP19: =IF(ISERROR(VLOOKUP($J19,INDIRECT("'"&AP$7&"'!J:J"),1,FALSE)),"",SUMIF(INDIRECT("'"&AP$7&"'!J:J"),$J19,INDIRECT("'"&AP$7&"'!L:L"))) ->  | AZ19: =IF(ISERROR(VLOOKUP($J19,INDIRECT("'"&AZ$7&"'!J:J"),1,FALSE)),"",SUMIF(INDIRECT("'"&AZ$7&"'!J:J"),$J19,INDIRECT("'"&AZ$7&"'!L:L"))) ->  | BJ19: =IF(ISERROR(VLOOKUP($J19,INDIRECT("'"&BJ$7&"'!J:J"),1,FALSE)),"",SUMIF(INDIRECT("'"&BJ$7&"'!J:J"),$J19,INDIRECT("'"&BJ$7&"'!L:L"))) -> 
B20: REPB47873 | C20: WINDOWS | D20: D | E20: PRIME COST SUM: Arden Windows supply and install to all elevations (592 No. windows). | H20: 4.293 | J20: PC SUM | K20: SUM | L20: 0 | M20: 803399.98 | N20: 0 | P20: =SUMIF('Planned Maint v6.2 CSV File'!A:A,J20,'Planned Maint v6.2 CSV File'!I:I) -> 0 | Q20: 0 | S20: 0 | T20: 0
B21: REPB47873 | C21: EXTREP | D21: D | E21: Wall: Cut out bricks from face of wall, clean and clear away, lay upto 15 No. new facing bricks in cement lime mortar (1:1:6), bond, bed and point to match existing and remove waste and debris. | H21: 6.85 | J21: 1019BA | K21: IT | L21: 5 | M21: 21.92 | N21: 109.6 | P21: =SUMIF('Planned Maint v6.2 CSV File'!A:A,J21,'Planned Maint v6.2 CSV File'!I:I) -> 15.25632 | Q21: 76.2816 | S21: 15.25632 | T21: 76.2816 | V21: 5
B22: REPB47873 | C22: EXTREP | D22: D | E22: Wall: Rake out existing joints of brickwork min 12mm and repoint brickwork in mortar to match existing and remove waste and debris. | H22: 6.91 | J22: 1021AA | K22: SM | L22: 35 | M22: 20.13 | N22: 704.55 | P22: =SUMIF('Planned Maint v6.2 CSV File'!A:A,J22,'Planned Maint v6.2 CSV File'!I:I) -> 14.01048 | Q22: 490.3668 | S22: 14.01048 | T22: 490.3668 | V22: 35
B23: REPB47873 | C23: EXTREP | D23: D | E23: Cill: Hack off defective area of concrete cill clean and treat any exposed reinforcement, drill into cill and insert 6mm diameter reinforcing bars at 150mm centres, apply bonding agent and reform cill with fine concrete to match existing profiles including all necessary formwork, make good to structure and all finishes and fillets and remove waste and debris. | H23: 6.116 | J23: 1031BA | K23: NO | L23: 16 | M23: 38.74 | N23: 619.84 | P23: =SUMIF('Planned Maint v6.2 CSV File'!A:A,J23,'Planned Maint v6.2 CSV File'!I:I) -> 26.96304 | Q23: 431.40864 | S23: 26.96304 | T23: 431.40864 | V23: 16
B24: REPB47873 | C24: EXTREP | D24: D | E24: Wall: Apply 12mm cement and sand render (1:3) with waterproofing agent to external walls including ‘Rough Sandtex’ finish, dub out as necessary with cement and sand and all labours and remove waste and debris. | H24: 6.305 | J24: 4210AF | K24: SM | L24: 54 | M24: 33.5 | N24: 1809 | P24: =SUMIF('Planned Maint v6.2 CSV File'!A:A,J24,'Planned Maint v6.2 CSV File'!I:I) -> 22.0095 | Q24: 1188.513 | R24: 18.5 | S24: 18.5 | T24: 999 | V24: 54
B25: REPB47873 | C25: EXTREP | D25: D | E25: Walls: Wash down, fill in cracks and holes, sand down and apply two coats of smooth or textured masonry paint to brickwork surfaces of walls. | H25: 6.182 | J25: 4356AD | K25: SM | L25: 800 | M25: 10.17 | N25: 8136 | P25: =SUMIF('Planned Maint v6.2 CSV File'!A:A,J25,'Planned Maint v6.2 CSV File'!I:I) -> 6.97662 | Q25: 5581.296 | R25: 6.28 | S25: 6.28 | T25: 5024 | V25: 800
B26: REPB47873 | C26: EXTREP | D26: D | E26: Soffit: Wash down, fill in cracks and holes, sand smooth and apply one coat of sealer and two coats of smooth or textured masonry paint to rendered or concrete soffits. | H26: 6.188 | J26: 4356CB | K26: SM | L26: 80 | M26: 9.82 | N26: 785.6 | P26: =SUMIF('Planned Maint v6.2 CSV File'!A:A,J26,'Planned Maint v6.2 CSV File'!I:I) -> 6.73652 | Q26: 538.9216 | R26: 6.06 | S26: 6.06 | T26: 484.8 | V26: 80
B27: REPB47873 | C27: EXTREP | D27: D | E27: Gates: Wire brush, prepare for, and apply one coat primer, one undercoat, two coats of gloss paint to both sides of any size type single metal gate including all edges and all surfaces of posts. | H27: 6.203 | J27: 4362DA | K27: IT | L27: 2 | M27: 21.61 | N27: 43.22 | P27: =SUMIF('Planned Maint v6.2 CSV File'!A:A,J27,'Planned Maint v6.2 CSV File'!I:I) -> 14.82446 | Q27: 29.64892 | R27: 13.34 | S27: 13.34 | T27: 26.68 | V27: 2
B28: REPB47873 | C28: EXTREP | D28: D | E28: Balustrading: Wire brush, prepare for and apply one coat of primer, one undercoat, two coats of gloss paint on ornamental metal balustrading, railings or gates (measured both sides). | H28: 6.204 | J28: 4362EA | K28: SM | L28: 270 | M28: 20.51 | N28: 5537.7 | P28: =SUMIF('Planned Maint v6.2 CSV File'!A:A,J28,'Planned Maint v6.2 CSV File'!I:I) -> 14.06986 | Q28: 3798.8622 | R28: 12.66 | S28: 12.66 | T28: 3418.2 | V28: 270
B29: REPB47873 | C29: EXTREP | D29: D | E29: Pipework: Wire brush, prime prepare for and apply coat of primer, one undercoat, and two coats of gloss paint to external pipework ne 300mm girth including brackets. | H29: 6.207 | J29: 4362HA | K29: LM | L29: 460 | M29: 2.21 | N29: 1016.6 | P29: =SUMIF('Planned Maint v6.2 CSV File'!A:A,J29,'Planned Maint v6.2 CSV File'!I:I) -> 1.51606 | Q29: 697.3876 | R29: 1.36 | S29: 1.36 | T29: 625.6 | V29: =IF(ISERROR(VLOOKUP($J29,INDIRECT("'"&V$7&"'!J:J"),1,FALSE)),"",SUMIF(INDIRECT("'"&V$7&"'!J:J"),$J29,INDIRECT("'"&V$7&"'!L:L"))) -> 460 | AF29: =IF(ISERROR(VLOOKUP($J29,INDIRECT("'"&AF$7&"'!J:J"),1,FALSE)),"",SUMIF(INDIRECT("'"&AF$7&"'!J:J"),$J29,INDIRECT("'"&AF$7&"'!L:L"))) ->  | AP29: =IF(ISERROR(VLOOKUP($J29,INDIRECT("'"&AP$7&"'!J:J"),1,FALSE)),"",SUMIF(INDIRECT("'"&AP$7&"'!J:J"),$J29,INDIRECT("'"&AP$7&"'!L:L"))) ->  | AZ29: =IF(ISERROR(VLOOKUP($J29,INDIRECT("'"&AZ$7&"'!J:J"),1,FALSE)),"",SUMIF(INDIRECT("'"&AZ$7&"'!J:J"),$J29,INDIRECT("'"&AZ$7&"'!L:L"))) ->  | BJ29: =IF(ISERROR(VLOOKUP($J29,INDIRECT("'"&BJ$7&"'!J:J"),1,FALSE)),"",SUMIF(INDIRECT("'"&BJ$7&"'!J:J"),$J29,INDIRECT("'"&BJ$7&"'!L:L"))) -> 
B30: REPB47873 | C30: EXTREP | D30: D | E30: Door: Rub down, prepare for and apply one coat of primer, one undercoat and two coats of gloss paint to all surfaces of any size or type of single glazed timber door. (one sides and edges). | H30: 6.238 | J30: 4380DA | K30: IT | L30: 8 | M30: 20.71 | N30: 165.68 | P30: =SUMIF('Planned Maint v6.2 CSV File'!A:A,J30,'Planned Maint v6.2 CSV File'!I:I) -> 14.20706 | Q30: 113.65648 | R30: 12.79 | S30: 12.79 | T30: 102.32 | V30: 8
B31: REPB47873 | C31: EXTREP | D31: D | E31: Gates: Rub down, prepare for, and apply one undercoat, two coats of gloss paint on existing painted surfaces of gates and posts (measured both sides). | H31: 6.258 | J31: 4381FA | K31: SM | L31: 4 | M31: 12.41 | N31: 49.64 | P31: =SUMIF('Planned Maint v6.2 CSV File'!A:A,J31,'Planned Maint v6.2 CSV File'!I:I) -> 8.51326 | Q31: 34.05304 | R31: 7.66 | S31: 7.66 | T31: 30.64 | V31: 4
B32: REPB47873 | C32: COMMUNAL WORKS | D32: D | E32: Hall Stairs: Thoroughly clean down all wall and ceiling surfaces to common areas to remove dirt, grease and surface containments, scrape and remove all loose and defective coatings, prime bare areas with one coat of fire retardant primer and apply two coats of Class ‘O’ fire retardant matt paint, prepare and apply two coats of polyurethane lacquer or one undercoat and one gloss coat to all previously decorated timber surfaces to hall, landing and staircase areas complete (3 storey) (classified as a single area). | H32: 5.6 | J32: 4540AB | K32: IT | L32: 8 | M32: 1320 | N32: 10560 | P32: =SUMIF('Planned Maint v6.2 CSV File'!A:A,J32,'Planned Maint v6.2 CSV File'!I:I) -> 905.52 | Q32: 7244.16 | R32: 814.97 | S32: 814.97 | T32: 6519.76 | V32: 8
B33: REPB47873 | C33: COMMUNAL WORKS | D33: D | E33: Hall: Thoroughly clean down all wall and ceiling surfaces to common areas to remove dirt, grease and surface containments, scrape and remove all loose and defective coatings, prime bare areas with one coat of fire retardant primer and apply two coats of Class ‘O’ fire retardant matt paint, prepare and apply two coats of polyurethane lacquer or one undercoat and one gloss coat to all previously decorated timber surfaces to lobby, hall or corridor over 3.00sm ceiling area complete (classified as a single area). | H33: 5.1 | J33: 4540AC | K33: IT | L33: 4 | M33: 480 | N33: 1920 | P33: =SUMIF('Planned Maint v6.2 CSV File'!A:A,J33,'Planned Maint v6.2 CSV File'!I:I) -> 329.28 | Q33: 1317.12 | R33: 305 | S33: 305 | T33: 1220 | V33: 4
B34: REPB47873 | C34: COMMUNAL WORKS | D34: D | E34: Lobby: Thoroughly clean down all wall and ceiling surfaces to common areas to remove dirt, grease and surface containments, scrape and remove all loose and defective coatings, prime bare areas with one coat of fire retardant primer and apply two coats of Class ‘O’ fire retardant matt paint, prepare and apply two coats of polyurethane lacquer or one undercoat and one gloss coat to all previously decorated timber surfaces to lobby or hall ne 3.00sm ceiling area complete (classified as a single area). | H34: 5.2 | J34: 4540AD | K34: IT | L34: 24 | M34: 260 | N34: 6240 | P34: =SUMIF('Planned Maint v6.2 CSV File'!A:A,J34,'Planned Maint v6.2 CSV File'!I:I) -> 178.36 | Q34: 4280.64 | R34: 165 | S34: 165 | T34: 3960 | V34: 24
B35: REPB47873 | C35: ASBESTOS | D35: D | E35: Refurbishment and Demolition Survey to Full Property (with upto 5 Nr samples) , flat or house any size | H35: 1.3 | J35: A003 | K35: Item | L35: 4 | M35: 234 | N35: 936 | P35: =SUMIF('Planned Maint v6.2 CSV File'!A:A,J35,'Planned Maint v6.2 CSV File'!I:I) -> 238.68 | Q35: 954.72 | R35: 189.54 | S35: 189.54 | T35: 758.16 | V35: 4
B36: REPB47873 | C36: ENERGY EFFICIENY | D36: D | E36: Insulation:Supply and lay ne 270mm thick insulation quilt to loft area including gain access and moving/replacing contents within loft area in order to undertake work. Item 2270AA | H36: 9.1 | J36: 2270AA | K36: SM | L36: 900 | M36: 10.86 | N36: 9774 | P36: =SUMIF('Planned Maint v6.2 CSV File'!A:A,J36,'Planned Maint v6.2 CSV File'!I:I) -> 7.059 | Q36: 6353.1 | R36: 7 | S36: 7 | T36: 6300 | V36: 900
B37: REPB47873 | C37: ENERGY EFFICIENY | D37: D | E37: Contractor to access and undertake survey of loft space in accordance with the Project Brief in order to assess level of current loft insulation. Including submittion of a survey report supported by photographic evidance to CM/PM. Where insulation levels are less then 200mm, Contractor to provide cost proposal to upgrade insulation in accordance with NHF SoR Planned Maintenance Version 6.2. | H37: 9.1 | J37: ADD001 | K37: IT | L37: 1 | N37: 0 | P37: =SUMIF('Planned Maint v6.2 CSV File'!A:A,J37,'Planned Maint v6.2 CSV File'!I:I) -> 225 | Q37: 225 | S37: 225 | T37: 225 | V37: 1
B38: REPB47873 | C38: FRA | D38: D | E38: Partition:Fill in existing opening in stud partition with ne 50x100mm members fixed to walls, pack out, scribe, 12.5mm taper edged plasterboard scrim jointed, labours, skirting to both faces. | H38: 183 | J38: 3013CA | K38: Item | L38: 1 | M38: 72.9 | N38: 72.9 | P38: =SUMIF('Planned Maint v6.2 CSV File'!A:A,J38,'Planned Maint v6.2 CSV File'!I:I) -> 50.7384 | Q38: 50.7384 | R38: 0 | S38: 50.7384 | T38: 50.7384 | V38: 1
B39: REPB47873 | C39: FRA | D39: D | E39: Door:Renew front door with any size panelled, glazed or partially glazed or similar proprietary high performance GRP door, prefinished, preglazed, and prehung to and including proprietary door frame and cill, including new mortice lock, door furniture, keeps, pair of bolts, cylinder nightlatch and pull, security restraint device, proprietary letter plate, numerals, proprietary weathermould, fix frame and cill to struycture, seal around frame and cill, make good and remove waste and debris. | H39: 10 | J39: 3221CB | K39: Item | L39: 84 | M39: 1212.5 | N39: 101850 | P39: =SUMIF('Planned Maint v6.2 CSV File'!A:A,J39,'Planned Maint v6.2 CSV File'!I:I) -> 843.9 | Q39: 70887.6 | R39: 746.84 | S39: 746.84 | T39: 62734.56 | V39: =IF(ISERROR(VLOOKUP($J39,INDIRECT("'"&V$7&"'!J:J"),1,FALSE)),"",SUMIF(INDIRECT("'"&V$7&"'!J:J"),$J39,INDIRECT("'"&V$7&"'!L:L"))) -> 84 | AF39: =IF(ISERROR(VLOOKUP($J39,INDIRECT("'"&AF$7&"'!J:J"),1,FALSE)),"",SUMIF(INDIRECT("'"&AF$7&"'!J:J"),$J39,INDIRECT("'"&AF$7&"'!L:L"))) ->  | AP39: =IF(ISERROR(VLOOKUP($J39,INDIRECT("'"&AP$7&"'!J:J"),1,FALSE)),"",SUMIF(INDIRECT("'"&AP$7&"'!J:J"),$J39,INDIRECT("'"&AP$7&"'!L:L"))) ->  | AZ39: =IF(ISERROR(VLOOKUP($J39,INDIRECT("'"&AZ$7&"'!J:J"),1,FALSE)),"",SUMIF(INDIRECT("'"&AZ$7&"'!J:J"),$J39,INDIRECT("'"&AZ$7&"'!L:L"))) ->  | BJ39: =IF(ISERROR(VLOOKUP($J39,INDIRECT("'"&BJ$7&"'!J:J"),1,FALSE)),"",SUMIF(INDIRECT("'"&BJ$7&"'!J:J"),$J39,INDIRECT("'"&BJ$7&"'!L:L"))) -> 
B40: REPB47873 | C40: FRA | D40: D | E40: Door:Renew internal with any size FD30S plywood faced fire check flush door, including remove existing door, hinges and stops, fit and hang new door on 1.5 pairs of 100mm steel hinges, make good or alter recesses on frame, door complete with all ironmongery, intumescent strips and smoke seals, provide and fix 25x32mm door stop set, make good and prepare door for decoration and make good decorations to frame, and remove waste and debris. | H40: 14 | J40: 3300BE | K40: Item | L40: 4 | M40: 168.48 | N40: 673.92 | P40: =SUMIF('Planned Maint v6.2 CSV File'!A:A,J40,'Planned Maint v6.2 CSV File'!I:I) -> 117.26208 | Q40: 469.04832 | R40: 113.81 | S40: 113.81 | T40: 455.24 | V40: 4
B41: REPB47873 | C41: FRA | D41: D | E41: Intumescent Strip:Renew or supply and fix new 22x4mm intumescent strip, half hour application, with integral cold smoke seal and setting into groove in timber frame or door. | H41: 104 | J41: 3431AC | K41: Item | L41: 2 | M41: 3.44 | N41: 6.88 | P41: =SUMIF('Planned Maint v6.2 CSV File'!A:A,J41,'Planned Maint v6.2 CSV File'!I:I) -> 2.39424 | Q41: 4.78848 | R41: 2.2 | S41: 2.2 | T41: 4.4 | V41: 2
B42: REPB47873 | C42: FRA | D42: D | E42: Closer:Renew or supply and fix Perko concealed door closer or other equal and approved screwed to door and frame. | H42: 175 | J42: 3905BA | K42: Item | L42: 2 | M42: 12.89 | N42: 25.78 | P42: =SUMIF('Planned Maint v6.2 CSV File'!A:A,J42,'Planned Maint v6.2 CSV File'!I:I) -> 6.82776 | Q42: 13.65552 | S42: 6.82776 | T42: 13.65552 | V42: 2
B43: REPB47873 | C43: FRA | D43: D | E43: Fire Upgrading Coating:Remove all existing defective paint to plastered or rendered wall surfaces back to a solid edge, feather off and repair any defective areas with a high quality filler as necessary, spot prime filled or bare areas with afire upgrading primer, remove any existing graffiti with a graffiti removal system, wash down, rinse, clean off and apply two full coats of fire upgrading primer at a coverage rate of 10sm per litre, apply two full coats of fire upgrading finish at a coverage rate of 10sm per litre. | H43: 31 | J43: 4802AB | K43: Item | L43: 0 | M43: 29.01 | N43: 0 | P43: =SUMIF('Planned Maint v6.2 CSV File'!A:A,J43,'Planned Maint v6.2 CSV File'!I:I) -> 19.90086 | Q43: 0 | S43: 19.90086 | T43: 0
B44: REPB47873 | C44: FRA | D44: D | E44: Smoke Detector:Renew existing with mains operated optical smoke detector with rechargeable DC battery or condensor back up self contained type to BS 5446 kitemark certified with hush button, including back plate and all necessary connections to existing wiring, test and make good on completion, where interlinked detectors are replaced new detectors must be compatible with existing, and remove waste and debris. | H44: 115 | J44: 8720FA | K44: Item | L44: 84 | M44: 70.11 | N44: 5889.24 | P44: =SUMIF('Planned Maint v6.2 CSV File'!A:A,J44,'Planned Maint v6.2 CSV File'!I:I) -> 49.49766 | Q44: 4157.80344 | S44: 49.49766 | T44: 4157.80344 | V44: 84
B45: REPB47873 | C45: FRA | D45: D | E45: Test:Carry out test of domestic installation to occupied property complete comprising continuity, insulation resistance, polarity, earth fault loop impedance and operation of residual current operated device, disconnect, repair and renew as necessary after removal of illegal wiring and components, and provide report and NICEIC/ECA test certificate to the Client’s Representative, and remove waste and debris. | H45: 154 | J45: 8950AA | K45: Item | L45: 84 | M45: 86.88 | N45: 7297.92 | P45: =SUMIF('Planned Maint v6.2 CSV File'!A:A,J45,'Planned Maint v6.2 CSV File'!I:I) -> 61.33728 | Q45: 5152.33152 | S45: 61.33728 | T45: 5152.33152 | V45: 84
BL46: =IF(ISERROR(VLOOKUP(#REF!,INDIRECT("'"&BL$7&"'!J:J"),1,FALSE)),"",SUMIF(INDIRECT("'"&BL$7&"'!J:J"),#REF!,INDIRECT("'"&BL$7&"'!L:L"))) ->  | BM46: =IF(ISERROR(VLOOKUP(#REF!,INDIRECT("'"&BM$7&"'!J:J"),1,FALSE)),"",SUMIF(INDIRECT("'"&BM$7&"'!J:J"),#REF!,INDIRECT("'"&BM$7&"'!L:L"))) ->  | BN46: =IF(ISERROR(VLOOKUP(#REF!,INDIRECT("'"&BN$7&"'!J:J"),1,FALSE)),"",SUMIF(INDIRECT("'"&BN$7&"'!J:J"),#REF!,INDIRECT("'"&BN$7&"'!L:L"))) ->  | BO46: =IF(ISERROR(VLOOKUP(#REF!,INDIRECT("'"&BO$7&"'!J:J"),1,FALSE)),"",SUMIF(INDIRECT("'"&BO$7&"'!J:J"),#REF!,INDIRECT("'"&BO$7&"'!L:L"))) ->  | BP46: =IF(ISERROR(VLOOKUP(#REF!,INDIRECT("'"&BP$7&"'!J:J"),1,FALSE)),"",SUMIF(INDIRECT("'"&BP$7&"'!J:J"),#REF!,INDIRECT("'"&BP$7&"'!L:L"))) ->  | BQ46: =IF(ISERROR(VLOOKUP(#REF!,INDIRECT("'"&BQ$7&"'!J:J"),1,FALSE)),"",SUMIF(INDIRECT("'"&BQ$7&"'!J:J"),#REF!,INDIRECT("'"&BQ$7&"'!L:L"))) ->  | BR46: =IF(ISERROR(VLOOKUP(#REF!,INDIRECT("'"&BR$7&"'!J:J"),1,FALSE)),"",SUMIF(INDIRECT("'"&BR$7&"'!J:J"),#REF!,INDIRECT("'"&BR$7&"'!L:L"))) ->  | BS46: =IF(ISERROR(VLOOKUP(#REF!,INDIRECT("'"&BS$7&"'!J:J"),1,FALSE)),"",SUMIF(INDIRECT("'"&BS$7&"'!J:J"),#REF!,INDIRECT("'"&BS$7&"'!L:L"))) -> 
BL47: =IF(ISERROR(VLOOKUP(#REF!,INDIRECT("'"&BL$7&"'!J:J"),1,FALSE)),"",SUMIF(INDIRECT("'"&BL$7&"'!J:J"),#REF!,INDIRECT("'"&BL$7&"'!L:L"))) ->  | BM47: =IF(ISERROR(VLOOKUP(#REF!,INDIRECT("'"&BM$7&"'!J:J"),1,FALSE)),"",SUMIF(INDIRECT("'"&BM$7&"'!J:J"),#REF!,INDIRECT("'"&BM$7&"'!L:L"))) ->  | BN47: =IF(ISERROR(VLOOKUP(#REF!,INDIRECT("'"&BN$7&"'!J:J"),1,FALSE)),"",SUMIF(INDIRECT("'"&BN$7&"'!J:J"),#REF!,INDIRECT("'"&BN$7&"'!L:L"))) ->  | BO47: =IF(ISERROR(VLOOKUP(#REF!,INDIRECT("'"&BO$7&"'!J:J"),1,FALSE)),"",SUMIF(INDIRECT("'"&BO$7&"'!J:J"),#REF!,INDIRECT("'"&BO$7&"'!L:L"))) ->  | BP47: =IF(ISERROR(VLOOKUP(#REF!,INDIRECT("'"&BP$7&"'!J:J"),1,FALSE)),"",SUMIF(INDIRECT("'"&BP$7&"'!J:J"),#REF!,INDIRECT("'"&BP$7&"'!L:L"))) ->  | BQ47: =IF(ISERROR(VLOOKUP(#REF!,INDIRECT("'"&BQ$7&"'!J:J"),1,FALSE)),"",SUMIF(INDIRECT("'"&BQ$7&"'!J:J"),#REF!,INDIRECT("'"&BQ$7&"'!L:L"))) ->  | BR47: =IF(ISERROR(VLOOKUP(#REF!,INDIRECT("'"&BR$7&"'!J:J"),1,FALSE)),"",SUMIF(INDIRECT("'"&BR$7&"'!J:J"),#REF!,INDIRECT("'"&BR$7&"'!L:L"))) ->  | BS47: =IF(ISERROR(VLOOKUP(#REF!,INDIRECT("'"&BS$7&"'!J:J"),1,FALSE)),"",SUMIF(INDIRECT("'"&BS$7&"'!J:J"),#REF!,INDIRECT("'"&BS$7&"'!L:L"))) -> 
BL48: =IF(ISERROR(VLOOKUP(#REF!,INDIRECT("'"&BL$7&"'!J:J"),1,FALSE)),"",SUMIF(INDIRECT("'"&BL$7&"'!J:J"),#REF!,INDIRECT("'"&BL$7&"'!L:L"))) ->  | BM48: =IF(ISERROR(VLOOKUP(#REF!,INDIRECT("'"&BM$7&"'!J:J"),1,FALSE)),"",SUMIF(INDIRECT("'"&BM$7&"'!J:J"),#REF!,INDIRECT("'"&BM$7&"'!L:L"))) ->  | BN48: =IF(ISERROR(VLOOKUP(#REF!,INDIRECT("'"&BN$7&"'!J:J"),1,FALSE)),"",SUMIF(INDIRECT("'"&BN$7&"'!J:J"),#REF!,INDIRECT("'"&BN$7&"'!L:L"))) ->  | BO48: =IF(ISERROR(VLOOKUP(#REF!,INDIRECT("'"&BO$7&"'!J:J"),1,FALSE)),"",SUMIF(INDIRECT("'"&BO$7&"'!J:J"),#REF!,INDIRECT("'"&BO$7&"'!L:L"))) ->  | BP48: =IF(ISERROR(VLOOKUP(#REF!,INDIRECT("'"&BP$7&"'!J:J"),1,FALSE)),"",SUMIF(INDIRECT("'"&BP$7&"'!J:J"),#REF!,INDIRECT("'"&BP$7&"'!L:L"))) ->  | BQ48: =IF(ISERROR(VLOOKUP(#REF!,INDIRECT("'"&BQ$7&"'!J:J"),1,FALSE)),"",SUMIF(INDIRECT("'"&BQ$7&"'!J:J"),#REF!,INDIRECT("'"&BQ$7&"'!L:L"))) ->  | BR48: =IF(ISERROR(VLOOKUP(#REF!,INDIRECT("'"&BR$7&"'!J:J"),1,FALSE)),"",SUMIF(INDIRECT("'"&BR$7&"'!J:J"),#REF!,INDIRECT("'"&BR$7&"'!L:L"))) ->  | BS48: =IF(ISERROR(VLOOKUP(#REF!,INDIRECT("'"&BS$7&"'!J:J"),1,FALSE)),"",SUMIF(INDIRECT("'"&BS$7&"'!J:J"),#REF!,INDIRECT("'"&BS$7&"'!L:L"))) -> 
BL49: =IF(ISERROR(VLOOKUP(#REF!,INDIRECT("'"&BL$7&"'!J:J"),1,FALSE)),"",SUMIF(INDIRECT("'"&BL$7&"'!J:J"),#REF!,INDIRECT("'"&BL$7&"'!L:L"))) ->  | BM49: =IF(ISERROR(VLOOKUP(#REF!,INDIRECT("'"&BM$7&"'!J:J"),1,FALSE)),"",SUMIF(INDIRECT("'"&BM$7&"'!J:J"),#REF!,INDIRECT("'"&BM$7&"'!L:L"))) ->  | BN49: =IF(ISERROR(VLOOKUP(#REF!,INDIRECT("'"&BN$7&"'!J:J"),1,FALSE)),"",SUMIF(INDIRECT("'"&BN$7&"'!J:J"),#REF!,INDIRECT("'"&BN$7&"'!L:L"))) ->  | BO49: =IF(ISERROR(VLOOKUP(#REF!,INDIRECT("'"&BO$7&"'!J:J"),1,FALSE)),"",SUMIF(INDIRECT("'"&BO$7&"'!J:J"),#REF!,INDIRECT("'"&BO$7&"'!L:L"))) ->  | BP49: =IF(ISERROR(VLOOKUP(#REF!,INDIRECT("'"&BP$7&"'!J:J"),1,FALSE)),"",SUMIF(INDIRECT("'"&BP$7&"'!J:J"),#REF!,INDIRECT("'"&BP$7&"'!L:L"))) ->  | BQ49: =IF(ISERROR(VLOOKUP(#REF!,INDIRECT("'"&BQ$7&"'!J:J"),1,FALSE)),"",SUMIF(INDIRECT("'"&BQ$7&"'!J:J"),#REF!,INDIRECT("'"&BQ$7&"'!L:L"))) ->  | BR49: =IF(ISERROR(VLOOKUP(#REF!,INDIRECT("'"&BR$7&"'!J:J"),1,FALSE)),"",SUMIF(INDIRECT("'"&BR$7&"'!J:J"),#REF!,INDIRECT("'"&BR$7&"'!L:L"))) ->  | BS49: =IF(ISERROR(VLOOKUP(#REF!,INDIRECT("'"&BS$7&"'!J:J"),1,FALSE)),"",SUMIF(INDIRECT("'"&BS$7&"'!J:J"),#REF!,INDIRECT("'"&BS$7&"'!L:L"))) -> 
BL50: =IF(ISERROR(VLOOKUP(#REF!,INDIRECT("'"&BL$7&"'!J:J"),1,FALSE)),"",SUMIF(INDIRECT("'"&BL$7&"'!J:J"),#REF!,INDIRECT("'"&BL$7&"'!L:L"))) ->  | BM50: =IF(ISERROR(VLOOKUP(#REF!,INDIRECT("'"&BM$7&"'!J:J"),1,FALSE)),"",SUMIF(INDIRECT("'"&BM$7&"'!J:J"),#REF!,INDIRECT("'"&BM$7&"'!L:L"))) ->  | BN50: =IF(ISERROR(VLOOKUP(#REF!,INDIRECT("'"&BN$7&"'!J:J"),1,FALSE)),"",SUMIF(INDIRECT("'"&BN$7&"'!J:J"),#REF!,INDIRECT("'"&BN$7&"'!L:L"))) ->  | BO50: =IF(ISERROR(VLOOKUP(#REF!,INDIRECT("'"&BO$7&"'!J:J"),1,FALSE)),"",SUMIF(INDIRECT("'"&BO$7&"'!J:J"),#REF!,INDIRECT("'"&BO$7&"'!L:L"))) ->  | BP50: =IF(ISERROR(VLOOKUP(#REF!,INDIRECT("'"&BP$7&"'!J:J"),1,FALSE)),"",SUMIF(INDIRECT("'"&BP$7&"'!J:J"),#REF!,INDIRECT("'"&BP$7&"'!L:L"))) ->  | BQ50: =IF(ISERROR(VLOOKUP(#REF!,INDIRECT("'"&BQ$7&"'!J:J"),1,FALSE)),"",SUMIF(INDIRECT("'"&BQ$7&"'!J:J"),#REF!,INDIRECT("'"&BQ$7&"'!L:L"))) ->  | BR50: =IF(ISERROR(VLOOKUP(#REF!,INDIRECT("'"&BR$7&"'!J:J"),1,FALSE)),"",SUMIF(INDIRECT("'"&BR$7&"'!J:J"),#REF!,INDIRECT("'"&BR$7&"'!L:L"))) ->  | BS50: =IF(ISERROR(VLOOKUP(#REF!,INDIRECT("'"&BS$7&"'!J:J"),1,FALSE)),"",SUMIF(INDIRECT("'"&BS$7&"'!J:J"),#REF!,INDIRECT("'"&BS$7&"'!L:L"))) -> 
BL51: =IF(ISERROR(VLOOKUP(#REF!,INDIRECT("'"&BL$7&"'!J:J"),1,FALSE)),"",SUMIF(INDIRECT("'"&BL$7&"'!J:J"),#REF!,INDIRECT("'"&BL$7&"'!L:L"))) ->  | BM51: =IF(ISERROR(VLOOKUP(#REF!,INDIRECT("'"&BM$7&"'!J:J"),1,FALSE)),"",SUMIF(INDIRECT("'"&BM$7&"'!J:J"),#REF!,INDIRECT("'"&BM$7&"'!L:L"))) ->  | BN51: =IF(ISERROR(VLOOKUP(#REF!,INDIRECT("'"&BN$7&"'!J:J"),1,FALSE)),"",SUMIF(INDIRECT("'"&BN$7&"'!J:J"),#REF!,INDIRECT("'"&BN$7&"'!L:L"))) ->  | BO51: =IF(ISERROR(VLOOKUP(#REF!,INDIRECT("'"&BO$7&"'!J:J"),1,FALSE)),"",SUMIF(INDIRECT("'"&BO$7&"'!J:J"),#REF!,INDIRECT("'"&BO$7&"'!L:L"))) ->  | BP51: =IF(ISERROR(VLOOKUP(#REF!,INDIRECT("'"&BP$7&"'!J:J"),1,FALSE)),"",SUMIF(INDIRECT("'"&BP$7&"'!J:J"),#REF!,INDIRECT("'"&BP$7&"'!L:L"))) ->  | BQ51: =IF(ISERROR(VLOOKUP(#REF!,INDIRECT("'"&BQ$7&"'!J:J"),1,FALSE)),"",SUMIF(INDIRECT("'"&BQ$7&"'!J:J"),#REF!,INDIRECT("'"&BQ$7&"'!L:L"))) ->  | BR51: =IF(ISERROR(VLOOKUP(#REF!,INDIRECT("'"&BR$7&"'!J:J"),1,FALSE)),"",SUMIF(INDIRECT("'"&BR$7&"'!J:J"),#REF!,INDIRECT("'"&BR$7&"'!L:L"))) ->  | BS51: =IF(ISERROR(VLOOKUP(#REF!,INDIRECT("'"&BS$7&"'!J:J"),1,FALSE)),"",SUMIF(INDIRECT("'"&BS$7&"'!J:J"),#REF!,INDIRECT("'"&BS$7&"'!L:L"))) -> 
BL52: =IF(ISERROR(VLOOKUP(#REF!,INDIRECT("'"&BL$7&"'!J:J"),1,FALSE)),"",SUMIF(INDIRECT("'"&BL$7&"'!J:J"),#REF!,INDIRECT("'"&BL$7&"'!L:L"))) ->  | BM52: =IF(ISERROR(VLOOKUP(#REF!,INDIRECT("'"&BM$7&"'!J:J"),1,FALSE)),"",SUMIF(INDIRECT("'"&BM$7&"'!J:J"),#REF!,INDIRECT("'"&BM$7&"'!L:L"))) ->  | BN52: =IF(ISERROR(VLOOKUP(#REF!,INDIRECT("'"&BN$7&"'!J:J"),1,FALSE)),"",SUMIF(INDIRECT("'"&BN$7&"'!J:J"),#REF!,INDIRECT("'"&BN$7&"'!L:L"))) ->  | BO52: =IF(ISERROR(VLOOKUP(#REF!,INDIRECT("'"&BO$7&"'!J:J"),1,FALSE)),"",SUMIF(INDIRECT("'"&BO$7&"'!J:J"),#REF!,INDIRECT("'"&BO$7&"'!L:L"))) ->  | BP52: =IF(ISERROR(VLOOKUP(#REF!,INDIRECT("'"&BP$7&"'!J:J"),1,FALSE)),"",SUMIF(INDIRECT("'"&BP$7&"'!J:J"),#REF!,INDIRECT("'"&BP$7&"'!L:L"))) ->  | BQ52: =IF(ISERROR(VLOOKUP(#REF!,INDIRECT("'"&BQ$7&"'!J:J"),1,FALSE)),"",SUMIF(INDIRECT("'"&BQ$7&"'!J:J"),#REF!,INDIRECT("'"&BQ$7&"'!L:L"))) ->  | BR52: =IF(ISERROR(VLOOKUP(#REF!,INDIRECT("'"&BR$7&"'!J:J"),1,FALSE)),"",SUMIF(INDIRECT("'"&BR$7&"'!J:J"),#REF!,INDIRECT("'"&BR$7&"'!L:L"))) ->  | BS52: =IF(ISERROR(VLOOKUP(#REF!,INDIRECT("'"&BS$7&"'!J:J"),1,FALSE)),"",SUMIF(INDIRECT("'"&BS$7&"'!J:J"),#REF!,INDIRECT("'"&BS$7&"'!L:L"))) -> 
BL53: =IF(ISERROR(VLOOKUP(#REF!,INDIRECT("'"&BL$7&"'!J:J"),1,FALSE)),"",SUMIF(INDIRECT("'"&BL$7&"'!J:J"),#REF!,INDIRECT("'"&BL$7&"'!L:L"))) ->  | BM53: =IF(ISERROR(VLOOKUP(#REF!,INDIRECT("'"&BM$7&"'!J:J"),1,FALSE)),"",SUMIF(INDIRECT("'"&BM$7&"'!J:J"),#REF!,INDIRECT("'"&BM$7&"'!L:L"))) ->  | BN53: =IF(ISERROR(VLOOKUP(#REF!,INDIRECT("'"&BN$7&"'!J:J"),1,FALSE)),"",SUMIF(INDIRECT("'"&BN$7&"'!J:J"),#REF!,INDIRECT("'"&BN$7&"'!L:L"))) ->  | BO53: =IF(ISERROR(VLOOKUP(#REF!,INDIRECT("'"&BO$7&"'!J:J"),1,FALSE)),"",SUMIF(INDIRECT("'"&BO$7&"'!J:J"),#REF!,INDIRECT("'"&BO$7&"'!L:L"))) ->  | BP53: =IF(ISERROR(VLOOKUP(#REF!,INDIRECT("'"&BP$7&"'!J:J"),1,FALSE)),"",SUMIF(INDIRECT("'"&BP$7&"'!J:J"),#REF!,INDIRECT("'"&BP$7&"'!L:L"))) ->  | BQ53: =IF(ISERROR(VLOOKUP(#REF!,INDIRECT("'"&BQ$7&"'!J:J"),1,FALSE)),"",SUMIF(INDIRECT("'"&BQ$7&"'!J:J"),#REF!,INDIRECT("'"&BQ$7&"'!L:L"))) ->  | BR53: =IF(ISERROR(VLOOKUP(#REF!,INDIRECT("'"&BR$7&"'!J:J"),1,FALSE)),"",SUMIF(INDIRECT("'"&BR$7&"'!J:J"),#REF!,INDIRECT("'"&BR$7&"'!L:L"))) ->  | BS53: =IF(ISERROR(VLOOKUP(#REF!,INDIRECT("'"&BS$7&"'!J:J"),1,FALSE)),"",SUMIF(INDIRECT("'"&BS$7&"'!J:J"),#REF!,INDIRECT("'"&BS$7&"'!L:L"))) -> 
BL54: =IF(ISERROR(VLOOKUP(#REF!,INDIRECT("'"&BL$7&"'!J:J"),1,FALSE)),"",SUMIF(INDIRECT("'"&BL$7&"'!J:J"),#REF!,INDIRECT("'"&BL$7&"'!L:L"))) ->  | BM54: =IF(ISERROR(VLOOKUP(#REF!,INDIRECT("'"&BM$7&"'!J:J"),1,FALSE)),"",SUMIF(INDIRECT("'"&BM$7&"'!J:J"),#REF!,INDIRECT("'"&BM$7&"'!L:L"))) ->  | BN54: =IF(ISERROR(VLOOKUP(#REF!,INDIRECT("'"&BN$7&"'!J:J"),1,FALSE)),"",SUMIF(INDIRECT("'"&BN$7&"'!J:J"),#REF!,INDIRECT("'"&BN$7&"'!L:L"))) ->  | BO54: =IF(ISERROR(VLOOKUP(#REF!,INDIRECT("'"&BO$7&"'!J:J"),1,FALSE)),"",SUMIF(INDIRECT("'"&BO$7&"'!J:J"),#REF!,INDIRECT("'"&BO$7&"'!L:L"))) ->  | BP54: =IF(ISERROR(VLOOKUP(#REF!,INDIRECT("'"&BP$7&"'!J:J"),1,FALSE)),"",SUMIF(INDIRECT("'"&BP$7&"'!J:J"),#REF!,INDIRECT("'"&BP$7&"'!L:L"))) ->  | BQ54: =IF(ISERROR(VLOOKUP(#REF!,INDIRECT("'"&BQ$7&"'!J:J"),1,FALSE)),"",SUMIF(INDIRECT("'"&BQ$7&"'!J:J"),#REF!,INDIRECT("'"&BQ$7&"'!L:L"))) ->  | BR54: =IF(ISERROR(VLOOKUP(#REF!,INDIRECT("'"&BR$7&"'!J:J"),1,FALSE)),"",SUMIF(INDIRECT("'"&BR$7&"'!J:J"),#REF!,INDIRECT("'"&BR$7&"'!L:L"))) ->  | BS54: =IF(ISERROR(VLOOKUP(#REF!,INDIRECT("'"&BS$7&"'!J:J"),1,FALSE)),"",SUMIF(INDIRECT("'"&BS$7&"'!J:J"),#REF!,INDIRECT("'"&BS$7&"'!L:L"))) -> 
BL55: =IF(ISERROR(VLOOKUP(#REF!,INDIRECT("'"&BL$7&"'!J:J"),1,FALSE)),"",SUMIF(INDIRECT("'"&BL$7&"'!J:J"),#REF!,INDIRECT("'"&BL$7&"'!L:L"))) ->  | BM55: =IF(ISERROR(VLOOKUP(#REF!,INDIRECT("'"&BM$7&"'!J:J"),1,FALSE)),"",SUMIF(INDIRECT("'"&BM$7&"'!J:J"),#REF!,INDIRECT("'"&BM$7&"'!L:L"))) ->  | BN55: =IF(ISERROR(VLOOKUP(#REF!,INDIRECT("'"&BN$7&"'!J:J"),1,FALSE)),"",SUMIF(INDIRECT("'"&BN$7&"'!J:J"),#REF!,INDIRECT("'"&BN$7&"'!L:L"))) ->  | BO55: =IF(ISERROR(VLOOKUP(#REF!,INDIRECT("'"&BO$7&"'!J:J"),1,FALSE)),"",SUMIF(INDIRECT("'"&BO$7&"'!J:J"),#REF!,INDIRECT("'"&BO$7&"'!L:L"))) ->  | BP55: =IF(ISERROR(VLOOKUP(#REF!,INDIRECT("'"&BP$7&"'!J:J"),1,FALSE)),"",SUMIF(INDIRECT("'"&BP$7&"'!J:J"),#REF!,INDIRECT("'"&BP$7&"'!L:L"))) ->  | BQ55: =IF(ISERROR(VLOOKUP(#REF!,INDIRECT("'"&BQ$7&"'!J:J"),1,FALSE)),"",SUMIF(INDIRECT("'"&BQ$7&"'!J:J"),#REF!,INDIRECT("'"&BQ$7&"'!L:L"))) ->  | BR55: =IF(ISERROR(VLOOKUP(#REF!,INDIRECT("'"&BR$7&"'!J:J"),1,FALSE)),"",SUMIF(INDIRECT("'"&BR$7&"'!J:J"),#REF!,INDIRECT("'"&BR$7&"'!L:L"))) ->  | BS55: =IF(ISERROR(VLOOKUP(#REF!,INDIRECT("'"&BS$7&"'!J:J"),1,FALSE)),"",SUMIF(INDIRECT("'"&BS$7&"'!J:J"),#REF!,INDIRECT("'"&BS$7&"'!L:L"))) -> 
BL56: =IF(ISERROR(VLOOKUP(#REF!,INDIRECT("'"&BL$7&"'!J:J"),1,FALSE)),"",SUMIF(INDIRECT("'"&BL$7&"'!J:J"),#REF!,INDIRECT("'"&BL$7&"'!L:L"))) ->  | BM56: =IF(ISERROR(VLOOKUP(#REF!,INDIRECT("'"&BM$7&"'!J:J"),1,FALSE)),"",SUMIF(INDIRECT("'"&BM$7&"'!J:J"),#REF!,INDIRECT("'"&BM$7&"'!L:L"))) ->  | BN56: =IF(ISERROR(VLOOKUP(#REF!,INDIRECT("'"&BN$7&"'!J:J"),1,FALSE)),"",SUMIF(INDIRECT("'"&BN$7&"'!J:J"),#REF!,INDIRECT("'"&BN$7&"'!L:L"))) ->  | BO56: =IF(ISERROR(VLOOKUP(#REF!,INDIRECT("'"&BO$7&"'!J:J"),1,FALSE)),"",SUMIF(INDIRECT("'"&BO$7&"'!J:J"),#REF!,INDIRECT("'"&BO$7&"'!L:L"))) ->  | BP56: =IF(ISERROR(VLOOKUP(#REF!,INDIRECT("'"&BP$7&"'!J:J"),1,FALSE)),"",SUMIF(INDIRECT("'"&BP$7&"'!J:J"),#REF!,INDIRECT("'"&BP$7&"'!L:L"))) ->  | BQ56: =IF(ISERROR(VLOOKUP(#REF!,INDIRECT("'"&BQ$7&"'!J:J"),1,FALSE)),"",SUMIF(INDIRECT("'"&BQ$7&"'!J:J"),#REF!,INDIRECT("'"&BQ$7&"'!L:L"))) ->  | BR56: =IF(ISERROR(VLOOKUP(#REF!,INDIRECT("'"&BR$7&"'!J:J"),1,FALSE)),"",SUMIF(INDIRECT("'"&BR$7&"'!J:J"),#REF!,INDIRECT("'"&BR$7&"'!L:L"))) ->  | BS56: =IF(ISERROR(VLOOKUP(#REF!,INDIRECT("'"&BS$7&"'!J:J"),1,FALSE)),"",SUMIF(INDIRECT("'"&BS$7&"'!J:J"),#REF!,INDIRECT("'"&BS$7&"'!L:L"))) -> 
BL57: =IF(ISERROR(VLOOKUP(#REF!,INDIRECT("'"&BL$7&"'!J:J"),1,FALSE)),"",SUMIF(INDIRECT("'"&BL$7&"'!J:J"),#REF!,INDIRECT("'"&BL$7&"'!L:L"))) ->  | BM57: =IF(ISERROR(VLOOKUP(#REF!,INDIRECT("'"&BM$7&"'!J:J"),1,FALSE)),"",SUMIF(INDIRECT("'"&BM$7&"'!J:J"),#REF!,INDIRECT("'"&BM$7&"'!L:L"))) ->  | BN57: =IF(ISERROR(VLOOKUP(#REF!,INDIRECT("'"&BN$7&"'!J:J"),1,FALSE)),"",SUMIF(INDIRECT("'"&BN$7&"'!J:J"),#REF!,INDIRECT("'"&BN$7&"'!L:L"))) ->  | BO57: =IF(ISERROR(VLOOKUP(#REF!,INDIRECT("'"&BO$7&"'!J:J"),1,FALSE)),"",SUMIF(INDIRECT("'"&BO$7&"'!J:J"),#REF!,INDIRECT("'"&BO$7&"'!L:L"))) ->  | BP57: =IF(ISERROR(VLOOKUP(#REF!,INDIRECT("'"&BP$7&"'!J:J"),1,FALSE)),"",SUMIF(INDIRECT("'"&BP$7&"'!J:J"),#REF!,INDIRECT("'"&BP$7&"'!L:L"))) ->  | BQ57: =IF(ISERROR(VLOOKUP(#REF!,INDIRECT("'"&BQ$7&"'!J:J"),1,FALSE)),"",SUMIF(INDIRECT("'"&BQ$7&"'!J:J"),#REF!,INDIRECT("'"&BQ$7&"'!L:L"))) ->  | BR57: =IF(ISERROR(VLOOKUP(#REF!,INDIRECT("'"&BR$7&"'!J:J"),1,FALSE)),"",SUMIF(INDIRECT("'"&BR$7&"'!J:J"),#REF!,INDIRECT("'"&BR$7&"'!L:L"))) ->  | BS57: =IF(ISERROR(VLOOKUP(#REF!,INDIRECT("'"&BS$7&"'!J:J"),1,FALSE)),"",SUMIF(INDIRECT("'"&BS$7&"'!J:J"),#REF!,INDIRECT("'"&BS$7&"'!L:L"))) -> 
BL58: =IF(ISERROR(VLOOKUP(#REF!,INDIRECT("'"&BL$7&"'!J:J"),1,FALSE)),"",SUMIF(INDIRECT("'"&BL$7&"'!J:J"),#REF!,INDIRECT("'"&BL$7&"'!L:L"))) ->  | BM58: =IF(ISERROR(VLOOKUP(#REF!,INDIRECT("'"&BM$7&"'!J:J"),1,FALSE)),"",SUMIF(INDIRECT("'"&BM$7&"'!J:J"),#REF!,INDIRECT("'"&BM$7&"'!L:L"))) ->  | BN58: =IF(ISERROR(VLOOKUP(#REF!,INDIRECT("'"&BN$7&"'!J:J"),1,FALSE)),"",SUMIF(INDIRECT("'"&BN$7&"'!J:J"),#REF!,INDIRECT("'"&BN$7&"'!L:L"))) ->  | BO58: =IF(ISERROR(VLOOKUP(#REF!,INDIRECT("'"&BO$7&"'!J:J"),1,FALSE)),"",SUMIF(INDIRECT("'"&BO$7&"'!J:J"),#REF!,INDIRECT("'"&BO$7&"'!L:L"))) ->  | BP58: =IF(ISERROR(VLOOKUP(#REF!,INDIRECT("'"&BP$7&"'!J:J"),1,FALSE)),"",SUMIF(INDIRECT("'"&BP$7&"'!J:J"),#REF!,INDIRECT("'"&BP$7&"'!L:L"))) ->  | BQ58: =IF(ISERROR(VLOOKUP(#REF!,INDIRECT("'"&BQ$7&"'!J:J"),1,FALSE)),"",SUMIF(INDIRECT("'"&BQ$7&"'!J:J"),#REF!,INDIRECT("'"&BQ$7&"'!L:L"))) ->  | BR58: =IF(ISERROR(VLOOKUP(#REF!,INDIRECT("'"&BR$7&"'!J:J"),1,FALSE)),"",SUMIF(INDIRECT("'"&BR$7&"'!J:J"),#REF!,INDIRECT("'"&BR$7&"'!L:L"))) ->  | BS58: =IF(ISERROR(VLOOKUP(#REF!,INDIRECT("'"&BS$7&"'!J:J"),1,FALSE)),"",SUMIF(INDIRECT("'"&BS$7&"'!J:J"),#REF!,INDIRECT("'"&BS$7&"'!L:L"))) -> 
BL59: =IF(ISERROR(VLOOKUP(#REF!,INDIRECT("'"&BL$7&"'!J:J"),1,FALSE)),"",SUMIF(INDIRECT("'"&BL$7&"'!J:J"),#REF!,INDIRECT("'"&BL$7&"'!L:L"))) ->  | BM59: =IF(ISERROR(VLOOKUP(#REF!,INDIRECT("'"&BM$7&"'!J:J"),1,FALSE)),"",SUMIF(INDIRECT("'"&BM$7&"'!J:J"),#REF!,INDIRECT("'"&BM$7&"'!L:L"))) ->  | BN59: =IF(ISERROR(VLOOKUP(#REF!,INDIRECT("'"&BN$7&"'!J:J"),1,FALSE)),"",SUMIF(INDIRECT("'"&BN$7&"'!J:J"),#REF!,INDIRECT("'"&BN$7&"'!L:L"))) ->  | BO59: =IF(ISERROR(VLOOKUP(#REF!,INDIRECT("'"&BO$7&"'!J:J"),1,FALSE)),"",SUMIF(INDIRECT("'"&BO$7&"'!J:J"),#REF!,INDIRECT("'"&BO$7&"'!L:L"))) ->  | BP59: =IF(ISERROR(VLOOKUP(#REF!,INDIRECT("'"&BP$7&"'!J:J"),1,FALSE)),"",SUMIF(INDIRECT("'"&BP$7&"'!J:J"),#REF!,INDIRECT("'"&BP$7&"'!L:L"))) ->  | BQ59: =IF(ISERROR(VLOOKUP(#REF!,INDIRECT("'"&BQ$7&"'!J:J"),1,FALSE)),"",SUMIF(INDIRECT("'"&BQ$7&"'!J:J"),#REF!,INDIRECT("'"&BQ$7&"'!L:L"))) ->  | BR59: =IF(ISERROR(VLOOKUP(#REF!,INDIRECT("'"&BR$7&"'!J:J"),1,FALSE)),"",SUMIF(INDIRECT("'"&BR$7&"'!J:J"),#REF!,INDIRECT("'"&BR$7&"'!L:L"))) ->  | BS59: =IF(ISERROR(VLOOKUP(#REF!,INDIRECT("'"&BS$7&"'!J:J"),1,FALSE)),"",SUMIF(INDIRECT("'"&BS$7&"'!J:J"),#REF!,INDIRECT("'"&BS$7&"'!L:L"))) -> 
BL60: =IF(ISERROR(VLOOKUP(#REF!,INDIRECT("'"&BL$7&"'!J:J"),1,FALSE)),"",SUMIF(INDIRECT("'"&BL$7&"'!J:J"),#REF!,INDIRECT("'"&BL$7&"'!L:L"))) ->  | BM60: =IF(ISERROR(VLOOKUP(#REF!,INDIRECT("'"&BM$7&"'!J:J"),1,FALSE)),"",SUMIF(INDIRECT("'"&BM$7&"'!J:J"),#REF!,INDIRECT("'"&BM$7&"'!L:L"))) ->  | BN60: =IF(ISERROR(VLOOKUP(#REF!,INDIRECT("'"&BN$7&"'!J:J"),1,FALSE)),"",SUMIF(INDIRECT("'"&BN$7&"'!J:J"),#REF!,INDIRECT("'"&BN$7&"'!L:L"))) ->  | BO60: =IF(ISERROR(VLOOKUP(#REF!,INDIRECT("'"&BO$7&"'!J:J"),1,FALSE)),"",SUMIF(INDIRECT("'"&BO$7&"'!J:J"),#REF!,INDIRECT("'"&BO$7&"'!L:L"))) ->  | BP60: =IF(ISERROR(VLOOKUP(#REF!,INDIRECT("'"&BP$7&"'!J:J"),1,FALSE)),"",SUMIF(INDIRECT("'"&BP$7&"'!J:J"),#REF!,INDIRECT("'"&BP$7&"'!L:L"))) ->  | BQ60: =IF(ISERROR(VLOOKUP(#REF!,INDIRECT("'"&BQ$7&"'!J:J"),1,FALSE)),"",SUMIF(INDIRECT("'"&BQ$7&"'!J:J"),#REF!,INDIRECT("'"&BQ$7&"'!L:L"))) ->  | BR60: =IF(ISERROR(VLOOKUP(#REF!,INDIRECT("'"&BR$7&"'!J:J"),1,FALSE)),"",SUMIF(INDIRECT("'"&BR$7&"'!J:J"),#REF!,INDIRECT("'"&BR$7&"'!L:L"))) ->  | BS60: =IF(ISERROR(VLOOKUP(#REF!,INDIRECT("'"&BS$7&"'!J:J"),1,FALSE)),"",SUMIF(INDIRECT("'"&BS$7&"'!J:J"),#REF!,INDIRECT("'"&BS$7&"'!L:L"))) -> 
BL61: =IF(ISERROR(VLOOKUP(#REF!,INDIRECT("'"&BL$7&"'!J:J"),1,FALSE)),"",SUMIF(INDIRECT("'"&BL$7&"'!J:J"),#REF!,INDIRECT("'"&BL$7&"'!L:L"))) ->  | BM61: =IF(ISERROR(VLOOKUP(#REF!,INDIRECT("'"&BM$7&"'!J:J"),1,FALSE)),"",SUMIF(INDIRECT("'"&BM$7&"'!J:J"),#REF!,INDIRECT("'"&BM$7&"'!L:L"))) ->  | BN61: =IF(ISERROR(VLOOKUP(#REF!,INDIRECT("'"&BN$7&"'!J:J"),1,FALSE)),"",SUMIF(INDIRECT("'"&BN$7&"'!J:J"),#REF!,INDIRECT("'"&BN$7&"'!L:L"))) ->  | BO61: =IF(ISERROR(VLOOKUP(#REF!,INDIRECT("'"&BO$7&"'!J:J"),1,FALSE)),"",SUMIF(INDIRECT("'"&BO$7&"'!J:J"),#REF!,INDIRECT("'"&BO$7&"'!L:L"))) ->  | BP61: =IF(ISERROR(VLOOKUP(#REF!,INDIRECT("'"&BP$7&"'!J:J"),1,FALSE)),"",SUMIF(INDIRECT("'"&BP$7&"'!J:J"),#REF!,INDIRECT("'"&BP$7&"'!L:L"))) ->  | BQ61: =IF(ISERROR(VLOOKUP(#REF!,INDIRECT("'"&BQ$7&"'!J:J"),1,FALSE)),"",SUMIF(INDIRECT("'"&BQ$7&"'!J:J"),#REF!,INDIRECT("'"&BQ$7&"'!L:L"))) ->  | BR61: =IF(ISERROR(VLOOKUP(#REF!,INDIRECT("'"&BR$7&"'!J:J"),1,FALSE)),"",SUMIF(INDIRECT("'"&BR$7&"'!J:J"),#REF!,INDIRECT("'"&BR$7&"'!L:L"))) ->  | BS61: =IF(ISERROR(VLOOKUP(#REF!,INDIRECT("'"&BS$7&"'!J:J"),1,FALSE)),"",SUMIF(INDIRECT("'"&BS$7&"'!J:J"),#REF!,INDIRECT("'"&BS$7&"'!L:L"))) -> 
BL62: =IF(ISERROR(VLOOKUP(#REF!,INDIRECT("'"&BL$7&"'!J:J"),1,FALSE)),"",SUMIF(INDIRECT("'"&BL$7&"'!J:J"),#REF!,INDIRECT("'"&BL$7&"'!L:L"))) ->  | BM62: =IF(ISERROR(VLOOKUP(#REF!,INDIRECT("'"&BM$7&"'!J:J"),1,FALSE)),"",SUMIF(INDIRECT("'"&BM$7&"'!J:J"),#REF!,INDIRECT("'"&BM$7&"'!L:L"))) ->  | BN62: =IF(ISERROR(VLOOKUP(#REF!,INDIRECT("'"&BN$7&"'!J:J"),1,FALSE)),"",SUMIF(INDIRECT("'"&BN$7&"'!J:J"),#REF!,INDIRECT("'"&BN$7&"'!L:L"))) ->  | BO62: =IF(ISERROR(VLOOKUP(#REF!,INDIRECT("'"&BO$7&"'!J:J"),1,FALSE)),"",SUMIF(INDIRECT("'"&BO$7&"'!J:J"),#REF!,INDIRECT("'"&BO$7&"'!L:L"))) ->  | BP62: =IF(ISERROR(VLOOKUP(#REF!,INDIRECT("'"&BP$7&"'!J:J"),1,FALSE)),"",SUMIF(INDIRECT("'"&BP$7&"'!J:J"),#REF!,INDIRECT("'"&BP$7&"'!L:L"))) ->  | BQ62: =IF(ISERROR(VLOOKUP(#REF!,INDIRECT("'"&BQ$7&"'!J:J"),1,FALSE)),"",SUMIF(INDIRECT("'"&BQ$7&"'!J:J"),#REF!,INDIRECT("'"&BQ$7&"'!L:L"))) ->  | BR62: =IF(ISERROR(VLOOKUP(#REF!,INDIRECT("'"&BR$7&"'!J:J"),1,FALSE)),"",SUMIF(INDIRECT("'"&BR$7&"'!J:J"),#REF!,INDIRECT("'"&BR$7&"'!L:L"))) ->  | BS62: =IF(ISERROR(VLOOKUP(#REF!,INDIRECT("'"&BS$7&"'!J:J"),1,FALSE)),"",SUMIF(INDIRECT("'"&BS$7&"'!J:J"),#REF!,INDIRECT("'"&BS$7&"'!L:L"))) -> 
BL63: =IF(ISERROR(VLOOKUP(#REF!,INDIRECT("'"&BL$7&"'!J:J"),1,FALSE)),"",SUMIF(INDIRECT("'"&BL$7&"'!J:J"),#REF!,INDIRECT("'"&BL$7&"'!L:L"))) ->  | BM63: =IF(ISERROR(VLOOKUP(#REF!,INDIRECT("'"&BM$7&"'!J:J"),1,FALSE)),"",SUMIF(INDIRECT("'"&BM$7&"'!J:J"),#REF!,INDIRECT("'"&BM$7&"'!L:L"))) ->  | BN63: =IF(ISERROR(VLOOKUP(#REF!,INDIRECT("'"&BN$7&"'!J:J"),1,FALSE)),"",SUMIF(INDIRECT("'"&BN$7&"'!J:J"),#REF!,INDIRECT("'"&BN$7&"'!L:L"))) ->  | BO63: =IF(ISERROR(VLOOKUP(#REF!,INDIRECT("'"&BO$7&"'!J:J"),1,FALSE)),"",SUMIF(INDIRECT("'"&BO$7&"'!J:J"),#REF!,INDIRECT("'"&BO$7&"'!L:L"))) ->  | BP63: =IF(ISERROR(VLOOKUP(#REF!,INDIRECT("'"&BP$7&"'!J:J"),1,FALSE)),"",SUMIF(INDIRECT("'"&BP$7&"'!J:J"),#REF!,INDIRECT("'"&BP$7&"'!L:L"))) ->  | BQ63: =IF(ISERROR(VLOOKUP(#REF!,INDIRECT("'"&BQ$7&"'!J:J"),1,FALSE)),"",SUMIF(INDIRECT("'"&BQ$7&"'!J:J"),#REF!,INDIRECT("'"&BQ$7&"'!L:L"))) ->  | BR63: =IF(ISERROR(VLOOKUP(#REF!,INDIRECT("'"&BR$7&"'!J:J"),1,FALSE)),"",SUMIF(INDIRECT("'"&BR$7&"'!J:J"),#REF!,INDIRECT("'"&BR$7&"'!L:L"))) ->  | BS63: =IF(ISERROR(VLOOKUP(#REF!,INDIRECT("'"&BS$7&"'!J:J"),1,FALSE)),"",SUMIF(INDIRECT("'"&BS$7&"'!J:J"),#REF!,INDIRECT("'"&BS$7&"'!L:L"))) -> 
BL64: =IF(ISERROR(VLOOKUP(#REF!,INDIRECT("'"&BL$7&"'!J:J"),1,FALSE)),"",SUMIF(INDIRECT("'"&BL$7&"'!J:J"),#REF!,INDIRECT("'"&BL$7&"'!L:L"))) ->  | BM64: =IF(ISERROR(VLOOKUP(#REF!,INDIRECT("'"&BM$7&"'!J:J"),1,FALSE)),"",SUMIF(INDIRECT("'"&BM$7&"'!J:J"),#REF!,INDIRECT("'"&BM$7&"'!L:L"))) ->  | BN64: =IF(ISERROR(VLOOKUP(#REF!,INDIRECT("'"&BN$7&"'!J:J"),1,FALSE)),"",SUMIF(INDIRECT("'"&BN$7&"'!J:J"),#REF!,INDIRECT("'"&BN$7&"'!L:L"))) ->  | BO64: =IF(ISERROR(VLOOKUP(#REF!,INDIRECT("'"&BO$7&"'!J:J"),1,FALSE)),"",SUMIF(INDIRECT("'"&BO$7&"'!J:J"),#REF!,INDIRECT("'"&BO$7&"'!L:L"))) ->  | BP64: =IF(ISERROR(VLOOKUP(#REF!,INDIRECT("'"&BP$7&"'!J:J"),1,FALSE)),"",SUMIF(INDIRECT("'"&BP$7&"'!J:J"),#REF!,INDIRECT("'"&BP$7&"'!L:L"))) ->  | BQ64: =IF(ISERROR(VLOOKUP(#REF!,INDIRECT("'"&BQ$7&"'!J:J"),1,FALSE)),"",SUMIF(INDIRECT("'"&BQ$7&"'!J:J"),#REF!,INDIRECT("'"&BQ$7&"'!L:L"))) ->  | BR64: =IF(ISERROR(VLOOKUP(#REF!,INDIRECT("'"&BR$7&"'!J:J"),1,FALSE)),"",SUMIF(INDIRECT("'"&BR$7&"'!J:J"),#REF!,INDIRECT("'"&BR$7&"'!L:L"))) ->  | BS64: =IF(ISERROR(VLOOKUP(#REF!,INDIRECT("'"&BS$7&"'!J:J"),1,FALSE)),"",SUMIF(INDIRECT("'"&BS$7&"'!J:J"),#REF!,INDIRECT("'"&BS$7&"'!L:L"))) -> 
BL65: =IF(ISERROR(VLOOKUP(#REF!,INDIRECT("'"&BL$7&"'!J:J"),1,FALSE)),"",SUMIF(INDIRECT("'"&BL$7&"'!J:J"),#REF!,INDIRECT("'"&BL$7&"'!L:L"))) ->  | BM65: =IF(ISERROR(VLOOKUP(#REF!,INDIRECT("'"&BM$7&"'!J:J"),1,FALSE)),"",SUMIF(INDIRECT("'"&BM$7&"'!J:J"),#REF!,INDIRECT("'"&BM$7&"'!L:L"))) ->  | BN65: =IF(ISERROR(VLOOKUP(#REF!,INDIRECT("'"&BN$7&"'!J:J"),1,FALSE)),"",SUMIF(INDIRECT("'"&BN$7&"'!J:J"),#REF!,INDIRECT("'"&BN$7&"'!L:L"))) ->  | BO65: =IF(ISERROR(VLOOKUP(#REF!,INDIRECT("'"&BO$7&"'!J:J"),1,FALSE)),"",SUMIF(INDIRECT("'"&BO$7&"'!J:J"),#REF!,INDIRECT("'"&BO$7&"'!L:L"))) ->  | BP65: =IF(ISERROR(VLOOKUP(#REF!,INDIRECT("'"&BP$7&"'!J:J"),1,FALSE)),"",SUMIF(INDIRECT("'"&BP$7&"'!J:J"),#REF!,INDIRECT("'"&BP$7&"'!L:L"))) ->  | BQ65: =IF(ISERROR(VLOOKUP(#REF!,INDIRECT("'"&BQ$7&"'!J:J"),1,FALSE)),"",SUMIF(INDIRECT("'"&BQ$7&"'!J:J"),#REF!,INDIRECT("'"&BQ$7&"'!L:L"))) ->  | BR65: =IF(ISERROR(VLOOKUP(#REF!,INDIRECT("'"&BR$7&"'!J:J"),1,FALSE)),"",SUMIF(INDIRECT("'"&BR$7&"'!J:J"),#REF!,INDIRECT("'"&BR$7&"'!L:L"))) ->  | BS65: =IF(ISERROR(VLOOKUP(#REF!,INDIRECT("'"&BS$7&"'!J:J"),1,FALSE)),"",SUMIF(INDIRECT("'"&BS$7&"'!J:J"),#REF!,INDIRECT("'"&BS$7&"'!L:L"))) -> 
BL66: =IF(ISERROR(VLOOKUP(#REF!,INDIRECT("'"&BL$7&"'!J:J"),1,FALSE)),"",SUMIF(INDIRECT("'"&BL$7&"'!J:J"),#REF!,INDIRECT("'"&BL$7&"'!L:L"))) ->  | BM66: =IF(ISERROR(VLOOKUP(#REF!,INDIRECT("'"&BM$7&"'!J:J"),1,FALSE)),"",SUMIF(INDIRECT("'"&BM$7&"'!J:J"),#REF!,INDIRECT("'"&BM$7&"'!L:L"))) ->  | BN66: =IF(ISERROR(VLOOKUP(#REF!,INDIRECT("'"&BN$7&"'!J:J"),1,FALSE)),"",SUMIF(INDIRECT("'"&BN$7&"'!J:J"),#REF!,INDIRECT("'"&BN$7&"'!L:L"))) ->  | BO66: =IF(ISERROR(VLOOKUP(#REF!,INDIRECT("'"&BO$7&"'!J:J"),1,FALSE)),"",SUMIF(INDIRECT("'"&BO$7&"'!J:J"),#REF!,INDIRECT("'"&BO$7&"'!L:L"))) ->  | BP66: =IF(ISERROR(VLOOKUP(#REF!,INDIRECT("'"&BP$7&"'!J:J"),1,FALSE)),"",SUMIF(INDIRECT("'"&BP$7&"'!J:J"),#REF!,INDIRECT("'"&BP$7&"'!L:L"))) ->  | BQ66: =IF(ISERROR(VLOOKUP(#REF!,INDIRECT("'"&BQ$7&"'!J:J"),1,FALSE)),"",SUMIF(INDIRECT("'"&BQ$7&"'!J:J"),#REF!,INDIRECT("'"&BQ$7&"'!L:L"))) ->  | BR66: =IF(ISERROR(VLOOKUP(#REF!,INDIRECT("'"&BR$7&"'!J:J"),1,FALSE)),"",SUMIF(INDIRECT("'"&BR$7&"'!J:J"),#REF!,INDIRECT("'"&BR$7&"'!L:L"))) ->  | BS66: =IF(ISERROR(VLOOKUP(#REF!,INDIRECT("'"&BS$7&"'!J:J"),1,FALSE)),"",SUMIF(INDIRECT("'"&BS$7&"'!J:J"),#REF!,INDIRECT("'"&BS$7&"'!L:L"))) -> 
BL67: =IF(ISERROR(VLOOKUP(#REF!,INDIRECT("'"&BL$7&"'!J:J"),1,FALSE)),"",SUMIF(INDIRECT("'"&BL$7&"'!J:J"),#REF!,INDIRECT("'"&BL$7&"'!L:L"))) ->  | BM67: =IF(ISERROR(VLOOKUP(#REF!,INDIRECT("'"&BM$7&"'!J:J"),1,FALSE)),"",SUMIF(INDIRECT("'"&BM$7&"'!J:J"),#REF!,INDIRECT("'"&BM$7&"'!L:L"))) ->  | BN67: =IF(ISERROR(VLOOKUP(#REF!,INDIRECT("'"&BN$7&"'!J:J"),1,FALSE)),"",SUMIF(INDIRECT("'"&BN$7&"'!J:J"),#REF!,INDIRECT("'"&BN$7&"'!L:L"))) ->  | BO67: =IF(ISERROR(VLOOKUP(#REF!,INDIRECT("'"&BO$7&"'!J:J"),1,FALSE)),"",SUMIF(INDIRECT("'"&BO$7&"'!J:J"),#REF!,INDIRECT("'"&BO$7&"'!L:L"))) ->  | BP67: =IF(ISERROR(VLOOKUP(#REF!,INDIRECT("'"&BP$7&"'!J:J"),1,FALSE)),"",SUMIF(INDIRECT("'"&BP$7&"'!J:J"),#REF!,INDIRECT("'"&BP$7&"'!L:L"))) ->  | BQ67: =IF(ISERROR(VLOOKUP(#REF!,INDIRECT("'"&BQ$7&"'!J:J"),1,FALSE)),"",SUMIF(INDIRECT("'"&BQ$7&"'!J:J"),#REF!,INDIRECT("'"&BQ$7&"'!L:L"))) ->  | BR67: =IF(ISERROR(VLOOKUP(#REF!,INDIRECT("'"&BR$7&"'!J:J"),1,FALSE)),"",SUMIF(INDIRECT("'"&BR$7&"'!J:J"),#REF!,INDIRECT("'"&BR$7&"'!L:L"))) ->  | BS67: =IF(ISERROR(VLOOKUP(#REF!,INDIRECT("'"&BS$7&"'!J:J"),1,FALSE)),"",SUMIF(INDIRECT("'"&BS$7&"'!J:J"),#REF!,INDIRECT("'"&BS$7&"'!L:L"))) -> 
BL68: =IF(ISERROR(VLOOKUP(#REF!,INDIRECT("'"&BL$7&"'!J:J"),1,FALSE)),"",SUMIF(INDIRECT("'"&BL$7&"'!J:J"),#REF!,INDIRECT("'"&BL$7&"'!L:L"))) ->  | BM68: =IF(ISERROR(VLOOKUP(#REF!,INDIRECT("'"&BM$7&"'!J:J"),1,FALSE)),"",SUMIF(INDIRECT("'"&BM$7&"'!J:J"),#REF!,INDIRECT("'"&BM$7&"'!L:L"))) ->  | BN68: =IF(ISERROR(VLOOKUP(#REF!,INDIRECT("'"&BN$7&"'!J:J"),1,FALSE)),"",SUMIF(INDIRECT("'"&BN$7&"'!J:J"),#REF!,INDIRECT("'"&BN$7&"'!L:L"))) ->  | BO68: =IF(ISERROR(VLOOKUP(#REF!,INDIRECT("'"&BO$7&"'!J:J"),1,FALSE)),"",SUMIF(INDIRECT("'"&BO$7&"'!J:J"),#REF!,INDIRECT("'"&BO$7&"'!L:L"))) ->  | BP68: =IF(ISERROR(VLOOKUP(#REF!,INDIRECT("'"&BP$7&"'!J:J"),1,FALSE)),"",SUMIF(INDIRECT("'"&BP$7&"'!J:J"),#REF!,INDIRECT("'"&BP$7&"'!L:L"))) ->  | BQ68: =IF(ISERROR(VLOOKUP(#REF!,INDIRECT("'"&BQ$7&"'!J:J"),1,FALSE)),"",SUMIF(INDIRECT("'"&BQ$7&"'!J:J"),#REF!,INDIRECT("'"&BQ$7&"'!L:L"))) ->  | BR68: =IF(ISERROR(VLOOKUP(#REF!,INDIRECT("'"&BR$7&"'!J:J"),1,FALSE)),"",SUMIF(INDIRECT("'"&BR$7&"'!J:J"),#REF!,INDIRECT("'"&BR$7&"'!L:L"))) ->  | BS68: =IF(ISERROR(VLOOKUP(#REF!,INDIRECT("'"&BS$7&"'!J:J"),1,FALSE)),"",SUMIF(INDIRECT("'"&BS$7&"'!J:J"),#REF!,INDIRECT("'"&BS$7&"'!L:L"))) -> 
BL69: =IF(ISERROR(VLOOKUP(#REF!,INDIRECT("'"&BL$7&"'!J:J"),1,FALSE)),"",SUMIF(INDIRECT("'"&BL$7&"'!J:J"),#REF!,INDIRECT("'"&BL$7&"'!L:L"))) ->  | BM69: =IF(ISERROR(VLOOKUP(#REF!,INDIRECT("'"&BM$7&"'!J:J"),1,FALSE)),"",SUMIF(INDIRECT("'"&BM$7&"'!J:J"),#REF!,INDIRECT("'"&BM$7&"'!L:L"))) ->  | BN69: =IF(ISERROR(VLOOKUP(#REF!,INDIRECT("'"&BN$7&"'!J:J"),1,FALSE)),"",SUMIF(INDIRECT("'"&BN$7&"'!J:J"),#REF!,INDIRECT("'"&BN$7&"'!L:L"))) ->  | BO69: =IF(ISERROR(VLOOKUP(#REF!,INDIRECT("'"&BO$7&"'!J:J"),1,FALSE)),"",SUMIF(INDIRECT("'"&BO$7&"'!J:J"),#REF!,INDIRECT("'"&BO$7&"'!L:L"))) ->  | BP69: =IF(ISERROR(VLOOKUP(#REF!,INDIRECT("'"&BP$7&"'!J:J"),1,FALSE)),"",SUMIF(INDIRECT("'"&BP$7&"'!J:J"),#REF!,INDIRECT("'"&BP$7&"'!L:L"))) ->  | BQ69: =IF(ISERROR(VLOOKUP(#REF!,INDIRECT("'"&BQ$7&"'!J:J"),1,FALSE)),"",SUMIF(INDIRECT("'"&BQ$7&"'!J:J"),#REF!,INDIRECT("'"&BQ$7&"'!L:L"))) ->  | BR69: =IF(ISERROR(VLOOKUP(#REF!,INDIRECT("'"&BR$7&"'!J:J"),1,FALSE)),"",SUMIF(INDIRECT("'"&BR$7&"'!J:J"),#REF!,INDIRECT("'"&BR$7&"'!L:L"))) ->  | BS69: =IF(ISERROR(VLOOKUP(#REF!,INDIRECT("'"&BS$7&"'!J:J"),1,FALSE)),"",SUMIF(INDIRECT("'"&BS$7&"'!J:J"),#REF!,INDIRECT("'"&BS$7&"'!L:L"))) -> 
BL70: =IF(ISERROR(VLOOKUP(#REF!,INDIRECT("'"&BL$7&"'!J:J"),1,FALSE)),"",SUMIF(INDIRECT("'"&BL$7&"'!J:J"),#REF!,INDIRECT("'"&BL$7&"'!L:L"))) ->  | BM70: =IF(ISERROR(VLOOKUP(#REF!,INDIRECT("'"&BM$7&"'!J:J"),1,FALSE)),"",SUMIF(INDIRECT("'"&BM$7&"'!J:J"),#REF!,INDIRECT("'"&BM$7&"'!L:L"))) ->  | BN70: =IF(ISERROR(VLOOKUP(#REF!,INDIRECT("'"&BN$7&"'!J:J"),1,FALSE)),"",SUMIF(INDIRECT("'"&BN$7&"'!J:J"),#REF!,INDIRECT("'"&BN$7&"'!L:L"))) ->  | BO70: =IF(ISERROR(VLOOKUP(#REF!,INDIRECT("'"&BO$7&"'!J:J"),1,FALSE)),"",SUMIF(INDIRECT("'"&BO$7&"'!J:J"),#REF!,INDIRECT("'"&BO$7&"'!L:L"))) ->  | BP70: =IF(ISERROR(VLOOKUP(#REF!,INDIRECT("'"&BP$7&"'!J:J"),1,FALSE)),"",SUMIF(INDIRECT("'"&BP$7&"'!J:J"),#REF!,INDIRECT("'"&BP$7&"'!L:L"))) ->  | BQ70: =IF(ISERROR(VLOOKUP(#REF!,INDIRECT("'"&BQ$7&"'!J:J"),1,FALSE)),"",SUMIF(INDIRECT("'"&BQ$7&"'!J:J"),#REF!,INDIRECT("'"&BQ$7&"'!L:L"))) ->  | BR70: =IF(ISERROR(VLOOKUP(#REF!,INDIRECT("'"&BR$7&"'!J:J"),1,FALSE)),"",SUMIF(INDIRECT("'"&BR$7&"'!J:J"),#REF!,INDIRECT("'"&BR$7&"'!L:L"))) ->  | BS70: =IF(ISERROR(VLOOKUP(#REF!,INDIRECT("'"&BS$7&"'!J:J"),1,FALSE)),"",SUMIF(INDIRECT("'"&BS$7&"'!J:J"),#REF!,INDIRECT("'"&BS$7&"'!L:L"))) -> 
BL71: =IF(ISERROR(VLOOKUP(#REF!,INDIRECT("'"&BL$7&"'!J:J"),1,FALSE)),"",SUMIF(INDIRECT("'"&BL$7&"'!J:J"),#REF!,INDIRECT("'"&BL$7&"'!L:L"))) ->  | BM71: =IF(ISERROR(VLOOKUP(#REF!,INDIRECT("'"&BM$7&"'!J:J"),1,FALSE)),"",SUMIF(INDIRECT("'"&BM$7&"'!J:J"),#REF!,INDIRECT("'"&BM$7&"'!L:L"))) ->  | BN71: =IF(ISERROR(VLOOKUP(#REF!,INDIRECT("'"&BN$7&"'!J:J"),1,FALSE)),"",SUMIF(INDIRECT("'"&BN$7&"'!J:J"),#REF!,INDIRECT("'"&BN$7&"'!L:L"))) ->  | BO71: =IF(ISERROR(VLOOKUP(#REF!,INDIRECT("'"&BO$7&"'!J:J"),1,FALSE)),"",SUMIF(INDIRECT("'"&BO$7&"'!J:J"),#REF!,INDIRECT("'"&BO$7&"'!L:L"))) ->  | BP71: =IF(ISERROR(VLOOKUP(#REF!,INDIRECT("'"&BP$7&"'!J:J"),1,FALSE)),"",SUMIF(INDIRECT("'"&BP$7&"'!J:J"),#REF!,INDIRECT("'"&BP$7&"'!L:L"))) ->  | BQ71: =IF(ISERROR(VLOOKUP(#REF!,INDIRECT("'"&BQ$7&"'!J:J"),1,FALSE)),"",SUMIF(INDIRECT("'"&BQ$7&"'!J:J"),#REF!,INDIRECT("'"&BQ$7&"'!L:L"))) ->  | BR71: =IF(ISERROR(VLOOKUP(#REF!,INDIRECT("'"&BR$7&"'!J:J"),1,FALSE)),"",SUMIF(INDIRECT("'"&BR$7&"'!J:J"),#REF!,INDIRECT("'"&BR$7&"'!L:L"))) ->  | BS71: =IF(ISERROR(VLOOKUP(#REF!,INDIRECT("'"&BS$7&"'!J:J"),1,FALSE)),"",SUMIF(INDIRECT("'"&BS$7&"'!J:J"),#REF!,INDIRECT("'"&BS$7&"'!L:L"))) -> 
BL72: =IF(ISERROR(VLOOKUP(#REF!,INDIRECT("'"&BL$7&"'!J:J"),1,FALSE)),"",SUMIF(INDIRECT("'"&BL$7&"'!J:J"),#REF!,INDIRECT("'"&BL$7&"'!L:L"))) ->  | BM72: =IF(ISERROR(VLOOKUP(#REF!,INDIRECT("'"&BM$7&"'!J:J"),1,FALSE)),"",SUMIF(INDIRECT("'"&BM$7&"'!J:J"),#REF!,INDIRECT("'"&BM$7&"'!L:L"))) ->  | BN72: =IF(ISERROR(VLOOKUP(#REF!,INDIRECT("'"&BN$7&"'!J:J"),1,FALSE)),"",SUMIF(INDIRECT("'"&BN$7&"'!J:J"),#REF!,INDIRECT("'"&BN$7&"'!L:L"))) ->  | BO72: =IF(ISERROR(VLOOKUP(#REF!,INDIRECT("'"&BO$7&"'!J:J"),1,FALSE)),"",SUMIF(INDIRECT("'"&BO$7&"'!J:J"),#REF!,INDIRECT("'"&BO$7&"'!L:L"))) ->  | BP72: =IF(ISERROR(VLOOKUP(#REF!,INDIRECT("'"&BP$7&"'!J:J"),1,FALSE)),"",SUMIF(INDIRECT("'"&BP$7&"'!J:J"),#REF!,INDIRECT("'"&BP$7&"'!L:L"))) ->  | BQ72: =IF(ISERROR(VLOOKUP(#REF!,INDIRECT("'"&BQ$7&"'!J:J"),1,FALSE)),"",SUMIF(INDIRECT("'"&BQ$7&"'!J:J"),#REF!,INDIRECT("'"&BQ$7&"'!L:L"))) ->  | BR72: =IF(ISERROR(VLOOKUP(#REF!,INDIRECT("'"&BR$7&"'!J:J"),1,FALSE)),"",SUMIF(INDIRECT("'"&BR$7&"'!J:J"),#REF!,INDIRECT("'"&BR$7&"'!L:L"))) ->  | BS72: =IF(ISERROR(VLOOKUP(#REF!,INDIRECT("'"&BS$7&"'!J:J"),1,FALSE)),"",SUMIF(INDIRECT("'"&BS$7&"'!J:J"),#REF!,INDIRECT("'"&BS$7&"'!L:L"))) -> 
BL73: =IF(ISERROR(VLOOKUP(#REF!,INDIRECT("'"&BL$7&"'!J:J"),1,FALSE)),"",SUMIF(INDIRECT("'"&BL$7&"'!J:J"),#REF!,INDIRECT("'"&BL$7&"'!L:L"))) ->  | BM73: =IF(ISERROR(VLOOKUP(#REF!,INDIRECT("'"&BM$7&"'!J:J"),1,FALSE)),"",SUMIF(INDIRECT("'"&BM$7&"'!J:J"),#REF!,INDIRECT("'"&BM$7&"'!L:L"))) ->  | BN73: =IF(ISERROR(VLOOKUP(#REF!,INDIRECT("'"&BN$7&"'!J:J"),1,FALSE)),"",SUMIF(INDIRECT("'"&BN$7&"'!J:J"),#REF!,INDIRECT("'"&BN$7&"'!L:L"))) ->  | BO73: =IF(ISERROR(VLOOKUP(#REF!,INDIRECT("'"&BO$7&"'!J:J"),1,FALSE)),"",SUMIF(INDIRECT("'"&BO$7&"'!J:J"),#REF!,INDIRECT("'"&BO$7&"'!L:L"))) ->  | BP73: =IF(ISERROR(VLOOKUP(#REF!,INDIRECT("'"&BP$7&"'!J:J"),1,FALSE)),"",SUMIF(INDIRECT("'"&BP$7&"'!J:J"),#REF!,INDIRECT("'"&BP$7&"'!L:L"))) ->  | BQ73: =IF(ISERROR(VLOOKUP(#REF!,INDIRECT("'"&BQ$7&"'!J:J"),1,FALSE)),"",SUMIF(INDIRECT("'"&BQ$7&"'!J:J"),#REF!,INDIRECT("'"&BQ$7&"'!L:L"))) ->  | BR73: =IF(ISERROR(VLOOKUP(#REF!,INDIRECT("'"&BR$7&"'!J:J"),1,FALSE)),"",SUMIF(INDIRECT("'"&BR$7&"'!J:J"),#REF!,INDIRECT("'"&BR$7&"'!L:L"))) ->  | BS73: =IF(ISERROR(VLOOKUP(#REF!,INDIRECT("'"&BS$7&"'!J:J"),1,FALSE)),"",SUMIF(INDIRECT("'"&BS$7&"'!J:J"),#REF!,INDIRECT("'"&BS$7&"'!L:L"))) -> 
BL74: =IF(ISERROR(VLOOKUP(#REF!,INDIRECT("'"&BL$7&"'!J:J"),1,FALSE)),"",SUMIF(INDIRECT("'"&BL$7&"'!J:J"),#REF!,INDIRECT("'"&BL$7&"'!L:L"))) ->  | BM74: =IF(ISERROR(VLOOKUP(#REF!,INDIRECT("'"&BM$7&"'!J:J"),1,FALSE)),"",SUMIF(INDIRECT("'"&BM$7&"'!J:J"),#REF!,INDIRECT("'"&BM$7&"'!L:L"))) ->  | BN74: =IF(ISERROR(VLOOKUP(#REF!,INDIRECT("'"&BN$7&"'!J:J"),1,FALSE)),"",SUMIF(INDIRECT("'"&BN$7&"'!J:J"),#REF!,INDIRECT("'"&BN$7&"'!L:L"))) ->  | BO74: =IF(ISERROR(VLOOKUP(#REF!,INDIRECT("'"&BO$7&"'!J:J"),1,FALSE)),"",SUMIF(INDIRECT("'"&BO$7&"'!J:J"),#REF!,INDIRECT("'"&BO$7&"'!L:L"))) ->  | BP74: =IF(ISERROR(VLOOKUP(#REF!,INDIRECT("'"&BP$7&"'!J:J"),1,FALSE)),"",SUMIF(INDIRECT("'"&BP$7&"'!J:J"),#REF!,INDIRECT("'"&BP$7&"'!L:L"))) ->  | BQ74: =IF(ISERROR(VLOOKUP(#REF!,INDIRECT("'"&BQ$7&"'!J:J"),1,FALSE)),"",SUMIF(INDIRECT("'"&BQ$7&"'!J:J"),#REF!,INDIRECT("'"&BQ$7&"'!L:L"))) ->  | BR74: =IF(ISERROR(VLOOKUP(#REF!,INDIRECT("'"&BR$7&"'!J:J"),1,FALSE)),"",SUMIF(INDIRECT("'"&BR$7&"'!J:J"),#REF!,INDIRECT("'"&BR$7&"'!L:L"))) ->  | BS74: =IF(ISERROR(VLOOKUP(#REF!,INDIRECT("'"&BS$7&"'!J:J"),1,FALSE)),"",SUMIF(INDIRECT("'"&BS$7&"'!J:J"),#REF!,INDIRECT("'"&BS$7&"'!L:L"))) -> 
BL75: =IF(ISERROR(VLOOKUP(#REF!,INDIRECT("'"&BL$7&"'!J:J"),1,FALSE)),"",SUMIF(INDIRECT("'"&BL$7&"'!J:J"),#REF!,INDIRECT("'"&BL$7&"'!L:L"))) ->  | BM75: =IF(ISERROR(VLOOKUP(#REF!,INDIRECT("'"&BM$7&"'!J:J"),1,FALSE)),"",SUMIF(INDIRECT("'"&BM$7&"'!J:J"),#REF!,INDIRECT("'"&BM$7&"'!L:L"))) ->  | BN75: =IF(ISERROR(VLOOKUP(#REF!,INDIRECT("'"&BN$7&"'!J:J"),1,FALSE)),"",SUMIF(INDIRECT("'"&BN$7&"'!J:J"),#REF!,INDIRECT("'"&BN$7&"'!L:L"))) ->  | BO75: =IF(ISERROR(VLOOKUP(#REF!,INDIRECT("'"&BO$7&"'!J:J"),1,FALSE)),"",SUMIF(INDIRECT("'"&BO$7&"'!J:J"),#REF!,INDIRECT("'"&BO$7&"'!L:L"))) ->  | BP75: =IF(ISERROR(VLOOKUP(#REF!,INDIRECT("'"&BP$7&"'!J:J"),1,FALSE)),"",SUMIF(INDIRECT("'"&BP$7&"'!J:J"),#REF!,INDIRECT("'"&BP$7&"'!L:L"))) ->  | BQ75: =IF(ISERROR(VLOOKUP(#REF!,INDIRECT("'"&BQ$7&"'!J:J"),1,FALSE)),"",SUMIF(INDIRECT("'"&BQ$7&"'!J:J"),#REF!,INDIRECT("'"&BQ$7&"'!L:L"))) ->  | BR75: =IF(ISERROR(VLOOKUP(#REF!,INDIRECT("'"&BR$7&"'!J:J"),1,FALSE)),"",SUMIF(INDIRECT("'"&BR$7&"'!J:J"),#REF!,INDIRECT("'"&BR$7&"'!L:L"))) ->  | BS75: =IF(ISERROR(VLOOKUP(#REF!,INDIRECT("'"&BS$7&"'!J:J"),1,FALSE)),"",SUMIF(INDIRECT("'"&BS$7&"'!J:J"),#REF!,INDIRECT("'"&BS$7&"'!L:L"))) -> 
BL76: =IF(ISERROR(VLOOKUP(#REF!,INDIRECT("'"&BL$7&"'!J:J"),1,FALSE)),"",SUMIF(INDIRECT("'"&BL$7&"'!J:J"),#REF!,INDIRECT("'"&BL$7&"'!L:L"))) ->  | BM76: =IF(ISERROR(VLOOKUP(#REF!,INDIRECT("'"&BM$7&"'!J:J"),1,FALSE)),"",SUMIF(INDIRECT("'"&BM$7&"'!J:J"),#REF!,INDIRECT("'"&BM$7&"'!L:L"))) ->  | BN76: =IF(ISERROR(VLOOKUP(#REF!,INDIRECT("'"&BN$7&"'!J:J"),1,FALSE)),"",SUMIF(INDIRECT("'"&BN$7&"'!J:J"),#REF!,INDIRECT("'"&BN$7&"'!L:L"))) ->  | BO76: =IF(ISERROR(VLOOKUP(#REF!,INDIRECT("'"&BO$7&"'!J:J"),1,FALSE)),"",SUMIF(INDIRECT("'"&BO$7&"'!J:J"),#REF!,INDIRECT("'"&BO$7&"'!L:L"))) ->  | BP76: =IF(ISERROR(VLOOKUP(#REF!,INDIRECT("'"&BP$7&"'!J:J"),1,FALSE)),"",SUMIF(INDIRECT("'"&BP$7&"'!J:J"),#REF!,INDIRECT("'"&BP$7&"'!L:L"))) ->  | BQ76: =IF(ISERROR(VLOOKUP(#REF!,INDIRECT("'"&BQ$7&"'!J:J"),1,FALSE)),"",SUMIF(INDIRECT("'"&BQ$7&"'!J:J"),#REF!,INDIRECT("'"&BQ$7&"'!L:L"))) ->  | BR76: =IF(ISERROR(VLOOKUP(#REF!,INDIRECT("'"&BR$7&"'!J:J"),1,FALSE)),"",SUMIF(INDIRECT("'"&BR$7&"'!J:J"),#REF!,INDIRECT("'"&BR$7&"'!L:L"))) ->  | BS76: =IF(ISERROR(VLOOKUP(#REF!,INDIRECT("'"&BS$7&"'!J:J"),1,FALSE)),"",SUMIF(INDIRECT("'"&BS$7&"'!J:J"),#REF!,INDIRECT("'"&BS$7&"'!L:L"))) -> 
BL77: =IF(ISERROR(VLOOKUP(#REF!,INDIRECT("'"&BL$7&"'!J:J"),1,FALSE)),"",SUMIF(INDIRECT("'"&BL$7&"'!J:J"),#REF!,INDIRECT("'"&BL$7&"'!L:L"))) ->  | BM77: =IF(ISERROR(VLOOKUP(#REF!,INDIRECT("'"&BM$7&"'!J:J"),1,FALSE)),"",SUMIF(INDIRECT("'"&BM$7&"'!J:J"),#REF!,INDIRECT("'"&BM$7&"'!L:L"))) ->  | BN77: =IF(ISERROR(VLOOKUP(#REF!,INDIRECT("'"&BN$7&"'!J:J"),1,FALSE)),"",SUMIF(INDIRECT("'"&BN$7&"'!J:J"),#REF!,INDIRECT("'"&BN$7&"'!L:L"))) ->  | BO77: =IF(ISERROR(VLOOKUP(#REF!,INDIRECT("'"&BO$7&"'!J:J"),1,FALSE)),"",SUMIF(INDIRECT("'"&BO$7&"'!J:J"),#REF!,INDIRECT("'"&BO$7&"'!L:L"))) ->  | BP77: =IF(ISERROR(VLOOKUP(#REF!,INDIRECT("'"&BP$7&"'!J:J"),1,FALSE)),"",SUMIF(INDIRECT("'"&BP$7&"'!J:J"),#REF!,INDIRECT("'"&BP$7&"'!L:L"))) ->  | BQ77: =IF(ISERROR(VLOOKUP(#REF!,INDIRECT("'"&BQ$7&"'!J:J"),1,FALSE)),"",SUMIF(INDIRECT("'"&BQ$7&"'!J:J"),#REF!,INDIRECT("'"&BQ$7&"'!L:L"))) ->  | BR77: =IF(ISERROR(VLOOKUP(#REF!,INDIRECT("'"&BR$7&"'!J:J"),1,FALSE)),"",SUMIF(INDIRECT("'"&BR$7&"'!J:J"),#REF!,INDIRECT("'"&BR$7&"'!L:L"))) ->  | BS77: =IF(ISERROR(VLOOKUP(#REF!,INDIRECT("'"&BS$7&"'!J:J"),1,FALSE)),"",SUMIF(INDIRECT("'"&BS$7&"'!J:J"),#REF!,INDIRECT("'"&BS$7&"'!L:L"))) -> 
BL78: =IF(ISERROR(VLOOKUP(#REF!,INDIRECT("'"&BL$7&"'!J:J"),1,FALSE)),"",SUMIF(INDIRECT("'"&BL$7&"'!J:J"),#REF!,INDIRECT("'"&BL$7&"'!L:L"))) ->  | BM78: =IF(ISERROR(VLOOKUP(#REF!,INDIRECT("'"&BM$7&"'!J:J"),1,FALSE)),"",SUMIF(INDIRECT("'"&BM$7&"'!J:J"),#REF!,INDIRECT("'"&BM$7&"'!L:L"))) ->  | BN78: =IF(ISERROR(VLOOKUP(#REF!,INDIRECT("'"&BN$7&"'!J:J"),1,FALSE)),"",SUMIF(INDIRECT("'"&BN$7&"'!J:J"),#REF!,INDIRECT("'"&BN$7&"'!L:L"))) ->  | BO78: =IF(ISERROR(VLOOKUP(#REF!,INDIRECT("'"&BO$7&"'!J:J"),1,FALSE)),"",SUMIF(INDIRECT("'"&BO$7&"'!J:J"),#REF!,INDIRECT("'"&BO$7&"'!L:L"))) ->  | BP78: =IF(ISERROR(VLOOKUP(#REF!,INDIRECT("'"&BP$7&"'!J:J"),1,FALSE)),"",SUMIF(INDIRECT("'"&BP$7&"'!J:J"),#REF!,INDIRECT("'"&BP$7&"'!L:L"))) ->  | BQ78: =IF(ISERROR(VLOOKUP(#REF!,INDIRECT("'"&BQ$7&"'!J:J"),1,FALSE)),"",SUMIF(INDIRECT("'"&BQ$7&"'!J:J"),#REF!,INDIRECT("'"&BQ$7&"'!L:L"))) ->  | BR78: =IF(ISERROR(VLOOKUP(#REF!,INDIRECT("'"&BR$7&"'!J:J"),1,FALSE)),"",SUMIF(INDIRECT("'"&BR$7&"'!J:J"),#REF!,INDIRECT("'"&BR$7&"'!L:L"))) ->  | BS78: =IF(ISERROR(VLOOKUP(#REF!,INDIRECT("'"&BS$7&"'!J:J"),1,FALSE)),"",SUMIF(INDIRECT("'"&BS$7&"'!J:J"),#REF!,INDIRECT("'"&BS$7&"'!L:L"))) -> 
BL79: =IF(ISERROR(VLOOKUP(#REF!,INDIRECT("'"&BL$7&"'!J:J"),1,FALSE)),"",SUMIF(INDIRECT("'"&BL$7&"'!J:J"),#REF!,INDIRECT("'"&BL$7&"'!L:L"))) ->  | BM79: =IF(ISERROR(VLOOKUP(#REF!,INDIRECT("'"&BM$7&"'!J:J"),1,FALSE)),"",SUMIF(INDIRECT("'"&BM$7&"'!J:J"),#REF!,INDIRECT("'"&BM$7&"'!L:L"))) ->  | BN79: =IF(ISERROR(VLOOKUP(#REF!,INDIRECT("'"&BN$7&"'!J:J"),1,FALSE)),"",SUMIF(INDIRECT("'"&BN$7&"'!J:J"),#REF!,INDIRECT("'"&BN$7&"'!L:L"))) ->  | BO79: =IF(ISERROR(VLOOKUP(#REF!,INDIRECT("'"&BO$7&"'!J:J"),1,FALSE)),"",SUMIF(INDIRECT("'"&BO$7&"'!J:J"),#REF!,INDIRECT("'"&BO$7&"'!L:L"))) ->  | BP79: =IF(ISERROR(VLOOKUP(#REF!,INDIRECT("'"&BP$7&"'!J:J"),1,FALSE)),"",SUMIF(INDIRECT("'"&BP$7&"'!J:J"),#REF!,INDIRECT("'"&BP$7&"'!L:L"))) ->  | BQ79: =IF(ISERROR(VLOOKUP(#REF!,INDIRECT("'"&BQ$7&"'!J:J"),1,FALSE)),"",SUMIF(INDIRECT("'"&BQ$7&"'!J:J"),#REF!,INDIRECT("'"&BQ$7&"'!L:L"))) ->  | BR79: =IF(ISERROR(VLOOKUP(#REF!,INDIRECT("'"&BR$7&"'!J:J"),1,FALSE)),"",SUMIF(INDIRECT("'"&BR$7&"'!J:J"),#REF!,INDIRECT("'"&BR$7&"'!L:L"))) ->  | BS79: =IF(ISERROR(VLOOKUP(#REF!,INDIRECT("'"&BS$7&"'!J:J"),1,FALSE)),"",SUMIF(INDIRECT("'"&BS$7&"'!J:J"),#REF!,INDIRECT("'"&BS$7&"'!L:L"))) -> 
BL80: =IF(ISERROR(VLOOKUP(#REF!,INDIRECT("'"&BL$7&"'!J:J"),1,FALSE)),"",SUMIF(INDIRECT("'"&BL$7&"'!J:J"),#REF!,INDIRECT("'"&BL$7&"'!L:L"))) ->  | BM80: =IF(ISERROR(VLOOKUP(#REF!,INDIRECT("'"&BM$7&"'!J:J"),1,FALSE)),"",SUMIF(INDIRECT("'"&BM$7&"'!J:J"),#REF!,INDIRECT("'"&BM$7&"'!L:L"))) ->  | BN80: =IF(ISERROR(VLOOKUP(#REF!,INDIRECT("'"&BN$7&"'!J:J"),1,FALSE)),"",SUMIF(INDIRECT("'"&BN$7&"'!J:J"),#REF!,INDIRECT("'"&BN$7&"'!L:L"))) ->  | BO80: =IF(ISERROR(VLOOKUP(#REF!,INDIRECT("'"&BO$7&"'!J:J"),1,FALSE)),"",SUMIF(INDIRECT("'"&BO$7&"'!J:J"),#REF!,INDIRECT("'"&BO$7&"'!L:L"))) ->  | BP80: =IF(ISERROR(VLOOKUP(#REF!,INDIRECT("'"&BP$7&"'!J:J"),1,FALSE)),"",SUMIF(INDIRECT("'"&BP$7&"'!J:J"),#REF!,INDIRECT("'"&BP$7&"'!L:L"))) ->  | BQ80: =IF(ISERROR(VLOOKUP(#REF!,INDIRECT("'"&BQ$7&"'!J:J"),1,FALSE)),"",SUMIF(INDIRECT("'"&BQ$7&"'!J:J"),#REF!,INDIRECT("'"&BQ$7&"'!L:L"))) ->  | BR80: =IF(ISERROR(VLOOKUP(#REF!,INDIRECT("'"&BR$7&"'!J:J"),1,FALSE)),"",SUMIF(INDIRECT("'"&BR$7&"'!J:J"),#REF!,INDIRECT("'"&BR$7&"'!L:L"))) ->  | BS80: =IF(ISERROR(VLOOKUP(#REF!,INDIRECT("'"&BS$7&"'!J:J"),1,FALSE)),"",SUMIF(INDIRECT("'"&BS$7&"'!J:J"),#REF!,INDIRECT("'"&BS$7&"'!L:L"))) -> 
BL81: =IF(ISERROR(VLOOKUP(#REF!,INDIRECT("'"&BL$7&"'!J:J"),1,FALSE)),"",SUMIF(INDIRECT("'"&BL$7&"'!J:J"),#REF!,INDIRECT("'"&BL$7&"'!L:L"))) ->  | BM81: =IF(ISERROR(VLOOKUP(#REF!,INDIRECT("'"&BM$7&"'!J:J"),1,FALSE)),"",SUMIF(INDIRECT("'"&BM$7&"'!J:J"),#REF!,INDIRECT("'"&BM$7&"'!L:L"))) ->  | BN81: =IF(ISERROR(VLOOKUP(#REF!,INDIRECT("'"&BN$7&"'!J:J"),1,FALSE)),"",SUMIF(INDIRECT("'"&BN$7&"'!J:J"),#REF!,INDIRECT("'"&BN$7&"'!L:L"))) ->  | BO81: =IF(ISERROR(VLOOKUP(#REF!,INDIRECT("'"&BO$7&"'!J:J"),1,FALSE)),"",SUMIF(INDIRECT("'"&BO$7&"'!J:J"),#REF!,INDIRECT("'"&BO$7&"'!L:L"))) ->  | BP81: =IF(ISERROR(VLOOKUP(#REF!,INDIRECT("'"&BP$7&"'!J:J"),1,FALSE)),"",SUMIF(INDIRECT("'"&BP$7&"'!J:J"),#REF!,INDIRECT("'"&BP$7&"'!L:L"))) ->  | BQ81: =IF(ISERROR(VLOOKUP(#REF!,INDIRECT("'"&BQ$7&"'!J:J"),1,FALSE)),"",SUMIF(INDIRECT("'"&BQ$7&"'!J:J"),#REF!,INDIRECT("'"&BQ$7&"'!L:L"))) ->  | BR81: =IF(ISERROR(VLOOKUP(#REF!,INDIRECT("'"&BR$7&"'!J:J"),1,FALSE)),"",SUMIF(INDIRECT("'"&BR$7&"'!J:J"),#REF!,INDIRECT("'"&BR$7&"'!L:L"))) ->  | BS81: =IF(ISERROR(VLOOKUP(#REF!,INDIRECT("'"&BS$7&"'!J:J"),1,FALSE)),"",SUMIF(INDIRECT("'"&BS$7&"'!J:J"),#REF!,INDIRECT("'"&BS$7&"'!L:L"))) -> 
BL82: =IF(ISERROR(VLOOKUP(#REF!,INDIRECT("'"&BL$7&"'!J:J"),1,FALSE)),"",SUMIF(INDIRECT("'"&BL$7&"'!J:J"),#REF!,INDIRECT("'"&BL$7&"'!L:L"))) ->  | BM82: =IF(ISERROR(VLOOKUP(#REF!,INDIRECT("'"&BM$7&"'!J:J"),1,FALSE)),"",SUMIF(INDIRECT("'"&BM$7&"'!J:J"),#REF!,INDIRECT("'"&BM$7&"'!L:L"))) ->  | BN82: =IF(ISERROR(VLOOKUP(#REF!,INDIRECT("'"&BN$7&"'!J:J"),1,FALSE)),"",SUMIF(INDIRECT("'"&BN$7&"'!J:J"),#REF!,INDIRECT("'"&BN$7&"'!L:L"))) ->  | BO82: =IF(ISERROR(VLOOKUP(#REF!,INDIRECT("'"&BO$7&"'!J:J"),1,FALSE)),"",SUMIF(INDIRECT("'"&BO$7&"'!J:J"),#REF!,INDIRECT("'"&BO$7&"'!L:L"))) ->  | BP82: =IF(ISERROR(VLOOKUP(#REF!,INDIRECT("'"&BP$7&"'!J:J"),1,FALSE)),"",SUMIF(INDIRECT("'"&BP$7&"'!J:J"),#REF!,INDIRECT("'"&BP$7&"'!L:L"))) ->  | BQ82: =IF(ISERROR(VLOOKUP(#REF!,INDIRECT("'"&BQ$7&"'!J:J"),1,FALSE)),"",SUMIF(INDIRECT("'"&BQ$7&"'!J:J"),#REF!,INDIRECT("'"&BQ$7&"'!L:L"))) ->  | BR82: =IF(ISERROR(VLOOKUP(#REF!,INDIRECT("'"&BR$7&"'!J:J"),1,FALSE)),"",SUMIF(INDIRECT("'"&BR$7&"'!J:J"),#REF!,INDIRECT("'"&BR$7&"'!L:L"))) ->  | BS82: =IF(ISERROR(VLOOKUP(#REF!,INDIRECT("'"&BS$7&"'!J:J"),1,FALSE)),"",SUMIF(INDIRECT("'"&BS$7&"'!J:J"),#REF!,INDIRECT("'"&BS$7&"'!L:L"))) -> 
BL83: =IF(ISERROR(VLOOKUP(#REF!,INDIRECT("'"&BL$7&"'!J:J"),1,FALSE)),"",SUMIF(INDIRECT("'"&BL$7&"'!J:J"),#REF!,INDIRECT("'"&BL$7&"'!L:L"))) ->  | BM83: =IF(ISERROR(VLOOKUP(#REF!,INDIRECT("'"&BM$7&"'!J:J"),1,FALSE)),"",SUMIF(INDIRECT("'"&BM$7&"'!J:J"),#REF!,INDIRECT("'"&BM$7&"'!L:L"))) ->  | BN83: =IF(ISERROR(VLOOKUP(#REF!,INDIRECT("'"&BN$7&"'!J:J"),1,FALSE)),"",SUMIF(INDIRECT("'"&BN$7&"'!J:J"),#REF!,INDIRECT("'"&BN$7&"'!L:L"))) ->  | BO83: =IF(ISERROR(VLOOKUP(#REF!,INDIRECT("'"&BO$7&"'!J:J"),1,FALSE)),"",SUMIF(INDIRECT("'"&BO$7&"'!J:J"),#REF!,INDIRECT("'"&BO$7&"'!L:L"))) ->  | BP83: =IF(ISERROR(VLOOKUP(#REF!,INDIRECT("'"&BP$7&"'!J:J"),1,FALSE)),"",SUMIF(INDIRECT("'"&BP$7&"'!J:J"),#REF!,INDIRECT("'"&BP$7&"'!L:L"))) ->  | BQ83: =IF(ISERROR(VLOOKUP(#REF!,INDIRECT("'"&BQ$7&"'!J:J"),1,FALSE)),"",SUMIF(INDIRECT("'"&BQ$7&"'!J:J"),#REF!,INDIRECT("'"&BQ$7&"'!L:L"))) ->  | BR83: =IF(ISERROR(VLOOKUP(#REF!,INDIRECT("'"&BR$7&"'!J:J"),1,FALSE)),"",SUMIF(INDIRECT("'"&BR$7&"'!J:J"),#REF!,INDIRECT("'"&BR$7&"'!L:L"))) ->  | BS83: =IF(ISERROR(VLOOKUP(#REF!,INDIRECT("'"&BS$7&"'!J:J"),1,FALSE)),"",SUMIF(INDIRECT("'"&BS$7&"'!J:J"),#REF!,INDIRECT("'"&BS$7&"'!L:L"))) -> 
BL84: =IF(ISERROR(VLOOKUP(#REF!,INDIRECT("'"&BL$7&"'!J:J"),1,FALSE)),"",SUMIF(INDIRECT("'"&BL$7&"'!J:J"),#REF!,INDIRECT("'"&BL$7&"'!L:L"))) ->  | BM84: =IF(ISERROR(VLOOKUP(#REF!,INDIRECT("'"&BM$7&"'!J:J"),1,FALSE)),"",SUMIF(INDIRECT("'"&BM$7&"'!J:J"),#REF!,INDIRECT("'"&BM$7&"'!L:L"))) ->  | BN84: =IF(ISERROR(VLOOKUP(#REF!,INDIRECT("'"&BN$7&"'!J:J"),1,FALSE)),"",SUMIF(INDIRECT("'"&BN$7&"'!J:J"),#REF!,INDIRECT("'"&BN$7&"'!L:L"))) ->  | BO84: =IF(ISERROR(VLOOKUP(#REF!,INDIRECT("'"&BO$7&"'!J:J"),1,FALSE)),"",SUMIF(INDIRECT("'"&BO$7&"'!J:J"),#REF!,INDIRECT("'"&BO$7&"'!L:L"))) ->  | BP84: =IF(ISERROR(VLOOKUP(#REF!,INDIRECT("'"&BP$7&"'!J:J"),1,FALSE)),"",SUMIF(INDIRECT("'"&BP$7&"'!J:J"),#REF!,INDIRECT("'"&BP$7&"'!L:L"))) ->  | BQ84: =IF(ISERROR(VLOOKUP(#REF!,INDIRECT("'"&BQ$7&"'!J:J"),1,FALSE)),"",SUMIF(INDIRECT("'"&BQ$7&"'!J:J"),#REF!,INDIRECT("'"&BQ$7&"'!L:L"))) ->  | BR84: =IF(ISERROR(VLOOKUP(#REF!,INDIRECT("'"&BR$7&"'!J:J"),1,FALSE)),"",SUMIF(INDIRECT("'"&BR$7&"'!J:J"),#REF!,INDIRECT("'"&BR$7&"'!L:L"))) ->  | BS84: =IF(ISERROR(VLOOKUP(#REF!,INDIRECT("'"&BS$7&"'!J:J"),1,FALSE)),"",SUMIF(INDIRECT("'"&BS$7&"'!J:J"),#REF!,INDIRECT("'"&BS$7&"'!L:L"))) -> 
BL85: =IF(ISERROR(VLOOKUP(#REF!,INDIRECT("'"&BL$7&"'!J:J"),1,FALSE)),"",SUMIF(INDIRECT("'"&BL$7&"'!J:J"),#REF!,INDIRECT("'"&BL$7&"'!L:L"))) ->  | BM85: =IF(ISERROR(VLOOKUP(#REF!,INDIRECT("'"&BM$7&"'!J:J"),1,FALSE)),"",SUMIF(INDIRECT("'"&BM$7&"'!J:J"),#REF!,INDIRECT("'"&BM$7&"'!L:L"))) ->  | BN85: =IF(ISERROR(VLOOKUP(#REF!,INDIRECT("'"&BN$7&"'!J:J"),1,FALSE)),"",SUMIF(INDIRECT("'"&BN$7&"'!J:J"),#REF!,INDIRECT("'"&BN$7&"'!L:L"))) ->  | BO85: =IF(ISERROR(VLOOKUP(#REF!,INDIRECT("'"&BO$7&"'!J:J"),1,FALSE)),"",SUMIF(INDIRECT("'"&BO$7&"'!J:J"),#REF!,INDIRECT("'"&BO$7&"'!L:L"))) ->  | BP85: =IF(ISERROR(VLOOKUP(#REF!,INDIRECT("'"&BP$7&"'!J:J"),1,FALSE)),"",SUMIF(INDIRECT("'"&BP$7&"'!J:J"),#REF!,INDIRECT("'"&BP$7&"'!L:L"))) ->  | BQ85: =IF(ISERROR(VLOOKUP(#REF!,INDIRECT("'"&BQ$7&"'!J:J"),1,FALSE)),"",SUMIF(INDIRECT("'"&BQ$7&"'!J:J"),#REF!,INDIRECT("'"&BQ$7&"'!L:L"))) ->  | BR85: =IF(ISERROR(VLOOKUP(#REF!,INDIRECT("'"&BR$7&"'!J:J"),1,FALSE)),"",SUMIF(INDIRECT("'"&BR$7&"'!J:J"),#REF!,INDIRECT("'"&BR$7&"'!L:L"))) ->  | BS85: =IF(ISERROR(VLOOKUP(#REF!,INDIRECT("'"&BS$7&"'!J:J"),1,FALSE)),"",SUMIF(INDIRECT("'"&BS$7&"'!J:J"),#REF!,INDIRECT("'"&BS$7&"'!L:L"))) -> 
BL86: =IF(ISERROR(VLOOKUP(#REF!,INDIRECT("'"&BL$7&"'!J:J"),1,FALSE)),"",SUMIF(INDIRECT("'"&BL$7&"'!J:J"),#REF!,INDIRECT("'"&BL$7&"'!L:L"))) ->  | BM86: =IF(ISERROR(VLOOKUP(#REF!,INDIRECT("'"&BM$7&"'!J:J"),1,FALSE)),"",SUMIF(INDIRECT("'"&BM$7&"'!J:J"),#REF!,INDIRECT("'"&BM$7&"'!L:L"))) ->  | BN86: =IF(ISERROR(VLOOKUP(#REF!,INDIRECT("'"&BN$7&"'!J:J"),1,FALSE)),"",SUMIF(INDIRECT("'"&BN$7&"'!J:J"),#REF!,INDIRECT("'"&BN$7&"'!L:L"))) ->  | BO86: =IF(ISERROR(VLOOKUP(#REF!,INDIRECT("'"&BO$7&"'!J:J"),1,FALSE)),"",SUMIF(INDIRECT("'"&BO$7&"'!J:J"),#REF!,INDIRECT("'"&BO$7&"'!L:L"))) ->  | BP86: =IF(ISERROR(VLOOKUP(#REF!,INDIRECT("'"&BP$7&"'!J:J"),1,FALSE)),"",SUMIF(INDIRECT("'"&BP$7&"'!J:J"),#REF!,INDIRECT("'"&BP$7&"'!L:L"))) ->  | BQ86: =IF(ISERROR(VLOOKUP(#REF!,INDIRECT("'"&BQ$7&"'!J:J"),1,FALSE)),"",SUMIF(INDIRECT("'"&BQ$7&"'!J:J"),#REF!,INDIRECT("'"&BQ$7&"'!L:L"))) ->  | BR86: =IF(ISERROR(VLOOKUP(#REF!,INDIRECT("'"&BR$7&"'!J:J"),1,FALSE)),"",SUMIF(INDIRECT("'"&BR$7&"'!J:J"),#REF!,INDIRECT("'"&BR$7&"'!L:L"))) ->  | BS86: =IF(ISERROR(VLOOKUP(#REF!,INDIRECT("'"&BS$7&"'!J:J"),1,FALSE)),"",SUMIF(INDIRECT("'"&BS$7&"'!J:J"),#REF!,INDIRECT("'"&BS$7&"'!L:L"))) -> 
BL87: =IF(ISERROR(VLOOKUP(#REF!,INDIRECT("'"&BL$7&"'!J:J"),1,FALSE)),"",SUMIF(INDIRECT("'"&BL$7&"'!J:J"),#REF!,INDIRECT("'"&BL$7&"'!L:L"))) ->  | BM87: =IF(ISERROR(VLOOKUP(#REF!,INDIRECT("'"&BM$7&"'!J:J"),1,FALSE)),"",SUMIF(INDIRECT("'"&BM$7&"'!J:J"),#REF!,INDIRECT("'"&BM$7&"'!L:L"))) ->  | BN87: =IF(ISERROR(VLOOKUP(#REF!,INDIRECT("'"&BN$7&"'!J:J"),1,FALSE)),"",SUMIF(INDIRECT("'"&BN$7&"'!J:J"),#REF!,INDIRECT("'"&BN$7&"'!L:L"))) ->  | BO87: =IF(ISERROR(VLOOKUP(#REF!,INDIRECT("'"&BO$7&"'!J:J"),1,FALSE)),"",SUMIF(INDIRECT("'"&BO$7&"'!J:J"),#REF!,INDIRECT("'"&BO$7&"'!L:L"))) ->  | BP87: =IF(ISERROR(VLOOKUP(#REF!,INDIRECT("'"&BP$7&"'!J:J"),1,FALSE)),"",SUMIF(INDIRECT("'"&BP$7&"'!J:J"),#REF!,INDIRECT("'"&BP$7&"'!L:L"))) ->  | BQ87: =IF(ISERROR(VLOOKUP(#REF!,INDIRECT("'"&BQ$7&"'!J:J"),1,FALSE)),"",SUMIF(INDIRECT("'"&BQ$7&"'!J:J"),#REF!,INDIRECT("'"&BQ$7&"'!L:L"))) ->  | BR87: =IF(ISERROR(VLOOKUP(#REF!,INDIRECT("'"&BR$7&"'!J:J"),1,FALSE)),"",SUMIF(INDIRECT("'"&BR$7&"'!J:J"),#REF!,INDIRECT("'"&BR$7&"'!L:L"))) ->  | BS87: =IF(ISERROR(VLOOKUP(#REF!,INDIRECT("'"&BS$7&"'!J:J"),1,FALSE)),"",SUMIF(INDIRECT("'"&BS$7&"'!J:J"),#REF!,INDIRECT("'"&BS$7&"'!L:L"))) -> 
BL88: =IF(ISERROR(VLOOKUP(#REF!,INDIRECT("'"&BL$7&"'!J:J"),1,FALSE)),"",SUMIF(INDIRECT("'"&BL$7&"'!J:J"),#REF!,INDIRECT("'"&BL$7&"'!L:L"))) ->  | BM88: =IF(ISERROR(VLOOKUP(#REF!,INDIRECT("'"&BM$7&"'!J:J"),1,FALSE)),"",SUMIF(INDIRECT("'"&BM$7&"'!J:J"),#REF!,INDIRECT("'"&BM$7&"'!L:L"))) ->  | BN88: =IF(ISERROR(VLOOKUP(#REF!,INDIRECT("'"&BN$7&"'!J:J"),1,FALSE)),"",SUMIF(INDIRECT("'"&BN$7&"'!J:J"),#REF!,INDIRECT("'"&BN$7&"'!L:L"))) ->  | BO88: =IF(ISERROR(VLOOKUP(#REF!,INDIRECT("'"&BO$7&"'!J:J"),1,FALSE)),"",SUMIF(INDIRECT("'"&BO$7&"'!J:J"),#REF!,INDIRECT("'"&BO$7&"'!L:L"))) ->  | BP88: =IF(ISERROR(VLOOKUP(#REF!,INDIRECT("'"&BP$7&"'!J:J"),1,FALSE)),"",SUMIF(INDIRECT("'"&BP$7&"'!J:J"),#REF!,INDIRECT("'"&BP$7&"'!L:L"))) ->  | BQ88: =IF(ISERROR(VLOOKUP(#REF!,INDIRECT("'"&BQ$7&"'!J:J"),1,FALSE)),"",SUMIF(INDIRECT("'"&BQ$7&"'!J:J"),#REF!,INDIRECT("'"&BQ$7&"'!L:L"))) ->  | BR88: =IF(ISERROR(VLOOKUP(#REF!,INDIRECT("'"&BR$7&"'!J:J"),1,FALSE)),"",SUMIF(INDIRECT("'"&BR$7&"'!J:J"),#REF!,INDIRECT("'"&BR$7&"'!L:L"))) ->  | BS88: =IF(ISERROR(VLOOKUP(#REF!,INDIRECT("'"&BS$7&"'!J:J"),1,FALSE)),"",SUMIF(INDIRECT("'"&BS$7&"'!J:J"),#REF!,INDIRECT("'"&BS$7&"'!L:L"))) -> 
BL89: =IF(ISERROR(VLOOKUP(#REF!,INDIRECT("'"&BL$7&"'!J:J"),1,FALSE)),"",SUMIF(INDIRECT("'"&BL$7&"'!J:J"),#REF!,INDIRECT("'"&BL$7&"'!L:L"))) ->  | BM89: =IF(ISERROR(VLOOKUP(#REF!,INDIRECT("'"&BM$7&"'!J:J"),1,FALSE)),"",SUMIF(INDIRECT("'"&BM$7&"'!J:J"),#REF!,INDIRECT("'"&BM$7&"'!L:L"))) ->  | BN89: =IF(ISERROR(VLOOKUP(#REF!,INDIRECT("'"&BN$7&"'!J:J"),1,FALSE)),"",SUMIF(INDIRECT("'"&BN$7&"'!J:J"),#REF!,INDIRECT("'"&BN$7&"'!L:L"))) ->  | BO89: =IF(ISERROR(VLOOKUP(#REF!,INDIRECT("'"&BO$7&"'!J:J"),1,FALSE)),"",SUMIF(INDIRECT("'"&BO$7&"'!J:J"),#REF!,INDIRECT("'"&BO$7&"'!L:L"))) ->  | BP89: =IF(ISERROR(VLOOKUP(#REF!,INDIRECT("'"&BP$7&"'!J:J"),1,FALSE)),"",SUMIF(INDIRECT("'"&BP$7&"'!J:J"),#REF!,INDIRECT("'"&BP$7&"'!L:L"))) ->  | BQ89: =IF(ISERROR(VLOOKUP(#REF!,INDIRECT("'"&BQ$7&"'!J:J"),1,FALSE)),"",SUMIF(INDIRECT("'"&BQ$7&"'!J:J"),#REF!,INDIRECT("'"&BQ$7&"'!L:L"))) ->  | BR89: =IF(ISERROR(VLOOKUP(#REF!,INDIRECT("'"&BR$7&"'!J:J"),1,FALSE)),"",SUMIF(INDIRECT("'"&BR$7&"'!J:J"),#REF!,INDIRECT("'"&BR$7&"'!L:L"))) ->  | BS89: =IF(ISERROR(VLOOKUP(#REF!,INDIRECT("'"&BS$7&"'!J:J"),1,FALSE)),"",SUMIF(INDIRECT("'"&BS$7&"'!J:J"),#REF!,INDIRECT("'"&BS$7&"'!L:L"))) -> 
BL90: =IF(ISERROR(VLOOKUP(#REF!,INDIRECT("'"&BL$7&"'!J:J"),1,FALSE)),"",SUMIF(INDIRECT("'"&BL$7&"'!J:J"),#REF!,INDIRECT("'"&BL$7&"'!L:L"))) ->  | BM90: =IF(ISERROR(VLOOKUP(#REF!,INDIRECT("'"&BM$7&"'!J:J"),1,FALSE)),"",SUMIF(INDIRECT("'"&BM$7&"'!J:J"),#REF!,INDIRECT("'"&BM$7&"'!L:L"))) ->  | BN90: =IF(ISERROR(VLOOKUP(#REF!,INDIRECT("'"&BN$7&"'!J:J"),1,FALSE)),"",SUMIF(INDIRECT("'"&BN$7&"'!J:J"),#REF!,INDIRECT("'"&BN$7&"'!L:L"))) ->  | BO90: =IF(ISERROR(VLOOKUP(#REF!,INDIRECT("'"&BO$7&"'!J:J"),1,FALSE)),"",SUMIF(INDIRECT("'"&BO$7&"'!J:J"),#REF!,INDIRECT("'"&BO$7&"'!L:L"))) ->  | BP90: =IF(ISERROR(VLOOKUP(#REF!,INDIRECT("'"&BP$7&"'!J:J"),1,FALSE)),"",SUMIF(INDIRECT("'"&BP$7&"'!J:J"),#REF!,INDIRECT("'"&BP$7&"'!L:L"))) ->  | BQ90: =IF(ISERROR(VLOOKUP(#REF!,INDIRECT("'"&BQ$7&"'!J:J"),1,FALSE)),"",SUMIF(INDIRECT("'"&BQ$7&"'!J:J"),#REF!,INDIRECT("'"&BQ$7&"'!L:L"))) ->  | BR90: =IF(ISERROR(VLOOKUP(#REF!,INDIRECT("'"&BR$7&"'!J:J"),1,FALSE)),"",SUMIF(INDIRECT("'"&BR$7&"'!J:J"),#REF!,INDIRECT("'"&BR$7&"'!L:L"))) ->  | BS90: =IF(ISERROR(VLOOKUP(#REF!,INDIRECT("'"&BS$7&"'!J:J"),1,FALSE)),"",SUMIF(INDIRECT("'"&BS$7&"'!J:J"),#REF!,INDIRECT("'"&BS$7&"'!L:L"))) -> 

Sheet Flaxman Court
P1: =SUMIF('Planned Maint v6.2 CSV File'!A:A,J1,'Planned Maint v6.2 CSV File'!I:I) -> 0 | Q1: =IF(J1="PROV SUM",N1,L1*P1) -> 0 | R1: =IF(J1="Prov Sum","",IF(MATCH(J1,'Packet Rate Library'!J:J,0),VLOOKUP(J1,'Packet Rate Library'!J:T,9,FALSE),"")) ->  | S1: =IF(R1>0,R1,P1) ->  | T1: =IF(J1="SC024",N1,IF(ISERROR(S1),"",IF(J1="PROV SUM",N1,L1*S1))) -> 
A4: 1-84 Flaxman Court
A6: Requirement | B6: REPB47873 | C6: Requirement Type | D6: Rowtype (H=Header, D=Detail) | E6: Description | F6: Works Order Commencement Date | G6: Works Order Completion Date | H6: Specification Ref. Item No.'s | I6: Works Order Delivery Date | J6: SOR Code | K6: SOR Unit | L6: SOR Qty | M6: SOR Cost | N6: Total Cost | P6: Rate (max) | Q6: Cost (max) | R6: Modified price | S6: Tendered rate | T6: Tendered total
B8: REPB47873 | C8: ENERGY EFFICIENY | D8: H
B9: REPB47873 | C9: ENERGY EFFICIENY | D9: D | E9: Contractor to access and undertake survey of loft space in accordance with the Project Brief in order to assess level of current loft insulation. Including submittion of a survey report supported by photographic evidance to CM/PM. Where insulation levels are less then 200mm, Contractor to provide cost proposal to upgrade insulation in accordance with NHF SoR Planned Maintenance Version 6.2. | H9: 9.1 | J9: ADD001 | K9: IT | L9: 1 | P9: =SUMIF('Planned Maint v6.2 CSV File'!A:A,J9,'Planned Maint v6.2 CSV File'!I:I) -> 225 | Q9: =IF(J9="PROV SUM",N9,L9*P9) -> 225 | R9: =IF(J9="Prov Sum","",IF(MATCH(J9,'Packet Rate Library'!J:J,0),VLOOKUP(J9,'Packet Rate Library'!J:T,9,FALSE),"")) -> 0 | S9: =IF(R9>0,R9,P9) -> 225 | T9: =IF(J9="SC024",N9,IF(ISERROR(S9),"",IF(J9="PROV SUM",N9,L9*S9))) -> 225
B10: REPB47873 | C10: ENERGY EFFICIENY | D10: D | E10: Insulation:Supply and lay ne 270mm thick insulation quilt to loft area including gain access and moving/replacing contents within loft area in order to undertake work. Item 2270AA | H10: 9.1 | J10: 2270AA | K10: SM | L10: 900 | M10: 10.86 | N10: =SUM(L10*M10) -> 9774 | P10: =SUMIF('Planned Maint v6.2 CSV File'!A:A,J10,'Planned Maint v6.2 CSV File'!I:I) -> 7.059 | Q10: =IF(J10="PROV SUM",N10,L10*P10) -> 6353.1 | R10: =IF(J10="Prov Sum","",IF(MATCH(J10,'Packet Rate Library'!J:J,0),VLOOKUP(J10,'Packet Rate Library'!J:T,9,FALSE),"")) -> 7 | S10: =IF(R10>0,R10,P10) -> 7 | T10: =IF(J10="SC024",N10,IF(ISERROR(S10),"",IF(J10="PROV SUM",N10,L10*S10))) -> 6300
B11: REPB47873 | C11: ASBESTOS | D11: H
B12: REPB47873 | C12: ASBESTOS | D12: D | E12: Refurbishment and Demolition Survey to Full Property (with upto 5 Nr samples) , flat or house any size | H12: 1.3 | J12: A003 | K12: Item | L12: 4 | M12: 234 | N12: 936 | P12: =SUMIF('Planned Maint v6.2 CSV File'!A:A,J12,'Planned Maint v6.2 CSV File'!I:I) -> 238.68 | Q12: =IF(J12="PROV SUM",N12,L12*P12) -> 954.72 | R12: =IF(J12="Prov Sum","",IF(MATCH(J12,'Packet Rate Library'!J:J,0),VLOOKUP(J12,'Packet Rate Library'!J:T,9,FALSE),"")) -> 189.54 | S12: =IF(R12>0,R12,P12) -> 189.54 | T12: =IF(J12="SC024",N12,IF(ISERROR(S12),"",IF(J12="PROV SUM",N12,L12*S12))) -> 758.16
B13: REPB47873 | C13: COMMUNAL WORKS | D13: H
B14: REPB47873 | C14: COMMUNAL WORKS | D14: D | E14: Hall: Thoroughly clean down all wall and ceiling surfaces to common areas to remove dirt, grease and surface containments, scrape and remove all loose and defective coatings, prime bare areas with one coat of fire retardant primer and apply two coats of Class ‘O’ fire retardant matt paint, prepare and apply two coats of polyurethane lacquer or one undercoat and one gloss coat to all previously decorated timber surfaces to lobby, hall or corridor over 3.00sm ceiling area complete (classified as a single area). | H14: 5.1 | J14: 4540AC | K14: IT | L14: 4 | M14: 480 | N14: 1920 | P14: =SUMIF('Planned Maint v6.2 CSV File'!A:A,J14,'Planned Maint v6.2 CSV File'!I:I) -> 329.28 | Q14: =IF(J14="PROV SUM",N14,L14*P14) -> 1317.12 | R14: =IF(J14="Prov Sum","",IF(MATCH(J14,'Packet Rate Library'!J:J,0),VLOOKUP(J14,'Packet Rate Library'!J:T,9,FALSE),"")) -> 305 | S14: =IF(R14>0,R14,P14) -> 305 | T14: =IF(J14="SC024",N14,IF(ISERROR(S14),"",IF(J14="PROV SUM",N14,L14*S14))) -> 1220
B15: REPB47873 | C15: COMMUNAL WORKS | D15: D | E15: Lobby: Thoroughly clean down all wall and ceiling surfaces to common areas to remove dirt, grease and surface containments, scrape and remove all loose and defective coatings, prime bare areas with one coat of fire retardant primer and apply two coats of Class ‘O’ fire retardant matt paint, prepare and apply two coats of polyurethane lacquer or one undercoat and one gloss coat to all previously decorated timber surfaces to lobby or hall ne 3.00sm ceiling area complete (classified as a single area). | H15: 5.2 | J15: 4540AD | K15: IT | L15: 24 | M15: 260 | N15: 6240 | P15: =SUMIF('Planned Maint v6.2 CSV File'!A:A,J15,'Planned Maint v6.2 CSV File'!I:I) -> 178.36 | Q15: 4280.64 | R15: =IF(J15="Prov Sum","",IF(MATCH(J15,'Packet Rate Library'!J:J,0),VLOOKUP(J15,'Packet Rate Library'!J:T,9,FALSE),"")) -> 165 | S15: 165 | T15: 3960
B16: REPB47873 | C16: COMMUNAL WORKS | D16: D | E16: Hall Stairs: Thoroughly clean down all wall and ceiling surfaces to common areas to remove dirt, grease and surface containments, scrape and remove all loose and defective coatings, prime bare areas with one coat of fire retardant primer and apply two coats of Class ‘O’ fire retardant matt paint, prepare and apply two coats of polyurethane lacquer or one undercoat and one gloss coat to all previously decorated timber surfaces to hall, landing and staircase areas complete (3 storey) (classified as a single area). | H16: 5.6 | J16: 4540AB | K16: IT | L16: 8 | M16: 1320 | N16: 10560 | P16: =SUMIF('Planned Maint v6.2 CSV File'!A:A,J16,'Planned Maint v6.2 CSV File'!I:I) -> 905.52 | Q16: 7244.16 | R16: =IF(J16="Prov Sum","",IF(MATCH(J16,'Packet Rate Library'!J:J,0),VLOOKUP(J16,'Packet Rate Library'!J:T,9,FALSE),"")) -> 814.97 | S16: 814.97 | T16: 6519.76
B17: REPB47873 | C17: COMMUNAL WORKS | D17: D | E17: PROVISIONAL SUM: Replace or install post boxes with new vandal-resistant lockable post boxes. | H17: 5.386 | J17: PROV SUM | K17: SUM | L17: 1 | M17: 400 | N17: 400 | P17: =SUMIF('Planned Maint v6.2 CSV File'!A:A,J17,'Planned Maint v6.2 CSV File'!I:I) -> 0 | Q17: 400 | R17: =IF(J17="Prov Sum","",IF(MATCH(J17,'Packet Rate Library'!J:J,0),VLOOKUP(J17,'Packet Rate Library'!J:T,9,FALSE),"")) ->  | T17: 400
B18: REPB47873 | C18: COMMUNAL WORKS | D18: D | E18: PROVISIONAL SUM: Secure storage area for bicycles (bike stands). | H18: 5.387 | J18: PROV SUM | K18: SUM | L18: 1 | M18: 1000 | N18: 1000 | P18: =SUMIF('Planned Maint v6.2 CSV File'!A:A,J18,'Planned Maint v6.2 CSV File'!I:I) -> 0 | Q18: 1000 | R18: =IF(J18="Prov Sum","",IF(MATCH(J18,'Packet Rate Library'!J:J,0),VLOOKUP(J18,'Packet Rate Library'!J:T,9,FALSE),"")) ->  | T18: 1000
B19: REPB47873 | C19: COMMUNAL WORKS | D19: D | E19: PROVISIONAL SUM: Allow Provisional Sum for repair of internal cracks to stairways and hallway. | H19: 5.388 | J19: PROV SUM | K19: SUM | L19: 1 | M19: 4000 | N19: 4000 | P19: =SUMIF('Planned Maint v6.2 CSV File'!A:A,J19,'Planned Maint v6.2 CSV File'!I:I) -> 0 | Q19: 4000 | R19: =IF(J19="Prov Sum","",IF(MATCH(J19,'Packet Rate Library'!J:J,0),VLOOKUP(J19,'Packet Rate Library'!J:T,9,FALSE),"")) ->  | T19: 4000
B20: REPB47873 | C20: COMMUNAL WORKS | D20: D | E20: PROVISIONAL SUM: Allow provisional sum to repair cracks to ceilings of communal areas. | H20: 5.389 | J20: PROV SUM | K20: SUM | L20: 1 | M20: 3000 | N20: 3000 | P20: =SUMIF('Planned Maint v6.2 CSV File'!A:A,J20,'Planned Maint v6.2 CSV File'!I:I) -> 0 | Q20: 3000 | R20: =IF(J20="Prov Sum","",IF(MATCH(J20,'Packet Rate Library'!J:J,0),VLOOKUP(J20,'Packet Rate Library'!J:T,9,FALSE),"")) ->  | T20: 3000
B21: REPB47873 | C21: COMMUNAL WORKS | D21: D | E21: PROVISIONAL SUM: Allow provisional sum subject to Fire Risk Assessment, to renew communal hallway doors with fire door. (8 no.) Quantity to be confirmed . | H21: 5.39 | J21: PROV SUM | K21: SUM | L21: 1 | M21: 6400 | N21: =M21 -> 6400 | P21: =SUMIF('Planned Maint v6.2 CSV File'!A:A,J21,'Planned Maint v6.2 CSV File'!I:I) -> 0 | Q21: 6400 | R21: =IF(J21="Prov Sum","",IF(MATCH(J21,'Packet Rate Library'!J:J,0),VLOOKUP(J21,'Packet Rate Library'!J:T,9,FALSE),"")) ->  | T21: 6400
B22: REPB47873 | C22: EXTREP | D22: H
B23: REPB47873 | C23: EXTREP | D23: D | E23: Wall: Cut out bricks from face of wall, clean and clear away, lay upto 15 No. new facing bricks in cement lime mortar (1:1:6), bond, bed and point to match existing and remove waste and debris. | H23: 6.85 | J23: 1019BA | K23: IT | L23: 5 | M23: 21.92 | N23: 109.6 | P23: =SUMIF('Planned Maint v6.2 CSV File'!A:A,J23,'Planned Maint v6.2 CSV File'!I:I) -> 15.25632 | Q23: =IF(J23="PROV SUM",N23,L23*P23) -> 76.2816 | R23: =IF(J23="Prov Sum","",IF(MATCH(J23,'Packet Rate Library'!J:J,0),VLOOKUP(J23,'Packet Rate Library'!J:T,9,FALSE),"")) -> 0 | S23: =IF(R23>0,R23,P23) -> 15.25632 | T23: =IF(J23="SC024",N23,IF(ISERROR(S23),"",IF(J23="PROV SUM",N23,L23*S23))) -> 76.2816
B24: REPB47873 | C24: EXTREP | D24: D | E24: Wall: Rake out existing joints of brickwork min 12mm and repoint brickwork in mortar to match existing and remove waste and debris. | H24: 6.91 | J24: 1021AA | K24: SM | L24: 35 | M24: 20.13 | N24: 704.55 | P24: =SUMIF('Planned Maint v6.2 CSV File'!A:A,J24,'Planned Maint v6.2 CSV File'!I:I) -> 14.01048 | Q24: 490.3668 | R24: =IF(J24="Prov Sum","",IF(MATCH(J24,'Packet Rate Library'!J:J,0),VLOOKUP(J24,'Packet Rate Library'!J:T,9,FALSE),"")) -> 0 | S24: 14.01048 | T24: 490.3668
B25: REPB47873 | C25: EXTREP | D25: D | E25: Cill: Hack off defective area of concrete cill clean and treat any exposed reinforcement, drill into cill and insert 6mm diameter reinforcing bars at 150mm centres, apply bonding agent and reform cill with fine concrete to match existing profiles including all necessary formwork, make good to structure and all finishes and fillets and remove waste and debris. | H25: 6.116 | J25: 1031BA | K25: NO | L25: 16 | M25: 38.74 | N25: 619.84 | P25: =SUMIF('Planned Maint v6.2 CSV File'!A:A,J25,'Planned Maint v6.2 CSV File'!I:I) -> 26.96304 | Q25: 431.40864 | R25: =IF(J25="Prov Sum","",IF(MATCH(J25,'Packet Rate Library'!J:J,0),VLOOKUP(J25,'Packet Rate Library'!J:T,9,FALSE),"")) -> 0 | S25: 26.96304 | T25: 431.40864
B26: REPB47873 | C26: EXTREP | D26: D | E26: Walls: Wash down, fill in cracks and holes, sand down and apply two coats of smooth or textured masonry paint to brickwork surfaces of walls. | H26: 6.182 | J26: 4356AD | K26: SM | L26: 800 | M26: 10.17 | N26: 8136 | P26: =SUMIF('Planned Maint v6.2 CSV File'!A:A,J26,'Planned Maint v6.2 CSV File'!I:I) -> 6.97662 | Q26: 5581.296 | R26: =IF(J26="Prov Sum","",IF(MATCH(J26,'Packet Rate Library'!J:J,0),VLOOKUP(J26,'Packet Rate Library'!J:T,9,FALSE),"")) -> 6.28 | S26: 6.28 | T26: 5024
B27: REPB47873 | C27: EXTREP | D27: D | E27: Soffit: Wash down, fill in cracks and holes, sand smooth and apply one coat of sealer and two coats of smooth or textured masonry paint to rendered or concrete soffits. | H27: 6.188 | J27: 4356CB | K27: SM | L27: 80 | M27: 9.82 | N27: 785.6 | P27: =SUMIF('Planned Maint v6.2 CSV File'!A:A,J27,'Planned Maint v6.2 CSV File'!I:I) -> 6.73652 | Q27: 538.9216 | R27: =IF(J27="Prov Sum","",IF(MATCH(J27,'Packet Rate Library'!J:J,0),VLOOKUP(J27,'Packet Rate Library'!J:T,9,FALSE),"")) -> 6.06 | S27: 6.06 | T27: 484.8
B28: REPB47873 | C28: EXTREP | D28: D | E28: Gates: Wire brush, prepare for, and apply one coat primer, one undercoat, two coats of gloss paint to both sides of any size type single metal gate including all edges and all surfaces of posts. | H28: 6.203 | J28: 4362DA | K28: IT | L28: 2 | M28: 21.61 | N28: 43.22 | P28: =SUMIF('Planned Maint v6.2 CSV File'!A:A,J28,'Planned Maint v6.2 CSV File'!I:I) -> 14.82446 | Q28: 29.64892 | R28: =IF(J28="Prov Sum","",IF(MATCH(J28,'Packet Rate Library'!J:J,0),VLOOKUP(J28,'Packet Rate Library'!J:T,9,FALSE),"")) -> 13.34 | S28: 13.34 | T28: 26.68
B29: REPB47873 | C29: EXTREP | D29: D | E29: Balustrading: Wire brush, prepare for and apply one coat of primer, one undercoat, two coats of gloss paint on ornamental metal balustrading, railings or gates (measured both sides). | H29: 6.204 | J29: 4362EA | K29: SM | L29: 270 | M29: 20.51 | N29: 5537.7 | P29: =SUMIF('Planned Maint v6.2 CSV File'!A:A,J29,'Planned Maint v6.2 CSV File'!I:I) -> 14.06986 | Q29: 3798.8622 | R29: =IF(J29="Prov Sum","",IF(MATCH(J29,'Packet Rate Library'!J:J,0),VLOOKUP(J29,'Packet Rate Library'!J:T,9,FALSE),"")) -> 12.66 | S29: 12.66 | T29: 3418.2
B30: REPB47873 | C30: EXTREP | D30: D | E30: Pipework: Wire brush, prime prepare for and apply coat of primer, one undercoat, and two coats of gloss paint to external pipework ne 300mm girth including brackets. | H30: 6.207 | J30: 4362HA | K30: LM | L30: 460 | M30: 2.21 | N30: 1016.6 | P30: =SUMIF('Planned Maint v6.2 CSV File'!A:A,J30,'Planned Maint v6.2 CSV File'!I:I) -> 1.51606 | Q30: 697.3876 | R30: =IF(J30="Prov Sum","",IF(MATCH(J30,'Packet Rate Library'!J:J,0),VLOOKUP(J30,'Packet Rate Library'!J:T,9,FALSE),"")) -> 1.36 | S30: 1.36 | T30: 625.6
B31: REPB47873 | C31: EXTREP | D31: D | E31: Door: Rub down, prepare for and apply one coat of primer, one undercoat and two coats of gloss paint to all surfaces of any size or type of single glazed timber door. (one sides and edges). | H31: 6.238 | J31: 4380DA | K31: IT | L31: 8 | M31: 20.71 | N31: 165.68 | P31: =SUMIF('Planned Maint v6.2 CSV File'!A:A,J31,'Planned Maint v6.2 CSV File'!I:I) -> 14.20706 | Q31: 113.65648 | R31: =IF(J31="Prov Sum","",IF(MATCH(J31,'Packet Rate Library'!J:J,0),VLOOKUP(J31,'Packet Rate Library'!J:T,9,FALSE),"")) -> 12.79 | S31: 12.79 | T31: 102.32
B32: REPB47873 | C32: EXTREP | D32: D | E32: Gates: Rub down, prepare for, and apply one undercoat, two coats of gloss paint on existing painted surfaces of gates and posts (measured both sides). | H32: 6.258 | J32: 4381FA | K32: SM | L32: 4 | M32: 12.41 | N32: 49.64 | P32: =SUMIF('Planned Maint v6.2 CSV File'!A:A,J32,'Planned Maint v6.2 CSV File'!I:I) -> 8.51326 | Q32: 34.05304 | R32: =IF(J32="Prov Sum","",IF(MATCH(J32,'Packet Rate Library'!J:J,0),VLOOKUP(J32,'Packet Rate Library'!J:T,9,FALSE),"")) -> 7.66 | S32: 7.66 | T32: 30.64
B33: REPB47873 | C33: EXTREP | D33: D | E33: Wall: Apply 12mm cement and sand render (1:3) with waterproofing agent to external walls including ‘Rough Sandtex’ finish, dub out as necessary with cement and sand and all labours and remove waste and debris. | H33: 6.305 | J33: 4210AF | K33: SM | L33: 54 | M33: 33.5 | N33: 1809 | P33: =SUMIF('Planned Maint v6.2 CSV File'!A:A,J33,'Planned Maint v6.2 CSV File'!I:I) -> 22.0095 | Q33: 1188.513 | R33: =IF(J33="Prov Sum","",IF(MATCH(J33,'Packet Rate Library'!J:J,0),VLOOKUP(J33,'Packet Rate Library'!J:T,9,FALSE),"")) -> 18.5 | S33: 18.5 | T33: 999
B34: REPB47873 | C34: EXTREP | D34: D | E34: PROVISIONAL SUM: Render Repairs: Repair crack in any external render including carefully hack out and make good with cement and sand including applying finish to match existing, and remove waste and debris. | H34: 6.399 | J34: PROV SUM | K34: SUM | L34: 1 | M34: 500 | N34: 500 | P34: =SUMIF('Planned Maint v6.2 CSV File'!A:A,J34,'Planned Maint v6.2 CSV File'!I:I) -> 0 | Q34: 500 | R34: =IF(J34="Prov Sum","",IF(MATCH(J34,'Packet Rate Library'!J:J,0),VLOOKUP(J34,'Packet Rate Library'!J:T,9,FALSE),"")) ->  | T34: 500
B35: REPB47873 | C35: EXTREP | D35: D | E35: PROVISIONAL SUM: Employ testing house to all areas of brickwork cracking to lower floors to undertake targeted intrusive investigations of the brickwork, removing bricks in the affected areas to expose any corroding steek structural members embedded in the wall. | H35: 6.34 | J35: PROV SUM | K35: SUM | L35: 1 | M35: 5000 | N35: 5000 | P35: =SUMIF('Planned Maint v6.2 CSV File'!A:A,J35,'Planned Maint v6.2 CSV File'!I:I) -> 0 | Q35: 5000 | R35: =IF(J35="Prov Sum","",IF(MATCH(J35,'Packet Rate Library'!J:J,0),VLOOKUP(J35,'Packet Rate Library'!J:T,9,FALSE),"")) ->  | T35: 5000
B36: REPB47873 | C36: EXTREP | D36: D | E36: PROVISIONAL SUM: Remedial works to above. Wall: Extra over, allow provisional sum for additional repairs to cracking of brickworks on lower levels and upper levels on all elevations. Monitoring should be set-up at the vertical cracks to the rear projections in order to establish any continued movement in the cracks. | H36: 6.341 | J36: PROV SUM | K36: SUM | L36: 1 | M36: 8000 | N36: 8000 | P36: =SUMIF('Planned Maint v6.2 CSV File'!A:A,J36,'Planned Maint v6.2 CSV File'!I:I) -> 0 | Q36: 8000 | R36: =IF(J36="Prov Sum","",IF(MATCH(J36,'Packet Rate Library'!J:J,0),VLOOKUP(J36,'Packet Rate Library'!J:T,9,FALSE),"")) ->  | T36: 8000
B37: REPB47873 | C37: EXTREP | D37: D | E37: PROVISIONAL SUM: Allow provisional sum for any further structural repairs required to brickwork, eaves, soffits, filler joist floors, reinforced concrete members, following planning of long term full repair strategy. | H37: 6.342 | J37: PROV SUM | K37: SUM | L37: 1 | M37: 30000 | N37: 30000 | P37: =SUMIF('Planned Maint v6.2 CSV File'!A:A,J37,'Planned Maint v6.2 CSV File'!I:I) -> 0 | Q37: 30000 | R37: =IF(J37="Prov Sum","",IF(MATCH(J37,'Packet Rate Library'!J:J,0),VLOOKUP(J37,'Packet Rate Library'!J:T,9,FALSE),"")) ->  | T37: 30000
B38: REPB47873 | C38: ROOF | D38: H
B39: REPB47873 | C39: ROOF | D39: D | E39: Slate: Renew any size and type of natural roof slates including double course at eaves cloaked verges, ridge, hips and valley tiles, supply and install proprietary ventilation units in roof, renew all code 6 lead flashings, aprons chimney gutters and the like wedged and pointed, renew valley gutter and valley board as necessary including all labours, cutting etc including renew roofing felt and battens and install restraint straps to gables and elevational gables, and remove waste and debris. | H39: 3.219 | J39: 2034AC | K39: SM | L39: 30 | M39: 133.3 | N39: 3999 | P39: =SUMIF('Planned Maint v6.2 CSV File'!A:A,J39,'Planned Maint v6.2 CSV File'!I:I) -> 86.645 | Q39: =IF(J39="PROV SUM",N39,L39*P39) -> 2599.35 | R39: =IF(J39="Prov Sum","",IF(MATCH(J39,'Packet Rate Library'!J:J,0),VLOOKUP(J39,'Packet Rate Library'!J:T,9,FALSE),"")) -> 69.32 | S39: =IF(R39>0,R39,P39) -> 69.32 | T39: =IF(J39="SC024",N39,IF(ISERROR(S39),"",IF(J39="PROV SUM",N39,L39*S39))) -> 2079.6
B40: REPB47873 | C40: ROOF | D40: D | E40: Gutter: Clean out debris from gutters to any type of property including flush out and test, rod downpipe including clean out gulley and remove debris from site on completion (per elevation). | H40: 3.364 | J40: 6039BA | K40: IT | L40: 10 | M40: 20.13 | N40: 201.3 | P40: =SUMIF('Planned Maint v6.2 CSV File'!A:A,J40,'Planned Maint v6.2 CSV File'!I:I) -> 13.22541 | Q40: 132.2541 | R40: =IF(J40="Prov Sum","",IF(MATCH(J40,'Packet Rate Library'!J:J,0),VLOOKUP(J40,'Packet Rate Library'!J:T,9,FALSE),"")) -> 10.58 | S40: 10.58 | T40: 105.8
B41: REPB47873 | C41: ROOF | D41: D | E41: PROVISIONAL SUM: Sweep clear all inaccessible horizontal ledges and dispose (1 man x 2 days). | H41: 3.434 | J41: PROV SUM | K41: SUM | L41: 1 | M41: 500 | N41: 500 | P41: =SUMIF('Planned Maint v6.2 CSV File'!A:A,J41,'Planned Maint v6.2 CSV File'!I:I) -> 0 | Q41: 500 | R41: =IF(J41="Prov Sum","",IF(MATCH(J41,'Packet Rate Library'!J:J,0),VLOOKUP(J41,'Packet Rate Library'!J:T,9,FALSE),"")) ->  | T41: 500
B42: REPB47873 | C42: ROOF | D42: D | E42: PROVISIONAL SUM: Hammer tap test and repair cracking to eaves at the north corner of the building and to the filler joist flat roof at the top of the access stairway to flats 1-18 | H42: 3.435 | J42: PROV SUM | K42: SUM | L42: 1 | M42: 10000 | N42: 10000 | P42: =SUMIF('Planned Maint v6.2 CSV File'!A:A,J42,'Planned Maint v6.2 CSV File'!I:I) -> 0 | Q42: 10000 | R42: =IF(J42="Prov Sum","",IF(MATCH(J42,'Packet Rate Library'!J:J,0),VLOOKUP(J42,'Packet Rate Library'!J:T,9,FALSE),"")) ->  | T42: 10000
B43: REPB47873 | C43: ROOF | D43: D | E43: PROVISIONAL SUM: Open out and expose roof mansard structure to the north corner, fourth floor level and to local brickwork to identify causes of cracking to eaves. Allow make good on closing up works. | H43: 3.436 | J43: PROV SUM | K43: SUM | L43: 1 | M43: 8000 | N43: 8000 | P43: =SUMIF('Planned Maint v6.2 CSV File'!A:A,J43,'Planned Maint v6.2 CSV File'!I:I) -> 0 | Q43: 8000 | R43: =IF(J43="Prov Sum","",IF(MATCH(J43,'Packet Rate Library'!J:J,0),VLOOKUP(J43,'Packet Rate Library'!J:T,9,FALSE),"")) ->  | T43: 8000
B44: REPB47873 | C44: ROOF | D44: D | E44: PROVISIONAL SUM: Structural investigation to above | H44: 3.437 | J44: PROV SUM | K44: SUM | L44: 1 | M44: 1000 | N44: 1000 | P44: =SUMIF('Planned Maint v6.2 CSV File'!A:A,J44,'Planned Maint v6.2 CSV File'!I:I) -> 0 | Q44: 1000 | R44: =IF(J44="Prov Sum","",IF(MATCH(J44,'Packet Rate Library'!J:J,0),VLOOKUP(J44,'Packet Rate Library'!J:T,9,FALSE),"")) ->  | T44: 1000
B45: REPB47873 | C45: ROOF | D45: D | E45: PROVISIONAL SUM: Remedial Works to above including remedial works to damp areas of damp. | H45: 3.438 | J45: PROV SUM | K45: SUM | L45: 1 | M45: 60000 | N45: 60000 | P45: =SUMIF('Planned Maint v6.2 CSV File'!A:A,J45,'Planned Maint v6.2 CSV File'!I:I) -> 0 | Q45: 60000 | R45: =IF(J45="Prov Sum","",IF(MATCH(J45,'Packet Rate Library'!J:J,0),VLOOKUP(J45,'Packet Rate Library'!J:T,9,FALSE),"")) ->  | T45: 60000
B46: REPB47873 | C46: WINDOWS | D46: H
B47: REPB47873 | C47: WINDOWS | D47: D | E47: PRIME COST SUM: Arden Windows supply and install to all elevations (592 No. windows). | H47: 4.293 | J47: PROV SUM | K47: SUM | L47: 1 | M47: 803399.98 | N47: 803399.98 | P47: =SUMIF('Planned Maint v6.2 CSV File'!A:A,J47,'Planned Maint v6.2 CSV File'!I:I) -> 0 | Q47: =IF(J47="PROV SUM",N47,L47*P47) -> 803399.98 | R47: =IF(J47="Prov Sum","",IF(MATCH(J47,'Packet Rate Library'!J:J,0),VLOOKUP(J47,'Packet Rate Library'!J:T,9,FALSE),"")) ->  | S47: =IF(R47>0,R47,P47) ->  | T47: =IF(J47="SC024",N47,IF(ISERROR(S47),"",IF(J47="PROV SUM",N47,L47*S47))) -> 803399.98
B48: REPB47873 | C48: WINDOWS | D48: D | E48: PROVISIONAL SUM: BWIC Windows (refer item 4.293) | H48: 4.294 | J48: PROV SUM | K48: SUM | L48: 1 | M48: 20000 | N48: 20000 | P48: =SUMIF('Planned Maint v6.2 CSV File'!A:A,J48,'Planned Maint v6.2 CSV File'!I:I) -> 0 | Q48: =IF(J48="PROV SUM",N48,L48*P48) -> 20000 | R48: =IF(J48="Prov Sum","",IF(MATCH(J48,'Packet Rate Library'!J:J,0),VLOOKUP(J48,'Packet Rate Library'!J:T,9,FALSE),"")) ->  | S48: =IF(R48>0,R48,P48) ->  | T48: =IF(J48="SC024",N48,IF(ISERROR(S48),"",IF(J48="PROV SUM",N48,L48*S48))) -> 20000
B49: REPB47873 | C49: SCAFFOLD | D49: H
B50: REPB47873 | C50: SCAFFOLD | D50: D | E50: Standard Scaffold item: erect; dismantle; basic independent tied working scaffolding; 5 boards wide, including hire period; completely accessible; debris netting to all elevations; double boarded and polythene included as necessary, any fan(s) included as required; rope plus wheel for lifting operations; 3rd handrail included whenever necessary; as per applicable regulations (applies to up to 5 storeys). Measured up to second handrail and by the middle of the scaffold (equidistant from the inside/outside face) including design when required. Rate to include for 12 week hire | H50: 2.1 | J50: SC001 | K50: M2 | L50: 3440 | M50: 12.92 | N50: 44444.8 | P50: =SUMIF('Planned Maint v6.2 CSV File'!A:A,J50,'Planned Maint v6.2 CSV File'!I:I) -> 17.0544 | Q50: =IF(J50="PROV SUM",N50,L50*P50) -> 58667.136 | R50: =IF(J50="Prov Sum","",IF(MATCH(J50,'Packet Rate Library'!J:J,0),VLOOKUP(J50,'Packet Rate Library'!J:T,9,FALSE),"")) -> 15.5 | S50: =IF(R50>0,R50,P50) -> 15.5 | T50: =IF(J50="SC024",N50,IF(ISERROR(S50),"",IF(J50="PROV SUM",N50,L50*S50))) -> 53320
B51: REPB47873 | C51: SCAFFOLD | D51: D | E51: Scaffold alarm - 1 x sounder, 2 x PIR 1 X key pad (Divided by Number of properties if continuous scaffolds) | H51: 2.5 | J51: SC005 | K51: unit | L51: 4 | M51: 420 | N51: 1680 | P51: =SUMIF('Planned Maint v6.2 CSV File'!A:A,J51,'Planned Maint v6.2 CSV File'!I:I) -> 554.4 | Q51: 2217.6 | R51: =IF(J51="Prov Sum","",IF(MATCH(J51,'Packet Rate Library'!J:J,0),VLOOKUP(J51,'Packet Rate Library'!J:T,9,FALSE),"")) -> 500 | S51: 500 | T51: 2000
B52: REPB47873 | C52: SCAFFOLD | D52: D | E52: E/O for additional PIRS | H52: 2.6 | J52: SC007 | K52: unit | L52: 3 | M52: 50 | N52: 150 | P52: =SUMIF('Planned Maint v6.2 CSV File'!A:A,J52,'Planned Maint v6.2 CSV File'!I:I) -> 66 | Q52: 198 | R52: =IF(J52="Prov Sum","",IF(MATCH(J52,'Packet Rate Library'!J:J,0),VLOOKUP(J52,'Packet Rate Library'!J:T,9,FALSE),"")) -> 52.8 | S52: 52.8 | T52: 158.4
B53: REPB47873 | C53: SCAFFOLD | D53: D | E53: Installation of rubbish chute | H53: 2.18 | J53: SC018 | K53: lm | L53: 18 | M53: 45 | N53: 810 | P53: =SUMIF('Planned Maint v6.2 CSV File'!A:A,J53,'Planned Maint v6.2 CSV File'!I:I) -> 59.4 | Q53: 1069.2 | R53: =IF(J53="Prov Sum","",IF(MATCH(J53,'Packet Rate Library'!J:J,0),VLOOKUP(J53,'Packet Rate Library'!J:T,9,FALSE),"")) -> 42.5 | S53: 42.5 | T53: 765
B54: REPB47873 | C54: SCAFFOLD | D54: D | E54: Modular Beams (Measured as lm include inside/outside face of scaffold- 2 beams included) | H54: 2.2 | J54: SC020 | K54: lm | L54: 20 | M54: 59.92 | N54: 1198.4 | P54: =SUMIF('Planned Maint v6.2 CSV File'!A:A,J54,'Planned Maint v6.2 CSV File'!I:I) -> 79.0944 | Q54: 1581.888 | R54: =IF(J54="Prov Sum","",IF(MATCH(J54,'Packet Rate Library'!J:J,0),VLOOKUP(J54,'Packet Rate Library'!J:T,9,FALSE),"")) -> 61.5 | S54: 61.5 | T54: 1230
B55: REPB47873 | C55: SCAFFOLD | D55: D | E55: Erecting hoist mast- per unit- up to 5 storeys (including delivery, dismantle and gates) | H55: 2.26 | J55: SC026 | K55: unit | L55: 2 | M55: 1127.5 | N55: 2255 | P55: =SUMIF('Planned Maint v6.2 CSV File'!A:A,J55,'Planned Maint v6.2 CSV File'!I:I) -> 1488.3 | Q55: 2976.6 | R55: =IF(J55="Prov Sum","",IF(MATCH(J55,'Packet Rate Library'!J:J,0),VLOOKUP(J55,'Packet Rate Library'!J:T,9,FALSE),"")) -> 1190.64 | S55: 1190.64 | T55: 2381.28
B56: REPB47873 | C56: SCAFFOLD | D56: D | E56: Weekly hire (in event of programme extension in line with NEC opt A compensation event agreed). Hoist hire | H56: 2.27 | J56: SC027 | K56: week | L56: 20 | M56: 179 | N56: =VLOOKUP(J56,'Overheads,Scaffold&Other Costs'!AE7:AI24,5,FALSE) -> 2400 | Q56: =IF(J56="PROV SUM",N56,L56*P56) -> 0 | R56: =IF(J56="Prov Sum","",IF(MATCH(J56,'[2]Packet Rate Library'!J:J,0),VLOOKUP(J56,'[2]Packet Rate Library'!J:T,9,FALSE),"")) ->  | S56: =IF(R56>0,R56,P56) ->  | T56: =IF(J56="SC027",N56,IF(ISERROR(S56),"",IF(J56="PROV SUM",N56,L56*S56))) -> 2400
B57: REPB47873 | C57: SCAFFOLD | D57: D | E57: Parking bay suspensions per 2 bays fee. | H57: 2.28 | J57: SC028 | K57: day | L57: 120 | M57: 77.26 | N57: 9271.2 | P57: =SUMIF('Planned Maint v6.2 CSV File'!A:A,J57,'Planned Maint v6.2 CSV File'!I:I) -> 101.9832 | Q57: 12237.984 | R57: =IF(J57="Prov Sum","",IF(MATCH(J57,'Packet Rate Library'!J:J,0),VLOOKUP(J57,'Packet Rate Library'!J:T,9,FALSE),"")) -> 82.12 | S57: 82.12 | T57: 9854.4
B58: REPB47873 | C58: SCAFFOLD | D58: D | E58: Suspension of Parking Bays administration Fee | H58: 2.29 | J58: SC029 | K58: item | L58: 1 | M58: 61.29 | N58: 61.29 | P58: =SUMIF('Planned Maint v6.2 CSV File'!A:A,J58,'Planned Maint v6.2 CSV File'!I:I) -> 80.9028 | Q58: 80.9028 | R58: =IF(J58="Prov Sum","",IF(MATCH(J58,'Packet Rate Library'!J:J,0),VLOOKUP(J58,'Packet Rate Library'!J:T,9,FALSE),"")) -> 65.15 | S58: 65.15 | T58: 65.15
B59: REPB47873 | C59: SCAFFOLD | D59: D | E59: Additional Hire if required - % per week of total scaffolding costs. This is to be applied in the event an agreed programme exceeding the duration set out above. An example would be large low level blocks of 4 storeys requiring a large programme duration | J59: SC024 | K59: unit | M59: 0.0483 | N59: =VLOOKUP(B37,'Overheads,Scaffold&Other Costs'!$W:$AI,13,FALSE) -> 11504.60736 | Q59: 0 | R59: =IF(J59="Prov Sum","",IF(MATCH(J59,'[2]Packet Rate Library'!J:J,0),VLOOKUP(J59,'[2]Packet Rate Library'!J:T,9,FALSE),"")) ->  | T59: 11504.60736
B60: REPB47873 | C60: ESTATE WORKS | D60: H
B61: REPB47873 | C61: FRA | D61: H
B62: REPB47873 | C62: FRA | D62: D | E62: Door:Renew front door with any size panelled, glazed or partially glazed or similar proprietary high performance GRP door, prefinished, preglazed, and prehung to and including proprietary door frame and cill, including new mortice lock, door furniture, keeps, pair of bolts, cylinder nightlatch and pull, security restraint device, proprietary letter plate, numerals, proprietary weathermould, fix frame and cill to struycture, seal around frame and cill, make good and remove waste and debris. | H62: 10 | J62: 3221CB | K62: Item | L62: 84 | M62: 1212.5 | N62: 101850 | P62: =SUMIF('Planned Maint v6.2 CSV File'!A:A,J62,'Planned Maint v6.2 CSV File'!I:I) -> 843.9 | Q62: =IF(J62="PROV SUM",N62,L62*P62) -> 70887.6 | R62: =IF(J62="Prov Sum","",IF(MATCH(J62,'Packet Rate Library'!J:J,0),VLOOKUP(J62,'Packet Rate Library'!J:T,9,FALSE),"")) -> 746.84 | S62: =IF(R62>0,R62,P62) -> 746.84 | T62: =IF(J62="SC024",N62,IF(ISERROR(S62),"",IF(J62="PROV SUM",N62,L62*S62))) -> 62734.56
B63: REPB47873 | C63: FRA | D63: D | E63: Door:Renew internal with any size FD30S plywood faced fire check flush door, including remove existing door, hinges and stops, fit and hang new door on 1.5 pairs of 100mm steel hinges, make good or alter recesses on frame, door complete with all ironmongery, intumescent strips and smoke seals, provide and fix 25x32mm door stop set, make good and prepare door for decoration and make good decorations to frame, and remove waste and debris. | H63: 14 | J63: 3300BE | K63: Item | L63: 4 | M63: 168.48 | N63: 673.92 | P63: =SUMIF('Planned Maint v6.2 CSV File'!A:A,J63,'Planned Maint v6.2 CSV File'!I:I) -> 117.26208 | Q63: 469.04832 | R63: =IF(J63="Prov Sum","",IF(MATCH(J63,'Packet Rate Library'!J:J,0),VLOOKUP(J63,'Packet Rate Library'!J:T,9,FALSE),"")) -> 113.81 | S63: 113.81 | T63: 455.24
B64: REPB47873 | C64: FRA | D64: D | E64: Intumescent Strip:Renew or supply and fix new 22x4mm intumescent strip, half hour application, with integral cold smoke seal and setting into groove in timber frame or door. | H64: 104 | J64: 3431AC | K64: Item | L64: 2 | M64: 3.44 | N64: 6.88 | P64: =SUMIF('Planned Maint v6.2 CSV File'!A:A,J64,'Planned Maint v6.2 CSV File'!I:I) -> 2.39424 | Q64: 4.78848 | R64: =IF(J64="Prov Sum","",IF(MATCH(J64,'Packet Rate Library'!J:J,0),VLOOKUP(J64,'Packet Rate Library'!J:T,9,FALSE),"")) -> 2.2 | S64: 2.2 | T64: 4.4
B65: REPB47873 | C65: FRA | D65: D | E65: Smoke Detector:Renew existing with mains operated optical smoke detector with rechargeable DC battery or condensor back up self contained type to BS 5446 kitemark certified with hush button, including back plate and all necessary connections to existing wiring, test and make good on completion, where interlinked detectors are replaced new detectors must be compatible with existing, and remove waste and debris. | H65: 115 | J65: 8720FA | K65: Item | L65: 84 | M65: 70.11 | N65: =L65*M65 -> 5889.24 | P65: =SUMIF('Planned Maint v6.2 CSV File'!A:A,J65,'Planned Maint v6.2 CSV File'!I:I) -> 49.49766 | Q65: 4157.80344 | R65: =IF(J65="Prov Sum","",IF(MATCH(J65,'Packet Rate Library'!J:J,0),VLOOKUP(J65,'Packet Rate Library'!J:T,9,FALSE),"")) -> 0 | S65: 49.49766 | T65: 4157.80344
B66: REPB47873 | C66: FRA | D66: D | E66: Test:Carry out test of domestic installation to occupied property complete comprising continuity, insulation resistance, polarity, earth fault loop impedance and operation of residual current operated device, disconnect, repair and renew as necessary after removal of illegal wiring and components, and provide report and NICEIC/ECA test certificate to the Client’s Representative, and remove waste and debris. | H66: 154 | J66: 8950AA | K66: Item | L66: 84 | M66: 86.88 | N66: 7297.92 | P66: =SUMIF('Planned Maint v6.2 CSV File'!A:A,J66,'Planned Maint v6.2 CSV File'!I:I) -> 61.33728 | Q66: 5152.33152 | R66: =IF(J66="Prov Sum","",IF(MATCH(J66,'Packet Rate Library'!J:J,0),VLOOKUP(J66,'Packet Rate Library'!J:T,9,FALSE),"")) -> 0 | S66: 61.33728 | T66: 5152.33152
B67: REPB47873 | C67: FRA | D67: D | E67: Closer:Renew or supply and fix Perko concealed door closer or other equal and approved screwed to door and frame. | H67: 175 | J67: 3905BA | K67: Item | L67: 2 | M67: 12.89 | N67: 25.78 | P67: =SUMIF('Planned Maint v6.2 CSV File'!A:A,J67,'Planned Maint v6.2 CSV File'!I:I) -> 6.82776 | Q67: 13.65552 | R67: =IF(J67="Prov Sum","",IF(MATCH(J67,'Packet Rate Library'!J:J,0),VLOOKUP(J67,'Packet Rate Library'!J:T,9,FALSE),"")) -> 0 | S67: 6.82776 | T67: 13.65552
B68: REPB47873 | C68: FRA | D68: D | E68: Partition:Fill in existing opening in stud partition with ne 50x100mm members fixed to walls, pack out, scribe, 12.5mm taper edged plasterboard scrim jointed, labours, skirting to both faces. | H68: 183 | J68: 3013CA | K68: Item | L68: 1 | M68: 72.9 | N68: 72.9 | P68: =SUMIF('Planned Maint v6.2 CSV File'!A:A,J68,'Planned Maint v6.2 CSV File'!I:I) -> 50.7384 | Q68: 50.7384 | R68: =IF(J68="Prov Sum","",IF(MATCH(J68,'Packet Rate Library'!J:J,0),VLOOKUP(J68,'Packet Rate Library'!J:T,9,FALSE),"")) -> 0 | S68: 50.7384 | T68: 50.7384
B69: REPB47873 | C69: FRA | D69: D | E69: Provisional Sum: Allow provisional sum for additional works to the fire alarm system. | H69: 186 | J69: PROV SUM | K69: Item | L69: 1 | M69: 6000 | N69: 6000 | P69: =SUMIF('Planned Maint v6.2 CSV File'!A:A,J69,'Planned Maint v6.2 CSV File'!I:I) -> 0 | Q69: 6000 | R69: =IF(J69="Prov Sum","",IF(MATCH(J69,'Packet Rate Library'!J:J,0),VLOOKUP(J69,'Packet Rate Library'!J:T,9,FALSE),"")) ->  | T69: 6000
B70: REPB47873 | C70: FRA | D70: D | E70: Provisional Sum: Allow provisional sum for additional works to clear waste and debris from fire escape routes. | H70: 187 | J70: PROV SUM | K70: Item | L70: 1 | M70: 400 | N70: 400 | P70: =SUMIF('Planned Maint v6.2 CSV File'!A:A,J70,'Planned Maint v6.2 CSV File'!I:I) -> 0 | Q70: 400 | R70: =IF(J70="Prov Sum","",IF(MATCH(J70,'Packet Rate Library'!J:J,0),VLOOKUP(J70,'Packet Rate Library'!J:T,9,FALSE),"")) ->  | T70: 400
B71: REPB47873 | C71: FRA | D71: D | E71: Provisional Sum: Allow provisional sum for additional fire stopping works | H71: 188 | J71: PROV SUM | K71: Item | L71: 1 | M71: 8400 | N71: 8400 | P71: =SUMIF('Planned Maint v6.2 CSV File'!A:A,J71,'Planned Maint v6.2 CSV File'!I:I) -> 0 | Q71: 8400 | R71: =IF(J71="Prov Sum","",IF(MATCH(J71,'Packet Rate Library'!J:J,0),VLOOKUP(J71,'Packet Rate Library'!J:T,9,FALSE),"")) ->  | T71: 8400
B72: REPB47873 | C72: FRA | D72: D | E72: Provisional Sum: Allow provisional sum for additional signage | H72: 189 | J72: PROV SUM | K72: Item | L72: 1 | M72: 400 | N72: 400 | P72: =SUMIF('Planned Maint v6.2 CSV File'!A:A,J72,'Planned Maint v6.2 CSV File'!I:I) -> 0 | Q72: 400 | R72: =IF(J72="Prov Sum","",IF(MATCH(J72,'Packet Rate Library'!J:J,0),VLOOKUP(J72,'Packet Rate Library'!J:T,9,FALSE),"")) ->  | T72: 400
B73: REPB47873 | C73: FRA | D73: D | E73: Provisional Sum: Allow provisional sum for additional electrical works | H73: 190 | J73: PROV SUM | K73: Item | L73: 1 | M73: 1400 | N73: 1400 | P73: =SUMIF('Planned Maint v6.2 CSV File'!A:A,J73,'Planned Maint v6.2 CSV File'!I:I) -> 0 | Q73: 1400 | R73: =IF(J73="Prov Sum","",IF(MATCH(J73,'Packet Rate Library'!J:J,0),VLOOKUP(J73,'Packet Rate Library'!J:T,9,FALSE),"")) ->  | T73: 1400
